{"text_format":"2","workbook":"xlsx","n_sheets":12,"sheets":["MOD.L1","MOD.L2","MOD.L3","MOD.L4","MOD.L5","MOD.L6","CRONOGRAMA","Projeto Executivo","Ensaios","BDI","ENC. SOCIAIS","CPU_SICRO"],"not_rendered":{"charts":0,"images":1,"macros":0,"external_links":12,"defined_names":2644,"comments":1,"pivot_tables":0},"unopened":[],"bounds":{"document_bytes":16777216,"sheet_cells":100000,"run_cost":"one","rows_first":2000,"rows_last":500,"rows_between":2000,"halvings":0,"cell_chars":16384,"cell_head_chars":4096},"cells_cut":0,"cells_raw":0,"read":"whole","date_system":"1900"}

{"sheet":"MOD.L1","index":0,"n_rows":41,"n_cols":11,"rows_kept":41,"cut":false,"hidden":false,"merged":[[24,3,24,6],[25,3,25,6],[26,3,26,6],[1,0,3,10],[5,1,8,1],[5,0,8,0],[4,0,4,10],[5,2,8,2],[5,3,8,6],[6,7,7,8],[9,3,9,6],[17,3,17,6],[21,3,21,6],[23,3,23,6],[10,3,10,6],[11,3,11,6],[22,3,22,6],[12,3,12,6],[13,3,13,6],[15,3,15,6],[16,3,16,6],[18,3,18,6],[19,3,19,6],[20,3,20,6],[14,3,14,6],[27,3,27,6],[39,0,39,9],[34,3,34,6],[38,3,38,6],[36,3,36,6],[32,3,32,6],[28,3,28,6],[29,3,29,6],[30,3,30,6]]}
["EXECUÇÃO DE SERVIÇOS DE IMPLANTAÇÃO DE PAVIMENTAÇÃO EM CONCRETO BETUMINOSO USINADO A QUENTE, EM VIAS URBANAS E RURAIS DE MUNÍCIPIOS DIVERSOS INSERIDOS NA ÁREA DE ATUAÇÃO DA CODEVASF, NO ESTADO DE MINAS GERAIS - LOTE 1 (POLO: SALINAS/MG)",{"$nulls":8},"Extensão (km)"]
[]
[]
[]
[{"$f":"A1","v":"EXECUÇÃO DE SERVIÇOS DE IMPLANTAÇÃO DE PAVIMENTAÇÃO EM CONCRETO BETUMINOSO USINADO A QUENTE, EM VIAS URBANAS E RURAIS DE MUNÍCIPIOS DIVERSOS INSERIDOS NA ÁREA DE ATUAÇÃO DA CODEVASF, NO ESTADO DE MINAS GERAIS - LOTE 1 (POLO: SALINAS/MG)"}]
["ITEM","ORIGEM\nCOMPOSIÇÃO","CÓDIGO\nCOMPOSIÇÃO","DISCRIMINAÇÃO DOS SERVIÇOS",null,null,null,"BDI %:",{"$f":"BDI!D24","v":0.2135},"R$/m²",{"$f":"K40/(I15)","v":0}]
[{"$nulls":7},"Encargos Sociais:",null,"Horista","Mensalista"]
[{"$nulls":9},{"$f":"'ENC. SOCIAIS'!$E$51","v":114.53999999999999},{"$f":"'ENC. SOCIAIS'!$F$51","v":73.09}]
[{"$nulls":7},"UND","QTDE.","PREÇO UNITÁRIO COM BDI (R$)","TOTAL"]
[null,null,null,"SERVIÇOS PRELIMINARES"]
[1,"Codevasf","Composição Própria","Implantação da Obra",null,null,null,"km",20]
[2,"Codevasf","Composição Própria","Administração da Obra",null,null,null,"km",20]
[3,"Codevasf","Composição Própria","Placa de Obra em Chapa de Aço Galvanizado",null,null,null,"und",1]
[null,null,null,"TERRAPLENAGEM"]
[4,"Codevasf","Composição Própria","Serviços topográficos para pavimentação, inclusive notas de serviços, acompanhamento e greide",null,null,null,"m²",120000]
[5,"SICRO",5502114,"Escavação, carga e transporte de material de 1ª categoria - DMT de 1.000 a 1.200 m - caminho de serviço em leito natural - com escavadeira e caminhão basculante de 14 m³",null,null,null,"m³",12000]
[6,"SICRO",5502114,"Espalhamento de material em bota-fora",null,null,null,"m³",12000]
[null,null,null,"PAVIMENTAÇÃO"]
[7,"SICRO",4011463,"Concreto asfáltico - faixa C - areia e brita comerciais",null,null,null,"t",14549.999999999998]
[8,"SICRO",4011351,"Imprimação com asfalto diluído",null,null,null,"m²",120000]
[9,"SICRO",4011353,"Pintura de ligação",null,null,null,"m²",120000]
[10,"SICRO",4011276,"Base ou sub-base de brita graduada com brita comercial",null,null,null,"m³",18000]
[11,"SICRO",4011256,"Base ou sub-base estabilizada granulometricamente com mistura solo brita (70% - 30%) na pista com material de jazida e brita comercial",null,null,null,"m³",18000]
[12,"SICRO",4011209,"Regularização do subleito",null,null,null,"m²",120000]
[null,null,null,"AQUISIÇÃO E TRASNPORTE DO MATERIAL BETUMINOSO"]
[13,"CODEVASF","CPU-12","AQUISIÇÃO DE CIMENTO ASFALTICO CAP 50/70",null,null,null,"t",800.25]
[14,"CODEVASF","CPU-13","AQUISIÇÃO DE ASFALTO DILUIDO CM-30",null,null,null,"t",192]
[15,"CODEVASF","CPU-14","AQUISIÇÃO DE EMULSÃO ASFÁLTICA RR-1C",null,null,null,"t",48]
[null,null,null,"SINALIZAÇÃO"]
[16,"SICRO",5213440,"Fornecimento e implantação de placa de regulamentação em aço D = 0,60 m - película retrorrefletiva tipo I + SI",null,null,null,"und",20]
[17,"SICRO",5213851,"Fornecimento e implantação de suporte metálico galvanizado para placa de regulamentação - D = 0,60 m",null,null,null,"und",20]
[null,null,null,"DRENAGEM"]
[18,"SICRO",2003373,"Meio fio de concreto - MFC 03 - areia e brita comerciais - fôrma de madeira",null,null,null,"m",40000]
[null,null,null,"LIMPEZA GERAL"]
[19,"Codevasf","Composição Própria","Limpeza Geral",null,null,null,"m²",140000]
[null,null,null,"SERVIÇOS COMPLEMENTARES"]
[20,"Codevasf","Composição Própria","Conserto de quebra no ramal na rua sem pavimento com fornecimento de material hidráulico",null,null,null,"m",2000]
[null,null,null,"PROJETO EXECUTIVO"]
[21,"Codevasf","Composição Própria","Projeto Executivo",null,null,null,"km",20]
["VALOR TOTAL DO SRP",{"$nulls":9},{"$f":"SUM(K11:K39)","v":0}]
["* De acordo com a localização da obra, os itens alterados deverão ser  justificados e aprovados na Diretoria Executiva quando da autorização certame."]

{"sheet":"MOD.L2","index":1,"n_rows":41,"n_cols":11,"rows_kept":41,"cut":false,"hidden":false,"merged":[[14,3,14,6],[1,0,3,10],[4,0,4,10],[5,0,8,0],[5,1,8,1],[5,2,8,2],[5,3,8,6],[6,7,7,8],[9,3,9,6],[10,3,10,6],[11,3,11,6],[12,3,12,6],[13,3,13,6],[26,3,26,6],[15,3,15,6],[16,3,16,6],[17,3,17,6],[18,3,18,6],[19,3,19,6],[20,3,20,6],[21,3,21,6],[22,3,22,6],[23,3,23,6],[24,3,24,6],[25,3,25,6],[36,3,36,6],[38,3,38,6],[39,0,39,9],[27,3,27,6],[28,3,28,6],[29,3,29,6],[30,3,30,6],[32,3,32,6],[34,3,34,6]]}
["EXECUÇÃO DE SERVIÇOS DE IMPLANTAÇÃO DE PAVIMENTAÇÃO EM CONCRETO BETUMINOSO USINADO A QUENTE, EM VIAS URBANAS E RURAIS DE MUNÍCIPIOS DIVERSOS INSERIDOS NA ÁREA DE ATUAÇÃO DA CODEVASF, NO ESTADO DE MINAS GERAIS - LOTE 2 (POLO: DIAMANTINA/MG)",{"$nulls":8},"Extensão (km)"]
[]
[]
[]
[{"$f":"A1","v":"EXECUÇÃO DE SERVIÇOS DE IMPLANTAÇÃO DE PAVIMENTAÇÃO EM CONCRETO BETUMINOSO USINADO A QUENTE, EM VIAS URBANAS E RURAIS DE MUNÍCIPIOS DIVERSOS INSERIDOS NA ÁREA DE ATUAÇÃO DA CODEVASF, NO ESTADO DE MINAS GERAIS - LOTE 2 (POLO: DIAMANTINA/MG)"}]
["ITEM","ORIGEM\nCOMPOSIÇÃO","CÓDIGO\nCOMPOSIÇÃO","DISCRIMINAÇÃO DOS SERVIÇOS",null,null,null,"BDI %:",{"$f":"BDI!D24","v":0.2135},"R$/m²",{"$f":"K40/(I15)","v":0}]
[{"$nulls":7},"Encargos Sociais:",null,"Horista","Mensalista"]
[{"$nulls":9},{"$f":"'ENC. SOCIAIS'!$E$51","v":114.53999999999999},{"$f":"'ENC. SOCIAIS'!$F$51","v":73.09}]
[{"$nulls":7},"UND","QTDE.","PREÇO UNITÁRIO COM BDI (R$)","TOTAL"]
[null,null,null,"SERVIÇOS PRELIMINARES"]
[1,"Codevasf","Composição Própria","Implantação da Obra",null,null,null,"km",14]
[2,"Codevasf","Composição Própria","Administração da Obra",null,null,null,"km",14]
[3,"Codevasf","Composição Própria","Placa de Obra em Chapa de Aço Galvanizado",null,null,null,"und",1]
[null,null,null,"TERRAPLENAGEM"]
[4,"Codevasf","Composição Própria","Serviços topográficos para pavimentação, inclusive notas de serviços, acompanhamento e greide",null,null,null,"m²",84000]
[5,"SICRO",5502114,"Escavação, carga e transporte de material de 1ª categoria - DMT de 1.000 a 1.200 m - caminho de serviço em leito natural - com escavadeira e caminhão basculante de 14 m³",null,null,null,"m³",8400]
[6,"SICRO",5502114,"Espalhamento de material em bota-fora",null,null,null,"m³",8400]
[null,null,null,"PAVIMENTAÇÃO"]
[7,"SICRO",4011463,"Concreto asfáltico - faixa C - areia e brita comerciais",null,null,null,"t",10185]
[8,"SICRO",4011351,"Imprimação com asfalto diluído",null,null,null,"m²",84000]
[9,"SICRO",4011353,"Pintura de ligação",null,null,null,"m²",84000]
[10,"SICRO",4011276,"Base ou sub-base de brita graduada com brita comercial",null,null,null,"m³",12600]
[11,"SICRO",4011256,"Base ou sub-base estabilizada granulometricamente com mistura solo brita (70% - 30%) na pista com material de jazida e brita comercial",null,null,null,"m³",12600]
[12,"SICRO",4011209,"Regularização do subleito",null,null,null,"m²",84000]
[null,null,null,"AQUISIÇÃO E TRASNPORTE DO MATERIAL BETUMINOSO"]
[13,"CODEVASF","CPU-12","AQUISIÇÃO DE CIMENTO ASFALTICO CAP 50/70",null,null,null,"t",560.17999999999995]
[14,"CODEVASF","CPU-13","AQUISIÇÃO DE ASFALTO DILUIDO CM-30",null,null,null,"t",134.4]
[15,"CODEVASF","CPU-14","AQUISIÇÃO DE EMULSÃO ASFÁLTICA RR-1C",null,null,null,"t",33.6]
[null,null,null,"SINALIZAÇÃO"]
[16,"SICRO",5213440,"Fornecimento e implantação de placa de regulamentação em aço D = 0,60 m - película retrorrefletiva tipo I + SI",null,null,null,"und",14]
[17,"SICRO",5213851,"Fornecimento e implantação de suporte metálico galvanizado para placa de regulamentação - D = 0,60 m",null,null,null,"und",14]
[null,null,null,"DRENAGEM"]
[18,"SICRO",2003373,"Meio fio de concreto - MFC 03 - areia e brita comerciais - fôrma de madeira",null,null,null,"m",28000]
[null,null,null,"LIMPEZA GERAL"]
[19,"Codevasf","Composição Própria","Limpeza Geral",null,null,null,"m²",98000]
[null,null,null,"SERVIÇOS COMPLEMENTARES"]
[20,"Codevasf","Composição Própria","Conserto de quebra no ramal na rua sem pavimento com fornecimento de material hidráulico",null,null,null,"m",1400]
[null,null,null,"PROJETO EXECUTIVO"]
[21,"Codevasf","Composição Própria","Projeto Executivo",null,null,null,"km",14]
["VALOR TOTAL DO SRP",{"$nulls":9},{"$f":"SUM(K11:K39)","v":0}]
["* De acordo com a localização da obra, os itens alterados deverão ser  justificados e aprovados na Diretoria Executiva quando da autorização certame."]

{"sheet":"MOD.L3","index":2,"n_rows":41,"n_cols":11,"rows_kept":41,"cut":false,"hidden":false,"merged":[[14,3,14,6],[1,0,3,10],[4,0,4,10],[5,0,8,0],[5,1,8,1],[5,2,8,2],[5,3,8,6],[6,7,7,8],[9,3,9,6],[10,3,10,6],[11,3,11,6],[12,3,12,6],[13,3,13,6],[26,3,26,6],[15,3,15,6],[16,3,16,6],[17,3,17,6],[18,3,18,6],[19,3,19,6],[20,3,20,6],[21,3,21,6],[22,3,22,6],[23,3,23,6],[24,3,24,6],[25,3,25,6],[36,3,36,6],[38,3,38,6],[39,0,39,9],[27,3,27,6],[28,3,28,6],[29,3,29,6],[30,3,30,6],[32,3,32,6],[34,3,34,6]]}
["EXECUÇÃO DE SERVIÇOS DE IMPLANTAÇÃO DE PAVIMENTAÇÃO EM CONCRETO BETUMINOSO USINADO A QUENTE, EM VIAS URBANAS E RURAIS DE MUNÍCIPIOS DIVERSOS INSERIDOS NA ÁREA DE ATUAÇÃO DA CODEVASF, NO ESTADO DE MINAS GERAIS - LOTE 3 (POLO: TURMALINA/MG)",{"$nulls":8},"Extensão (km)"]
[]
[]
[]
[{"$f":"A1","v":"EXECUÇÃO DE SERVIÇOS DE IMPLANTAÇÃO DE PAVIMENTAÇÃO EM CONCRETO BETUMINOSO USINADO A QUENTE, EM VIAS URBANAS E RURAIS DE MUNÍCIPIOS DIVERSOS INSERIDOS NA ÁREA DE ATUAÇÃO DA CODEVASF, NO ESTADO DE MINAS GERAIS - LOTE 3 (POLO: TURMALINA/MG)"}]
["ITEM","ORIGEM\nCOMPOSIÇÃO","CÓDIGO\nCOMPOSIÇÃO","DISCRIMINAÇÃO DOS SERVIÇOS",null,null,null,"BDI %:",{"$f":"BDI!D24","v":0.2135},"R$/m²",{"$f":"K40/(I15)","v":0}]
[{"$nulls":7},"Encargos Sociais:",null,"Horista","Mensalista"]
[{"$nulls":9},{"$f":"'ENC. SOCIAIS'!$E$51","v":114.53999999999999},{"$f":"'ENC. SOCIAIS'!$F$51","v":73.09}]
[{"$nulls":7},"UND","QTDE.","PREÇO UNITÁRIO COM BDI (R$)","TOTAL"]
[null,null,null,"SERVIÇOS PRELIMINARES"]
[1,"Codevasf","Composição Própria","Implantação da Obra",null,null,null,"km",14]
[2,"Codevasf","Composição Própria","Administração da Obra",null,null,null,"km",14]
[3,"Codevasf","Composição Própria","Placa de Obra em Chapa de Aço Galvanizado",null,null,null,"und",1]
[null,null,null,"TERRAPLENAGEM"]
[4,"Codevasf","Composição Própria","Serviços topográficos para pavimentação, inclusive notas de serviços, acompanhamento e greide",null,null,null,"m²",84000]
[5,"SICRO",5502114,"Escavação, carga e transporte de material de 1ª categoria - DMT de 1.000 a 1.200 m - caminho de serviço em leito natural - com escavadeira e caminhão basculante de 14 m³",null,null,null,"m³",8400]
[6,"SICRO",5502114,"Espalhamento de material em bota-fora",null,null,null,"m³",8400]
[null,null,null,"PAVIMENTAÇÃO"]
[7,"SICRO",4011463,"Concreto asfáltico - faixa C - areia e brita comerciais",null,null,null,"t",10185]
[8,"SICRO",4011351,"Imprimação com asfalto diluído",null,null,null,"m²",84000]
[9,"SICRO",4011353,"Pintura de ligação",null,null,null,"m²",84000]
[10,"SICRO",4011276,"Base ou sub-base de brita graduada com brita comercial",null,null,null,"m³",12600]
[11,"SICRO",4011256,"Base ou sub-base estabilizada granulometricamente com mistura solo brita (70% - 30%) na pista com material de jazida e brita comercial",null,null,null,"m³",12600]
[12,"SICRO",4011209,"Regularização do subleito",null,null,null,"m²",84000]
[null,null,null,"AQUISIÇÃO E TRASNPORTE DO MATERIAL BETUMINOSO"]
[13,"CODEVASF","CPU-12","AQUISIÇÃO DE CIMENTO ASFALTICO CAP 50/70",null,null,null,"t",560.17999999999995]
[14,"CODEVASF","CPU-13","AQUISIÇÃO DE ASFALTO DILUIDO CM-30",null,null,null,"t",134.4]
[15,"CODEVASF","CPU-14","AQUISIÇÃO DE EMULSÃO ASFÁLTICA RR-1C",null,null,null,"t",33.6]
[null,null,null,"SINALIZAÇÃO"]
[16,"SICRO",5213440,"Fornecimento e implantação de placa de regulamentação em aço D = 0,60 m - película retrorrefletiva tipo I + SI",null,null,null,"und",14]
[17,"SICRO",5213851,"Fornecimento e implantação de suporte metálico galvanizado para placa de regulamentação - D = 0,60 m",null,null,null,"und",14]
[null,null,null,"DRENAGEM"]
[18,"SICRO",2003373,"Meio fio de concreto - MFC 03 - areia e brita comerciais - fôrma de madeira",null,null,null,"m",28000]
[null,null,null,"LIMPEZA GERAL"]
[19,"Codevasf","Composição Própria","Limpeza Geral",null,null,null,"m²",98000]
[null,null,null,"SERVIÇOS COMPLEMENTARES"]
[20,"Codevasf","Composição Própria","Conserto de quebra no ramal na rua sem pavimento com fornecimento de material hidráulico",null,null,null,"m",1400]
[null,null,null,"PROJETO EXECUTIVO"]
[21,"Codevasf","Composição Própria","Projeto Executivo",null,null,null,"km",14]
["VALOR TOTAL DO SRP",{"$nulls":9},{"$f":"SUM(K11:K39)","v":0}]
["* De acordo com a localização da obra, os itens alterados deverão ser  justificados e aprovados na Diretoria Executiva quando da autorização certame."]

{"sheet":"MOD.L4","index":3,"n_rows":41,"n_cols":11,"rows_kept":41,"cut":false,"hidden":false,"merged":[[14,3,14,6],[1,0,3,10],[4,0,4,10],[5,0,8,0],[5,1,8,1],[5,2,8,2],[5,3,8,6],[6,7,7,8],[9,3,9,6],[10,3,10,6],[11,3,11,6],[12,3,12,6],[13,3,13,6],[26,3,26,6],[15,3,15,6],[16,3,16,6],[17,3,17,6],[18,3,18,6],[19,3,19,6],[20,3,20,6],[21,3,21,6],[22,3,22,6],[23,3,23,6],[24,3,24,6],[25,3,25,6],[36,3,36,6],[38,3,38,6],[39,0,39,9],[27,3,27,6],[28,3,28,6],[29,3,29,6],[30,3,30,6],[32,3,32,6],[34,3,34,6]]}
["EXECUÇÃO DE SERVIÇOS DE IMPLANTAÇÃO DE PAVIMENTAÇÃO EM CONCRETO BETUMINOSO USINADO A QUENTE, EM VIAS URBANAS E RURAIS DE MUNÍCIPIOS DIVERSOS INSERIDOS NA ÁREA DE ATUAÇÃO DA CODEVASF, NO ESTADO DE MINAS GERAIS - LOTE 4 (POLO: ITAOBIM/MG)",{"$nulls":8},"Extensão (km)"]
[]
[]
[]
[{"$f":"A1","v":"EXECUÇÃO DE SERVIÇOS DE IMPLANTAÇÃO DE PAVIMENTAÇÃO EM CONCRETO BETUMINOSO USINADO A QUENTE, EM VIAS URBANAS E RURAIS DE MUNÍCIPIOS DIVERSOS INSERIDOS NA ÁREA DE ATUAÇÃO DA CODEVASF, NO ESTADO DE MINAS GERAIS - LOTE 4 (POLO: ITAOBIM/MG)"}]
["ITEM","ORIGEM\nCOMPOSIÇÃO","CÓDIGO\nCOMPOSIÇÃO","DISCRIMINAÇÃO DOS SERVIÇOS",null,null,null,"BDI %:",{"$f":"BDI!D24","v":0.2135},"R$/m²",{"$f":"K40/(I15)","v":0}]
[{"$nulls":7},"Encargos Sociais:",null,"Horista","Mensalista"]
[{"$nulls":9},{"$f":"'ENC. SOCIAIS'!$E$51","v":114.53999999999999},{"$f":"'ENC. SOCIAIS'!$F$51","v":73.09}]
[{"$nulls":7},"UND","QTDE.","PREÇO UNITÁRIO COM BDI (R$)","TOTAL"]
[null,null,null,"SERVIÇOS PRELIMINARES"]
[1,"Codevasf","Composição Própria","Implantação da Obra",null,null,null,"km",7]
[2,"Codevasf","Composição Própria","Administração da Obra",null,null,null,"km",7]
[3,"Codevasf","Composição Própria","Placa de Obra em Chapa de Aço Galvanizado",null,null,null,"und",1]
[null,null,null,"TERRAPLENAGEM"]
[4,"Codevasf","Composição Própria","Serviços topográficos para pavimentação, inclusive notas de serviços, acompanhamento e greide",null,null,null,"m²",42000]
[5,"SICRO",5502114,"Escavação, carga e transporte de material de 1ª categoria - DMT de 1.000 a 1.200 m - caminho de serviço em leito natural - com escavadeira e caminhão basculante de 14 m³",null,null,null,"m³",4200]
[6,"SICRO",5502114,"Espalhamento de material em bota-fora",null,null,null,"m³",4200]
[null,null,null,"PAVIMENTAÇÃO"]
[7,"SICRO",4011463,"Concreto asfáltico - faixa C - areia e brita comerciais",null,null,null,"t",5092.5]
[8,"SICRO",4011351,"Imprimação com asfalto diluído",null,null,null,"m²",42000]
[9,"SICRO",4011353,"Pintura de ligação",null,null,null,"m²",42000]
[10,"SICRO",4011276,"Base ou sub-base de brita graduada com brita comercial",null,null,null,"m³",6300]
[11,"SICRO",4011256,"Base ou sub-base estabilizada granulometricamente com mistura solo brita (70% - 30%) na pista com material de jazida e brita comercial",null,null,null,"m³",6300]
[12,"SICRO",4011209,"Regularização do subleito",null,null,null,"m²",42000]
[null,null,null,"AQUISIÇÃO E TRASNPORTE DO MATERIAL BETUMINOSO"]
[13,"CODEVASF","CPU-12","AQUISIÇÃO DE CIMENTO ASFALTICO CAP 50/70",null,null,null,"t",280.08999999999997]
[14,"CODEVASF","CPU-13","AQUISIÇÃO DE ASFALTO DILUIDO CM-30",null,null,null,"t",67.2]
[15,"CODEVASF","CPU-14","AQUISIÇÃO DE EMULSÃO ASFÁLTICA RR-1C",null,null,null,"t",16.8]
[null,null,null,"SINALIZAÇÃO"]
[16,"SICRO",5213440,"Fornecimento e implantação de placa de regulamentação em aço D = 0,60 m - película retrorrefletiva tipo I + SI",null,null,null,"und",7]
[17,"SICRO",5213851,"Fornecimento e implantação de suporte metálico galvanizado para placa de regulamentação - D = 0,60 m",null,null,null,"und",7]
[null,null,null,"DRENAGEM"]
[18,"SICRO",2003373,"Meio fio de concreto - MFC 03 - areia e brita comerciais - fôrma de madeira",null,null,null,"m",14000]
[null,null,null,"LIMPEZA GERAL"]
[19,"Codevasf","Composição Própria","Limpeza Geral",null,null,null,"m²",49000]
[null,null,null,"SERVIÇOS COMPLEMENTARES"]
[20,"Codevasf","Composição Própria","Conserto de quebra no ramal na rua sem pavimento com fornecimento de material hidráulico",null,null,null,"m",700]
[null,null,null,"PROJETO EXECUTIVO"]
[21,"Codevasf","Composição Própria","Projeto Executivo",null,null,null,"km",7]
["VALOR TOTAL DO SRP",{"$nulls":9},{"$f":"SUM(K11:K39)","v":0}]
["* De acordo com a localização da obra, os itens alterados deverão ser  justificados e aprovados na Diretoria Executiva quando da autorização certame."]

{"sheet":"MOD.L5","index":4,"n_rows":41,"n_cols":11,"rows_kept":41,"cut":false,"hidden":false,"merged":[[14,3,14,6],[1,0,3,10],[4,0,4,10],[5,0,8,0],[5,1,8,1],[5,2,8,2],[5,3,8,6],[6,7,7,8],[9,3,9,6],[10,3,10,6],[11,3,11,6],[12,3,12,6],[13,3,13,6],[26,3,26,6],[15,3,15,6],[16,3,16,6],[17,3,17,6],[18,3,18,6],[19,3,19,6],[20,3,20,6],[21,3,21,6],[22,3,22,6],[23,3,23,6],[24,3,24,6],[25,3,25,6],[36,3,36,6],[38,3,38,6],[39,0,39,9],[27,3,27,6],[28,3,28,6],[29,3,29,6],[30,3,30,6],[32,3,32,6],[34,3,34,6]]}
["EXECUÇÃO DE SERVIÇOS DE IMPLANTAÇÃO DE PAVIMENTAÇÃO EM CONCRETO BETUMINOSO USINADO A QUENTE, EM VIAS URBANAS E RURAIS DE MUNÍCIPIOS DIVERSOS INSERIDOS NA ÁREA DE ATUAÇÃO DA CODEVASF, NO ESTADO DE MINAS GERAIS - LOTE 5 (POLO: ALMENARA/MG)",{"$nulls":8},"Extensão (km)"]
[]
[]
[]
[{"$f":"A1","v":"EXECUÇÃO DE SERVIÇOS DE IMPLANTAÇÃO DE PAVIMENTAÇÃO EM CONCRETO BETUMINOSO USINADO A QUENTE, EM VIAS URBANAS E RURAIS DE MUNÍCIPIOS DIVERSOS INSERIDOS NA ÁREA DE ATUAÇÃO DA CODEVASF, NO ESTADO DE MINAS GERAIS - LOTE 5 (POLO: ALMENARA/MG)"}]
["ITEM","ORIGEM\nCOMPOSIÇÃO","CÓDIGO\nCOMPOSIÇÃO","DISCRIMINAÇÃO DOS SERVIÇOS",null,null,null,"BDI %:",{"$f":"BDI!D24","v":0.2135},"R$/m²",{"$f":"K40/(I15)","v":0}]
[{"$nulls":7},"Encargos Sociais:",null,"Horista","Mensalista"]
[{"$nulls":9},{"$f":"'ENC. SOCIAIS'!$E$51","v":114.53999999999999},{"$f":"'ENC. SOCIAIS'!$F$51","v":73.09}]
[{"$nulls":7},"UND","QTDE.","PREÇO UNITÁRIO COM BDI (R$)","TOTAL"]
[null,null,null,"SERVIÇOS PRELIMINARES"]
[1,"Codevasf","Composição Própria","Implantação da Obra",null,null,null,"km",12]
[2,"Codevasf","Composição Própria","Administração da Obra",null,null,null,"km",12]
[3,"Codevasf","Composição Própria","Placa de Obra em Chapa de Aço Galvanizado",null,null,null,"und",1]
[null,null,null,"TERRAPLENAGEM"]
[4,"Codevasf","Composição Própria","Serviços topográficos para pavimentação, inclusive notas de serviços, acompanhamento e greide",null,null,null,"m²",72000]
[5,"SICRO",5502114,"Escavação, carga e transporte de material de 1ª categoria - DMT de 1.000 a 1.200 m - caminho de serviço em leito natural - com escavadeira e caminhão basculante de 14 m³",null,null,null,"m³",7200]
[6,"SICRO",5502114,"Espalhamento de material em bota-fora",null,null,null,"m³",7200]
[null,null,null,"PAVIMENTAÇÃO"]
[7,"SICRO",4011463,"Concreto asfáltico - faixa C - areia e brita comerciais",null,null,null,"t",8730]
[8,"SICRO",4011351,"Imprimação com asfalto diluído",null,null,null,"m²",72000]
[9,"SICRO",4011353,"Pintura de ligação",null,null,null,"m²",72000]
[10,"SICRO",4011276,"Base ou sub-base de brita graduada com brita comercial",null,null,null,"m³",10800]
[11,"SICRO",4011256,"Base ou sub-base estabilizada granulometricamente com mistura solo brita (70% - 30%) na pista com material de jazida e brita comercial",null,null,null,"m³",10800]
[12,"SICRO",4011209,"Regularização do subleito",null,null,null,"m²",72000]
[null,null,null,"AQUISIÇÃO E TRASNPORTE DO MATERIAL BETUMINOSO"]
[13,"CODEVASF","CPU-12","AQUISIÇÃO DE CIMENTO ASFALTICO CAP 50/70",null,null,null,"t",480.15]
[14,"CODEVASF","CPU-13","AQUISIÇÃO DE ASFALTO DILUIDO CM-30",null,null,null,"t",115.2]
[15,"CODEVASF","CPU-14","AQUISIÇÃO DE EMULSÃO ASFÁLTICA RR-1C",null,null,null,"t",28.8]
[null,null,null,"SINALIZAÇÃO"]
[16,"SICRO",5213440,"Fornecimento e implantação de placa de regulamentação em aço D = 0,60 m - película retrorrefletiva tipo I + SI",null,null,null,"und",12]
[17,"SICRO",5213851,"Fornecimento e implantação de suporte metálico galvanizado para placa de regulamentação - D = 0,60 m",null,null,null,"und",12]
[null,null,null,"DRENAGEM"]
[18,"SICRO",2003373,"Meio fio de concreto - MFC 03 - areia e brita comerciais - fôrma de madeira",null,null,null,"m",24000]
[null,null,null,"LIMPEZA GERAL"]
[19,"Codevasf","Composição Própria","Limpeza Geral",null,null,null,"m²",84000]
[null,null,null,"SERVIÇOS COMPLEMENTARES"]
[20,"Codevasf","Composição Própria","Conserto de quebra no ramal na rua sem pavimento com fornecimento de material hidráulico",null,null,null,"m",1200]
[null,null,null,"PROJETO EXECUTIVO"]
[21,"Codevasf","Composição Própria","Projeto Executivo",null,null,null,"km",12]
["VALOR TOTAL DO SRP",{"$nulls":9},{"$f":"SUM(K11:K39)","v":0}]
["* De acordo com a localização da obra, os itens alterados deverão ser  justificados e aprovados na Diretoria Executiva quando da autorização certame."]

{"sheet":"MOD.L6","index":5,"n_rows":41,"n_cols":11,"rows_kept":41,"cut":false,"hidden":false,"merged":[[14,3,14,6],[1,0,3,10],[4,0,4,10],[5,0,8,0],[5,1,8,1],[5,2,8,2],[5,3,8,6],[6,7,7,8],[9,3,9,6],[10,3,10,6],[11,3,11,6],[12,3,12,6],[13,3,13,6],[26,3,26,6],[15,3,15,6],[16,3,16,6],[17,3,17,6],[18,3,18,6],[19,3,19,6],[20,3,20,6],[21,3,21,6],[22,3,22,6],[23,3,23,6],[24,3,24,6],[25,3,25,6],[36,3,36,6],[38,3,38,6],[39,0,39,9],[27,3,27,6],[28,3,28,6],[29,3,29,6],[30,3,30,6],[32,3,32,6],[34,3,34,6]]}
["EXECUÇÃO DE SERVIÇOS DE IMPLANTAÇÃO DE PAVIMENTAÇÃO EM CONCRETO BETUMINOSO USINADO A QUENTE, EM VIAS URBANAS E RURAIS DE MUNÍCIPIOS DIVERSOS INSERIDOS NA ÁREA DE ATUAÇÃO DA CODEVASF, NO ESTADO DE MINAS GERAIS - LOTE 6 (POLO: TEÓFILO OTONI/MG)",{"$nulls":8},"Extensão (km)"]
[]
[]
[]
[{"$f":"A1","v":"EXECUÇÃO DE SERVIÇOS DE IMPLANTAÇÃO DE PAVIMENTAÇÃO EM CONCRETO BETUMINOSO USINADO A QUENTE, EM VIAS URBANAS E RURAIS DE MUNÍCIPIOS DIVERSOS INSERIDOS NA ÁREA DE ATUAÇÃO DA CODEVASF, NO ESTADO DE MINAS GERAIS - LOTE 6 (POLO: TEÓFILO OTONI/MG)"}]
["ITEM","ORIGEM\nCOMPOSIÇÃO","CÓDIGO\nCOMPOSIÇÃO","DISCRIMINAÇÃO DOS SERVIÇOS",null,null,null,"BDI %:",{"$f":"BDI!D24","v":0.2135},"R$/m²",{"$f":"K40/(I15)","v":0}]
[{"$nulls":7},"Encargos Sociais:",null,"Horista","Mensalista"]
[{"$nulls":9},{"$f":"'ENC. SOCIAIS'!$E$51","v":114.53999999999999},{"$f":"'ENC. SOCIAIS'!$F$51","v":73.09}]
[{"$nulls":7},"UND","QTDE.","PREÇO UNITÁRIO COM BDI (R$)","TOTAL"]
[null,null,null,"SERVIÇOS PRELIMINARES"]
[1,"Codevasf","Composição Própria","Implantação da Obra",null,null,null,"km",12]
[2,"Codevasf","Composição Própria","Administração da Obra",null,null,null,"km",12]
[3,"Codevasf","Composição Própria","Placa de Obra em Chapa de Aço Galvanizado",null,null,null,"und",1]
[null,null,null,"TERRAPLENAGEM"]
[4,"Codevasf","Composição Própria","Serviços topográficos para pavimentação, inclusive notas de serviços, acompanhamento e greide",null,null,null,"m²",72000]
[5,"SICRO",5502114,"Escavação, carga e transporte de material de 1ª categoria - DMT de 1.000 a 1.200 m - caminho de serviço em leito natural - com escavadeira e caminhão basculante de 14 m³",null,null,null,"m³",7200]
[6,"SICRO",5502114,"Espalhamento de material em bota-fora",null,null,null,"m³",7200]
[null,null,null,"PAVIMENTAÇÃO"]
[7,"SICRO",4011463,"Concreto asfáltico - faixa C - areia e brita comerciais",null,null,null,"t",8730]
[8,"SICRO",4011351,"Imprimação com asfalto diluído",null,null,null,"m²",72000]
[9,"SICRO",4011353,"Pintura de ligação",null,null,null,"m²",72000]
[10,"SICRO",4011276,"Base ou sub-base de brita graduada com brita comercial",null,null,null,"m³",10800]
[11,"SICRO",4011256,"Base ou sub-base estabilizada granulometricamente com mistura solo brita (70% - 30%) na pista com material de jazida e brita comercial",null,null,null,"m³",10800]
[12,"SICRO",4011209,"Regularização do subleito",null,null,null,"m²",72000]
[null,null,null,"AQUISIÇÃO E TRASNPORTE DO MATERIAL BETUMINOSO"]
[13,"CODEVASF","CPU-12","AQUISIÇÃO DE CIMENTO ASFALTICO CAP 50/70",null,null,null,"t",480.15]
[14,"CODEVASF","CPU-13","AQUISIÇÃO DE ASFALTO DILUIDO CM-30",null,null,null,"t",115.2]
[15,"CODEVASF","CPU-14","AQUISIÇÃO DE EMULSÃO ASFÁLTICA RR-1C",null,null,null,"t",28.8]
[null,null,null,"SINALIZAÇÃO"]
[16,"SICRO",5213440,"Fornecimento e implantação de placa de regulamentação em aço D = 0,60 m - película retrorrefletiva tipo I + SI",null,null,null,"und",12]
[17,"SICRO",5213851,"Fornecimento e implantação de suporte metálico galvanizado para placa de regulamentação - D = 0,60 m",null,null,null,"und",12]
[null,null,null,"DRENAGEM"]
[18,"SICRO",2003373,"Meio fio de concreto - MFC 03 - areia e brita comerciais - fôrma de madeira",null,null,null,"m",24000]
[null,null,null,"LIMPEZA GERAL"]
[19,"Codevasf","Composição Própria","Limpeza Geral",null,null,null,"m²",84000]
[null,null,null,"SERVIÇOS COMPLEMENTARES"]
[20,"Codevasf","Composição Própria","Conserto de quebra no ramal na rua sem pavimento com fornecimento de material hidráulico",null,null,null,"m",1200]
[null,null,null,"PROJETO EXECUTIVO"]
[21,"Codevasf","Composição Própria","Projeto Executivo",null,null,null,"km",12]
["VALOR TOTAL DO SRP",{"$nulls":9},{"$f":"SUM(K11:K39)","v":0}]
["* De acordo com a localização da obra, os itens alterados deverão ser  justificados e aprovados na Diretoria Executiva quando da autorização certame."]

{"sheet":"CRONOGRAMA","index":6,"n_rows":27,"n_cols":19,"rows_kept":27,"cut":false,"hidden":false,"merged":[[24,0,24,1],[2,0,2,14],[1,0,1,14],[21,0,21,1],[22,0,22,1],[23,0,23,1]]}
[]
[{"$f":"MOD.L1!$A$5","v":"EXECUÇÃO DE SERVIÇOS DE IMPLANTAÇÃO DE PAVIMENTAÇÃO EM CONCRETO BETUMINOSO USINADO A QUENTE, EM VIAS URBANAS E RURAIS DE MUNÍCIPIOS DIVERSOS INSERIDOS NA ÁREA DE ATUAÇÃO DA CODEVASF, NO ESTADO DE MINAS GERAIS - LOTE 1 (POLO: SALINAS/MG)"}]
["Cronograma Físico e Financeiro "]
["Item","Descrição","Total Por Etapa","30 DIAS","60 DIAS","90 DIAS","120 DIAS","150 DIAS","180 DIAS","210 DIAS","240 DIAS","270 DIAS","300 DIAS","330 DIAS","360 DIAS"]
[null,{"$f":"MOD.L1!$D$10","v":"SERVIÇOS PRELIMINARES"},1,null,{"$f":"$C$5/11","v":9.0909090909090912E-2},{"$f":"$C$5/11","v":9.0909090909090912E-2},9.0909090909090912E-2,9.0909090909090912E-2,9.0909090909090912E-2,9.0909090909090912E-2,9.0909090909090912E-2,9.0909090909090912E-2,9.0909090909090912E-2,9.0909090909090912E-2,9.0909090909090912E-2,null,{"$f":"SUM(D5:O5)","v":1.0000000000000002}]
[null,null,{"$f":"SUM(MOD.L1!K11:K13)","v":0},null,{"$f":"$C$6*E5","v":0},0,0,0,0,0,0,0,0,0,0,null,{"$f":"SUM(D6:O6)","v":0},{"$f":"C6","v":0},{"$f":"Q6-R6","v":0}]
[null,{"$f":"MOD.L1!D14","v":"TERRAPLENAGEM"},1,null,null,{"$f":"$C$9/10","v":0.1},{"$f":"$C$9/10","v":0.1},0.1,0.1,0.1,0.1,0.1,0.1,0.1,0.1,null,{"$f":"SUM(F7:O7)","v":0.99999999999999989}]
[null,null,{"$f":"SUM(MOD.L1!K15:K17)","v":0},null,null,{"$f":"$C$8*F7","v":0},{"$f":"$C$8*G7","v":0},0,0,0,0,0,0,0,0,null,0,{"$f":"C8","v":0},{"$f":"Q8-R8","v":0}]
[null,{"$f":"MOD.L1!$D$18","v":"PAVIMENTAÇÃO"},1,null,null,{"$f":"$C$9/10","v":0.1},0.1,0.1,0.1,0.1,0.1,0.1,0.1,0.1,0.1,null,0.99999999999999989]
[null,null,{"$f":"SUM(MOD.L1!K19:K28)","v":0},null,null,{"$f":"$C$10*F9","v":0},{"$f":"$C$10*G9","v":0},0,0,0,0,0,0,0,0,null,0,{"$f":"C10","v":0},{"$f":"Q10-R10","v":0}]
[null,{"$f":"MOD.L1!$D$29","v":"SINALIZAÇÃO"},1,null,null,{"$f":"$C$11/10","v":0.1},{"$f":"(100%-$F$11)/9","v":0.1},{"$f":"(100%-$F$11)/9","v":0.1},0.1,0.1,0.1,0.1,0.1,0.1,0.1,null,0.99999999999999989]
[null,null,{"$f":"SUM(MOD.L1!K30:K31)","v":0},null,null,{"$f":"$C$12*F11","v":0},0,0,0,0,0,0,0,0,0,null,0,{"$f":"C12","v":0},0]
[null,{"$f":"MOD.L1!$D$32","v":"DRENAGEM"},1,null,null,{"$f":"$C$13/10","v":0.1},{"$f":"$C$13/10","v":0.1},0.1,0.1,0.1,0.1,0.1,0.1,0.1,0.1,null,{"$f":"SUM(D13:O13)","v":0.99999999999999989}]
[null,null,{"$f":"SUM(MOD.L1!K33)","v":0},null,null,{"$f":"$C$14*F13","v":0},{"$f":"$C$14*G13","v":0},0,0,0,0,0,0,0,0,null,0,{"$f":"C14","v":0},0]
[null,{"$f":"MOD.L1!$D$34","v":"LIMPEZA GERAL"},1,null,null,{"$f":"100%/10","v":0.1},{"$f":"100%/10","v":0.1},0.1,0.1,0.1,0.1,0.1,0.1,0.1,0.1,null,{"$f":"SUM(D15:O15)","v":0.99999999999999989}]
[null,null,{"$f":"SUM(MOD.L1!K35)","v":0},null,null,{"$f":"$C$16*F15","v":0},0,0,0,0,0,0,0,0,0,null,0,{"$f":"C16","v":0},{"$f":"Q16-R16","v":0}]
[null,{"$f":"MOD.L1!D36","v":"SERVIÇOS COMPLEMENTARES"},1,null,null,{"$f":"100%/10","v":0.1},0.1,0.1,0.1,0.1,0.1,0.1,0.1,0.1,0.1,null,{"$f":"SUM(D17:O17)","v":0.99999999999999989}]
[null,null,{"$f":"MOD.L1!K37","v":0},null,null,{"$f":"$C$18*F17","v":0},{"$f":"$C$18*G17","v":0},0,0,0,0,0,0,0,0,null,0,{"$f":"C18","v":0},{"$f":"Q18-R18","v":0}]
[null,{"$f":"MOD.L1!$D$38","v":"PROJETO EXECUTIVO"},1,0.5,0.5,{"$nulls":11},{"$f":"SUM(D19:O19)","v":1}]
[null,null,{"$f":"MOD.L1!K39","v":0},{"$f":"$C$20*D19","v":0},{"$f":"$C$20*E19","v":0},{"$nulls":11},0,{"$f":"C20","v":0},{"$f":"Q20-R20","v":0}]
[]
["Porcentagem",null,null,{"$f":"SUM(D6+D8+D10+D12+D14+D16+D18+D20)/$O$27","v":{"$error":"#DIV/0!"}},{"$f":"SUM(E6+E8+E10+E12+E14+E16+E18+E20)/$O$27","v":{"$error":"#DIV/0!"}},{"$error":"#DIV/0!"},{"$error":"#DIV/0!"},{"$error":"#DIV/0!"},{"$error":"#DIV/0!"},{"$error":"#DIV/0!"},{"$error":"#DIV/0!"},{"$error":"#DIV/0!"},{"$error":"#DIV/0!"},{"$error":"#DIV/0!"},{"$error":"#DIV/0!"}]
["Custo",null,null,{"$f":"$O$27*D22","v":{"$error":"#DIV/0!"}},{"$f":"$O$27*E22","v":{"$error":"#DIV/0!"}},{"$f":"$O$27*F22","v":{"$error":"#DIV/0!"}},{"$error":"#DIV/0!"},{"$error":"#DIV/0!"},{"$error":"#DIV/0!"},{"$error":"#DIV/0!"},{"$error":"#DIV/0!"},{"$error":"#DIV/0!"},{"$error":"#DIV/0!"},{"$error":"#DIV/0!"},{"$error":"#DIV/0!"}]
["Porcentagem Acumulado",null,null,{"$f":"D22","v":{"$error":"#DIV/0!"}},{"$f":"D24+E22","v":{"$error":"#DIV/0!"}},{"$f":"E24+F22","v":{"$error":"#DIV/0!"}},{"$error":"#DIV/0!"},{"$error":"#DIV/0!"},{"$error":"#DIV/0!"},{"$error":"#DIV/0!"},{"$error":"#DIV/0!"},{"$error":"#DIV/0!"},{"$error":"#DIV/0!"},{"$error":"#DIV/0!"},{"$error":"#DIV/0!"}]
["Custo Acumulado",null,null,{"$f":"D23","v":{"$error":"#DIV/0!"}},{"$f":"D25+E23","v":{"$error":"#DIV/0!"}},{"$error":"#DIV/0!"},{"$error":"#DIV/0!"},{"$error":"#DIV/0!"},{"$error":"#DIV/0!"},{"$error":"#DIV/0!"},{"$error":"#DIV/0!"},{"$error":"#DIV/0!"},{"$error":"#DIV/0!"},{"$error":"#DIV/0!"},{"$error":"#DIV/0!"}]
[]
[null,null,null,"Total Geral",{"$nulls":9},"R$",{"$f":"MOD.L1!K40","v":0}]

{"sheet":"Projeto Executivo","index":7,"n_rows":28,"n_cols":4,"rows_kept":28,"cut":false,"hidden":false,"merged":[[0,0,0,3],[2,0,2,1],[5,3,6,3],[9,0,9,1],[10,3,12,3],[24,0,24,1],[25,0,25,1],[26,0,26,1],[27,0,27,1],[14,0,14,1],[17,0,17,1],[18,0,18,1],[19,0,19,1],[20,0,20,1],[21,0,21,1],[23,0,23,1],[16,0,16,1]]}
["COMPOSIÇAO PREÇO PROJETO EXECUTIVO (POR KM)"]
[]
["DISCRIMINAÇAO",null,"Pr. Unit.","Pr. Total"]
[]
["A· EOUIPE TECNICA"]
[null,"A. 1 - Pessoal de Nível Superior",{"$f":"(97.78*5)+(97.78*5)","v":977.8},{"$f":"SUM(C6:C7)","v":1699.5}]
[null,"A.2 - Pessoal de Nível Técnico e Aux.",{"$f":"(16.41*10)+(27.88*20)","v":721.7}]
["B - ENCARGOS SOCIAIS"]
[null,"Taxas 72,54 % do item \"A\"",null,{"$f":"0.7254*D6","v":1232.8173000000002}]
["C - DESPESAS GERAIS"]
[null,"C.1 - MATERIAIS DE CONSUMO",808.93,{"$f":"SUM(C11:C13)","v":1378.73}]
[null,"C.2 - VEÍCULOS + COMBUSTÍVEL",{"$f":"(10*27.69)+3.38*80","v":547.29999999999995}]
[null,"C.3 - EQUIPAMENTOS",{"$f":"10*2.25","v":22.5}]
[null,"C.4 - INSTALAÇÕES E MOBILIÁRIO"]
["D - ENSAIOS"]
[null,"D.1 - ENSAIOS",{"$f":"Ensaios!F26","v":0},{"$f":"C16","v":0}]
["I - SOMA (A+B+C+D)",null,null,{"$f":"D6+D9+D11+D16","v":4311.0473000000002}]
["II - CUSTOS ADMINISTIRATIVOS (23,74 %)",null,null,{"$f":"0.2374*D17","v":1023.44262902}]
["III - SOMA",null,null,{"$f":"SUM(D17:D18)","v":5334.4899290200001}]
["VI - RELATÓRIOS",null,500,{"$f":"C20","v":500}]
["V - DESPESAS DIRETAS (3,74%)",null,{"$f":"0.0374*C20","v":18.700000000000003},{"$f":"C21","v":18.700000000000003}]
["VI - REMUNERAÇAO DA EMPRESA"]
[null,"Taxas 4,75%",{"$f":"0.0475*C21","v":0.8882500000000001},0.8882500000000001]
["VII - CONTIGÊNCIAS",null,{"$f":"0.0577*C20","v":28.85},28.85]
["VIII - SOMA",null,null,{"$f":"SUM(D20:D24)","v":548.43825000000004}]
["IX - CUSTOS ADMINISTIRATIVOS (23,74 %)",null,null,{"$f":"0.2374*D25","v":130.19924055000001}]
["III - SOMA",null,null,{"$f":"SUM(D25:D26)","v":678.63749055000005}]
["X - TOTAL",null,null,{"$f":"D27+D19","v":6013.1274195699998}]

{"sheet":"Ensaios","index":8,"n_rows":29,"n_cols":6,"rows_kept":29,"cut":false,"hidden":false,"merged":[[25,0,25,4],[26,0,26,3],[27,0,27,3],[28,0,28,3],[0,0,1,5],[2,0,2,5],[3,0,3,5],[4,0,4,2],[4,3,4,4],[5,0,5,2],[5,3,5,4]]}
["SERVIÇOS GEOLÓGICOS/GEOTÉCNICOS"]
[]
["NOME DA EMPRESA:"]
[]
["PROJETO:",null,null,"CONTRATANTE:",null,"EDITAL:"]
[null,null,null,{"$f":"[11]PFP!D6","v":"Codevasf (Sede)"}]
["Cod.","Insumos","Uni","Qde","Preço Unitário (PU)","Preço Total (PT)"]
["GT01","Ensaios em solos Umidade Natural ","un",1,null,{"$f":"ROUND(E8*D8,2)","v":0}]
["GT02","Ensaios do Frasco de Areia (in Situ)","un",1,null,0]
["GT03","Ensaios em solos Limite de Liquidez","un",1,null,0]
["GT04","Ensaios em solos Limite de Plasticidade","un",1,null,0]
["GT05","Granulometria por Peneiramento","un",1,null,0]
["GT06","Granulometria Completa","un",1,null,0]
["GT07","Massa Específica Real dos Grãos","un",1,null,0]
["GT08","Proctor Normal","un",2,null,0]
["GT09","Abrasão \"Los Angeles \"","un",1,null,0]
["GT10","Química da Areia","un",1,null,0]
["GT11","Mineralogia da Areia","un",1,null,0]
["GT12","Índice de plasticidade (IP) ","un",1,null,0]
["GT13","Índice de Grupo (IG)","un",1,null,0]
["GT14","Compactação","un",1,null,0]
["GT15","Índice de Suporte Califórnia","un",5,null,0]
["GT16","Equivalente de Areia","un",1,null,0]
["GT17","Ensaio de Expansão","un",1,null,0]
["GT18","Unidade Higroscópica","un",1,null,0]
["TOTAL SERVIÇOS GEOTÉCNICOS",{"$nulls":4},{"$f":"SUM(F8:F25)","v":0}]
["NOME DO INFORMANTE:",null,null,null,"QUALIFICAÇÃO:"]
[]
["ASSINATURA:",null,null,null,"DATA:"]

{"sheet":"BDI","index":9,"n_rows":30,"n_cols":4,"rows_kept":30,"cut":false,"hidden":false,"merged":[[4,0,4,3],[5,0,5,3],[6,0,6,3]]}
[]
["OBRA:"]
["LOCAL: "]
["DATA BASE: "]
["DETALHAMENTO DO BDI"]
["Serviços"]
["Atualização em 2013."]
[]
["Item","Descrição dos serviços","Preço de Venda (%)","Custo Direto (%)"]
[]
[1,"Administração Central (A)",null,4.0099999999999997E-2]
[]
[2,"Impostos e Taxas (I)",6.1499999999999999E-2]
["2.1","ISS",2.5000000000000001E-2]
["2.2","PIS",6.4999999999999997E-3]
["2.3","Cofins",0.03]
[]
["3","Risco, seguro e garantia (R) ",null,9.5999999999999992E-3]
[]
[4,"Despesas Financeiras (AP)",null,1.11E-2]
[]
[5,"Lucro (L)",null,7.2999999999999995E-2]
[]
[null,"BDI* (%)",null,{"$f":"ROUND(((((1+D11+D18)*(1+D20)*(1+D22))/(1-C13))-1),4)","v":0.2135}]
[]
["Considerações:"]
["Acórdão Nº 2622/2013 – TCU – Plenário"]
["(*) BDI (%) = ((((1+AC+R)*(1+DF)*(1+L))/(1-I))-1)","Médio, em área e prazo em condições normais de execução"]
["Tipo da Obra:","50% de X% (valor da tabela Prefeitura de XXX)"]
["ISS municipal:","5% (ADOTADO)"]

{"sheet":"ENC. SOCIAIS","index":10,"n_rows":51,"n_cols":6,"rows_kept":51,"cut":false,"hidden":false,"merged":[[8,0,9,5],[50,0,50,1],[10,0,10,5],[11,2,11,3],[11,4,11,5],[12,0,12,5],[13,0,14,1],[13,2,14,2],[13,3,14,3],[13,4,14,4],[13,5,14,5],[15,0,15,5],[26,0,26,5],[38,0,38,5],[45,0,45,5],[49,0,49,5]]}
[]
[]
[]
[]
[]
["NOME DA CONCORRENTE:"]
["EDITAL:"]
["FOLHA:"]
[{"$f":"MOD.L1!A1","v":"EXECUÇÃO DE SERVIÇOS DE IMPLANTAÇÃO DE PAVIMENTAÇÃO EM CONCRETO BETUMINOSO USINADO A QUENTE, EM VIAS URBANAS E RURAIS DE MUNÍCIPIOS DIVERSOS INSERIDOS NA ÁREA DE ATUAÇÃO DA CODEVASF, NO ESTADO DE MINAS GERAIS - LOTE 1 (POLO: SALINAS/MG)"}]
[]
["DETALHAMENTO DOS ENCARGOS SOCIAIS (%)"]
["VIGÊNCIA A PARTIR DE 10/2020",null,"COM DESONERAÇÃO",null,"SEM DESONERAÇÃO"]
[]
[null,null,"HORISTA","MENSALISTA","HORISTA","MENSALISTA"]
[]
["GRUPO A"]
["A1","INSS",0,0,20,20]
["A2","SESI",1.5,1.5,1.5,1.5]
["A3","SENAI",1,1,1,1]
["A4","INCRA",0.2,0.2,0.2,0.2]
["A5","SEBRAE",0.6,0.6,0.6,0.6]
["A6","Salário Educação",2.5,2.5,2.5,2.5]
["A7","Seguro Contra Acidentes de Trabalho",3,3,3,3]
["A8","FGTS",8,8,8,8]
["A9","SECONCI",1,1,1.2,1.2]
["A","Total",{"$f":"SUM(C17:C25)","v":17.8},{"$f":"SUM(D17:D25)","v":17.8},{"$f":"SUM(E17:E25)","v":38},{"$f":"SUM(F17:F25)","v":38}]
["GRUPO B"]
["B1","Repouso Semanal Remunerado",17.88,"-",17.760000000000002,"-"]
["B2","Feriados",3.94,"-",3.68,"-"]
["B3","Auxílio-enfermidade",0.91,0.69,0.87,0.67]
["B4","13° salário",10.98,8.33,10.81,8.33]
["B5","Licença-paternidade",7.0000000000000007E-2,0.06,7.0000000000000007E-2,0.06]
["B6","Faltas Justificadas",0.73,0.56000000000000005,0.72,0.56000000000000005]
["B7","Dias de chuva",1.45,"-",1.05,0]
["B8","Auxílio Acidente de Trabalho",0.11,0.09,0.11,0.08]
["B9","Férias Gozadas",11.35,8.6199999999999992,9.7200000000000006,7.49]
["B10","Salário Maternidade",0.03,0.03,0.03,0.03]
["B","Total ",{"$f":"SUM(C28:C37)","v":47.45},{"$f":"SUM(D28:D37)","v":18.380000000000003},{"$f":"SUM(E28:E37)","v":44.82},{"$f":"SUM(F28:F37)","v":17.220000000000002}]
["GRUPO C"]
["C1","Aviso Prévio Indenizado",6.76,5.14,5.83,4.5]
["C2","Aviso Prévio Trabalhado",0.16,0.12,0.14000000000000001,0.11]
["C3","Férias Indenizadas",2.2799999999999998,1.73,3.93,3.03]
["C4","Depósito Rescisão Sem Justa Causa",3.81,2.89,3.78,2.91]
["C5","Indenização Adicional",0.56999999999999995,0.43,0.49,0.38]
["C","Total ",{"$f":"SUM(C40:C44)","v":13.58},{"$f":"SUM(D40:D44)","v":10.31},{"$f":"SUM(E40:E44)","v":14.17},{"$f":"SUM(F40:F44)","v":10.930000000000001}]
["GRUPO D"]
["D1","Reincidência de A sobre B",8.4499999999999993,3.27,17.03,6.54]
["D2","Reincidência de Grupo A sobre Aviso Prévio Trabalhado e Reincidência do FGTS sobre Aviso Prévio Indenizado",0.56999999999999995,0.43,0.52,0.4]
["D","Total",{"$f":"SUM(C47:C48)","v":9.02},{"$f":"SUM(D47:D48)","v":3.7},{"$f":"SUM(E47:E48)","v":17.55},{"$f":"SUM(F47:F48)","v":6.94}]
[]
["T O T A L (%)",null,{"$f":"C26+C38+C45+C49","v":87.85},{"$f":"D26+D38+D45+D49","v":50.190000000000012},{"$f":"E26+E38+E45+E49","v":114.53999999999999},{"$f":"F26+F38+F45+F49","v":73.09}]

{"sheet":"CPU_SICRO","index":11,"n_rows":1462,"n_cols":18,"rows_kept":1462,"cut":false,"hidden":false,"merged":[[1457,2,1457,6],[1458,4,1458,6],[1458,10,1458,14],[1438,2,1438,6],[1439,2,1439,6],[1442,4,1442,5],[1442,6,1442,8],[1444,2,1444,6],[1445,4,1445,5],[1445,6,1445,8],[1447,2,1447,6],[1449,5,1449,6],[1449,7,1449,8],[1450,10,1453,15],[1452,2,1452,6],[1453,0,1454,1],[1453,2,1454,2],[1453,3,1454,3],[1453,4,1453,6],[1453,8,1454,8],[249,10,249,14],[281,10,281,14],[315,10,315,14],[309,10,311,15],[424,10,424,15],[999,10,999,15],[1161,10,1161,15],[32,10,33,16],[1425,1,1425,6],[1425,7,1425,8],[1426,0,1427,1],[1426,2,1427,2],[1426,3,1426,4],[1426,5,1426,6],[1435,4,1435,5],[1435,6,1435,8],[1437,2,1437,6],[1437,7,1437,8],[1416,2,1416,6],[1417,4,1417,6],[1397,4,1397,5],[1397,6,1397,8],[1399,2,1399,6],[1399,7,1399,8],[1400,2,1400,6],[1401,2,1401,6],[1404,4,1404,5],[1404,6,1404,8],[1405,2,1405,6],[1406,4,1406,5],[1406,6,1406,8],[1408,2,1408,6],[1410,5,1410,6],[1410,7,1410,8],[1412,2,1412,6],[1413,0,1414,1],[1413,2,1414,2],[1413,3,1414,3],[1413,4,1413,6],[1413,8,1414,8],[1376,2,1376,6],[1378,5,1378,6],[1378,7,1378,8],[1380,2,1380,6],[1381,0,1382,1],[1381,2,1382,2],[1381,3,1382,3],[1381,4,1381,6],[1381,8,1382,8],[1384,2,1384,6],[1385,4,1385,6],[1392,1,1392,6],[1392,7,1392,8],[1393,0,1394,1],[1393,2,1394,2],[1393,3,1393,4],[1393,5,1393,6],[1359,1,1359,6],[1359,7,1359,8],[1360,0,1361,1],[1360,2,1361,2],[1360,3,1360,4],[1360,5,1360,6],[1365,4,1365,5],[1365,6,1365,8],[1367,2,1367,6],[1367,7,1367,8],[1368,2,1368,6],[1369,2,1369,6],[1372,4,1372,5],[1372,6,1372,8],[1373,2,1373,6],[1374,4,1374,5],[1374,6,1374,8],[1351,2,1351,6],[1352,4,1352,6],[1345,5,1345,6],[1345,7,1345,8],[1347,2,1347,6],[1348,0,1349,1],[1348,2,1349,2],[1348,3,1349,3],[1348,4,1348,6],[1348,8,1349,8],[1339,4,1339,5],[1339,6,1339,8],[1341,2,1341,6],[1342,4,1342,5],[1342,6,1342,8],[1343,2,1343,6],[1332,4,1332,5],[1332,6,1332,8],[1334,2,1334,6],[1334,7,1334,8],[1335,2,1335,6],[1336,2,1336,6],[1320,2,1320,6],[1321,4,1321,6],[1327,1,1327,6],[1327,7,1327,8],[1328,0,1329,1],[1328,2,1329,2],[1328,3,1328,4],[1328,5,1328,6],[1310,5,1310,6],[1310,7,1310,8],[1314,2,1314,6],[1315,0,1316,1],[1315,2,1316,2],[1315,3,1316,3],[1315,4,1315,6],[1315,8,1316,8],[1301,4,1301,5],[1301,6,1301,8],[1306,2,1306,6],[1307,4,1307,5],[1307,6,1307,8],[1308,2,1308,6],[1293,4,1293,5],[1293,6,1293,8],[1296,2,1296,6],[1296,7,1296,8],[1297,2,1297,6],[1298,2,1298,6],[1278,2,1278,6],[1279,4,1279,6],[1287,1,1287,6],[1287,7,1287,8],[1288,0,1289,1],[1288,2,1289,2],[1288,3,1288,4],[1288,5,1288,6],[1274,5,1274,6],[1274,7,1274,8],[1275,2,1275,6],[1276,0,1277,1],[1276,2,1277,2],[1276,3,1277,3],[1276,4,1276,6],[1276,8,1277,8],[1265,4,1265,5],[1265,6,1265,8],[1266,2,1266,6],[1267,4,1267,5],[1267,6,1267,8],[1272,2,1272,6],[1259,4,1259,5],[1259,6,1259,8],[1260,2,1260,6],[1260,7,1260,8],[1261,2,1261,6],[1262,2,1262,6],[1248,2,1248,6],[1249,4,1249,6],[1255,1,1255,6],[1255,7,1255,8],[1256,0,1257,1],[1256,2,1257,2],[1256,3,1256,4],[1256,5,1256,6],[1242,5,1242,6],[1242,7,1242,8],[1244,2,1244,6],[1245,0,1246,1],[1245,2,1246,2],[1245,3,1246,3],[1245,4,1245,6],[1245,8,1246,8],[1236,4,1236,5],[1236,6,1236,8],[1238,2,1238,6],[1239,4,1239,5],[1239,6,1239,8],[1240,2,1240,6],[1228,4,1228,5],[1228,6,1228,8],[1231,2,1231,6],[1231,7,1231,8],[1232,2,1232,6],[1233,2,1233,6],[1217,2,1217,6],[1218,4,1218,6],[1224,1,1224,6],[1224,7,1224,8],[1225,0,1226,1],[1225,2,1226,2],[1225,3,1225,4],[1225,5,1225,6],[1213,5,1213,6],[1213,7,1213,8],[1214,2,1214,6],[1215,0,1216,1],[1215,2,1216,2],[1215,3,1216,3],[1215,4,1215,6],[1215,8,1216,8],[1208,4,1208,5],[1208,6,1208,8],[1209,2,1209,6],[1210,4,1210,5],[1210,6,1210,8],[1211,2,1211,6],[1201,4,1201,5],[1201,6,1201,8],[1203,2,1203,6],[1203,7,1203,8],[1204,2,1204,6],[1205,2,1205,6],[1190,2,1190,6],[1191,4,1191,6],[1197,1,1197,6],[1197,7,1197,8],[1198,0,1199,1],[1198,2,1199,2],[1198,3,1198,4],[1198,5,1198,6],[1184,5,1184,6],[1184,7,1184,8],[1186,2,1186,6],[1187,0,1188,1],[1187,2,1188,2],[1187,3,1188,3],[1187,4,1187,6],[1187,8,1188,8],[1178,4,1178,5],[1178,6,1178,8],[1180,2,1180,6],[1181,4,1181,5],[1181,6,1181,8],[1182,2,1182,6],[1171,4,1171,5],[1171,6,1171,8],[1173,2,1173,6],[1173,7,1173,8],[1174,2,1174,6],[1175,2,1175,6],[1160,2,1160,6],[1161,4,1161,6],[1167,1,1167,6],[1167,7,1167,8],[1168,0,1169,1],[1168,2,1169,2],[1168,3,1168,4],[1168,5,1168,6],[1146,5,1146,6],[1146,7,1146,8],[1152,2,1152,6],[1153,0,1154,1],[1153,2,1154,2],[1153,3,1154,3],[1153,4,1153,6],[1153,8,1154,8],[1136,4,1136,5],[1136,6,1136,8],[1142,2,1142,6],[1143,4,1143,5],[1143,6,1143,8],[1144,2,1144,6],[1128,4,1128,5],[1128,6,1128,8],[1131,2,1131,6],[1131,7,1131,8],[1132,2,1132,6],[1133,2,1133,6],[1112,2,1112,6],[1113,4,1113,6],[1119,1,1119,6],[1119,7,1119,8],[1120,0,1121,1],[1120,2,1121,2],[1120,3,1120,4],[1120,5,1120,6],[1108,5,1108,6],[1108,7,1108,8],[1109,2,1109,6],[1110,0,1111,1],[1110,2,1111,2],[1110,3,1111,3],[1110,4,1110,6],[1110,8,1111,8],[1103,4,1103,5],[1103,6,1103,8],[1104,2,1104,6],[1105,4,1105,5],[1105,6,1105,8],[1106,2,1106,6],[1096,4,1096,5],[1096,6,1096,8],[1098,2,1098,6],[1098,7,1098,8],[1099,2,1099,6],[1100,2,1100,6],[1083,2,1083,6],[1084,4,1084,6],[1092,1,1092,6],[1092,7,1092,8],[1093,0,1094,1],[1093,2,1094,2],[1093,3,1093,4],[1093,5,1093,6],[1079,5,1079,6],[1079,7,1079,8],[1080,2,1080,6],[1081,0,1082,1],[1081,2,1082,2],[1081,3,1082,3],[1081,4,1081,6],[1081,8,1082,8],[1069,4,1069,5],[1069,6,1069,8],[1070,2,1070,6],[1071,4,1071,5],[1071,6,1071,8],[1077,2,1077,6],[1063,4,1063,5],[1063,6,1063,8],[1064,2,1064,6],[1064,7,1064,8],[1065,2,1065,6],[1066,2,1066,6],[1052,2,1052,6],[1053,4,1053,6],[1059,1,1059,6],[1059,7,1059,8],[1060,0,1061,1],[1060,2,1061,2],[1060,3,1060,4],[1060,5,1060,6],[1048,5,1048,6],[1048,7,1048,8],[1049,2,1049,6],[1050,0,1051,1],[1050,2,1051,2],[1050,3,1051,3],[1050,4,1050,6],[1050,8,1051,8],[1043,4,1043,5],[1043,6,1043,8],[1044,2,1044,6],[1045,4,1045,5],[1045,6,1045,8],[1046,2,1046,6],[1037,4,1037,5],[1037,6,1037,8],[1038,2,1038,6],[1038,7,1038,8],[1039,2,1039,6],[1040,2,1040,6],[1025,2,1025,6],[1026,4,1026,6],[1032,1,1032,6],[1032,7,1032,8],[1033,0,1034,1],[1033,2,1034,2],[1033,3,1033,4],[1033,5,1033,6],[1021,5,1021,6],[1021,7,1021,8],[1022,2,1022,6],[1023,0,1024,1],[1023,2,1024,2],[1023,3,1024,3],[1023,4,1023,6],[1023,8,1024,8],[1016,4,1016,5],[1016,6,1016,8],[1017,2,1017,6],[1018,4,1018,5],[1018,6,1018,8],[1019,2,1019,6],[1009,4,1009,5],[1009,6,1009,8],[1011,2,1011,6],[1011,7,1011,8],[1012,2,1012,6],[1013,2,1013,6],[998,2,998,6],[999,4,999,6],[1005,1,1005,6],[1005,7,1005,8],[1006,0,1007,1],[1006,2,1007,2],[1006,3,1006,4],[1006,5,1006,6],[984,5,984,6],[984,7,984,8],[990,2,990,6],[991,0,992,1],[991,2,992,2],[991,3,992,3],[991,4,991,6],[991,8,992,8],[974,4,974,5],[974,6,974,8],[980,2,980,6],[981,4,981,5],[981,6,981,8],[982,2,982,6],[966,4,966,5],[966,6,966,8],[969,2,969,6],[969,7,969,8],[970,2,970,6],[971,2,971,6],[948,2,948,6],[949,4,949,6],[957,1,957,6],[957,7,957,8],[958,0,959,1],[958,2,959,2],[958,3,958,4],[958,5,958,6],[938,5,938,6],[938,7,938,8],[942,2,942,6],[943,0,944,1],[943,2,944,2],[943,3,944,3],[943,4,943,6],[943,8,944,8],[929,4,929,5],[929,6,929,8],[932,2,932,6],[933,4,933,5],[933,6,933,8],[936,2,936,6],[921,4,921,5],[921,6,921,8],[924,2,924,6],[924,7,924,8],[925,2,925,6],[926,2,926,6],[909,2,909,6],[910,4,910,6],[916,1,916,6],[916,7,916,8],[917,0,918,1],[917,2,918,2],[917,3,917,4],[917,5,917,6],[905,5,905,6],[905,7,905,8],[906,2,906,6],[907,0,908,1],[907,2,908,2],[907,3,908,3],[907,4,907,6],[907,8,908,8],[900,4,900,5],[900,6,900,8],[901,2,901,6],[902,4,902,5],[902,6,902,8],[903,2,903,6],[894,4,894,5],[894,6,894,8],[895,2,895,6],[895,7,895,8],[896,2,896,6],[897,2,897,6],[882,2,882,6],[883,4,883,6],[889,1,889,6],[889,7,889,8],[890,0,891,1],[890,2,891,2],[890,3,890,4],[890,5,890,6],[878,5,878,6],[878,7,878,8],[879,2,879,6],[880,0,881,1],[880,2,881,2],[880,3,881,3],[880,4,880,6],[880,8,881,8],[873,4,873,5],[873,6,873,8],[874,2,874,6],[875,4,875,5],[875,6,875,8],[876,2,876,6],[867,4,867,5],[867,6,867,8],[868,2,868,6],[868,7,868,8],[869,2,869,6],[870,2,870,6],[855,2,855,6],[856,4,856,6],[862,1,862,6],[862,7,862,8],[863,0,864,1],[863,2,864,2],[863,3,863,4],[863,5,863,6],[851,5,851,6],[851,7,851,8],[852,2,852,6],[853,0,854,1],[853,2,854,2],[853,3,854,3],[853,4,853,6],[853,8,854,8],[846,4,846,5],[846,6,846,8],[847,2,847,6],[848,4,848,5],[848,6,848,8],[849,2,849,6],[839,4,839,5],[839,6,839,8],[841,2,841,6],[841,7,841,8],[842,2,842,6],[843,2,843,6],[827,2,827,6],[828,4,828,6],[834,1,834,6],[834,7,834,8],[835,0,836,1],[835,2,836,2],[835,3,835,4],[835,5,835,6],[823,5,823,6],[823,7,823,8],[824,2,824,6],[825,0,826,1],[825,2,826,2],[825,3,826,3],[825,4,825,6],[825,8,826,8],[818,4,818,5],[818,6,818,8],[819,2,819,6],[820,4,820,5],[820,6,820,8],[821,2,821,6],[811,4,811,5],[811,6,811,8],[813,2,813,6],[813,7,813,8],[814,2,814,6],[815,2,815,6],[798,2,798,6],[799,4,799,6],[805,1,805,6],[805,7,805,8],[806,0,807,1],[806,2,807,2],[806,3,806,4],[806,5,806,6],[792,5,792,6],[792,7,792,8],[794,2,794,6],[795,0,796,1],[795,2,796,2],[795,3,796,3],[795,4,795,6],[795,8,796,8],[786,4,786,5],[786,6,786,8],[788,2,788,6],[789,4,789,5],[789,6,789,8],[790,2,790,6],[777,4,777,5],[777,6,777,8],[781,2,781,6],[781,7,781,8],[782,2,782,6],[783,2,783,6],[764,2,764,6],[765,4,765,6],[771,1,771,6],[771,7,771,8],[772,0,773,1],[772,2,773,2],[772,3,772,4],[772,5,772,6],[756,5,756,6],[756,7,756,8],[759,2,759,6],[760,0,761,1],[760,2,761,2],[760,3,761,3],[760,4,760,6],[760,8,761,8],[748,4,748,5],[748,6,748,8],[751,2,751,6],[752,4,752,5],[752,6,752,8],[754,2,754,6],[738,4,738,5],[738,6,738,8],[743,2,743,6],[743,7,743,8],[744,2,744,6],[745,2,745,6],[721,2,721,6],[722,4,722,6],[730,1,730,6],[730,7,730,8],[731,0,732,1],[731,2,732,2],[731,3,731,4],[731,5,731,6],[715,5,715,6],[715,7,715,8],[717,2,717,6],[718,0,719,1],[718,2,719,2],[718,3,719,3],[718,4,718,6],[718,8,719,8],[709,4,709,5],[709,6,709,8],[710,2,710,6],[711,4,711,5],[711,6,711,8],[713,2,713,6],[701,4,701,5],[701,6,701,8],[704,2,704,6],[704,7,704,8],[705,2,705,6],[706,2,706,6],[687,2,687,6],[688,4,688,6],[696,1,696,6],[696,7,696,8],[697,0,698,1],[697,2,698,2],[697,3,697,4],[697,5,697,6],[681,5,681,6],[681,7,681,8],[683,2,683,6],[684,0,685,1],[684,2,685,2],[684,3,685,3],[684,4,684,6],[684,8,685,8],[674,4,674,5],[674,6,674,8],[677,2,677,6],[678,4,678,5],[678,6,678,8],[679,2,679,6],[666,4,666,5],[666,6,666,8],[669,2,669,6],[669,7,669,8],[670,2,670,6],[671,2,671,6],[650,2,650,6],[651,4,651,6],[659,1,659,6],[659,7,659,8],[660,0,661,1],[660,2,661,2],[660,3,660,4],[660,5,660,6],[644,5,644,6],[644,7,644,8],[646,2,646,6],[647,0,648,1],[647,2,648,2],[647,3,648,3],[647,4,647,6],[647,8,648,8],[637,4,637,5],[637,6,637,8],[640,2,640,6],[641,4,641,5],[641,6,641,8],[642,2,642,6],[629,4,629,5],[629,6,629,8],[632,2,632,6],[632,7,632,8],[633,2,633,6],[634,2,634,6],[615,2,615,6],[616,4,616,6],[622,1,622,6],[622,7,622,8],[623,0,624,1],[623,2,624,2],[623,3,623,4],[623,5,623,6],[611,5,611,6],[611,7,611,8],[612,2,612,6],[613,0,614,1],[613,2,614,2],[613,3,614,3],[613,4,613,6],[613,8,614,8],[606,4,606,5],[606,6,606,8],[607,2,607,6],[608,4,608,5],[608,6,608,8],[609,2,609,6],[600,4,600,5],[600,6,600,8],[601,2,601,6],[601,7,601,8],[602,2,602,6],[603,2,603,6],[588,2,588,6],[589,4,589,6],[595,1,595,6],[595,7,595,8],[596,0,597,1],[596,2,597,2],[596,3,596,4],[596,5,596,6],[584,5,584,6],[584,7,584,8],[585,2,585,6],[586,0,587,1],[586,2,587,2],[586,3,587,3],[586,4,586,6],[586,8,587,8],[579,4,579,5],[579,6,579,8],[580,2,580,6],[581,4,581,5],[581,6,581,8],[582,2,582,6],[572,4,572,5],[572,6,572,8],[574,2,574,6],[574,7,574,8],[575,2,575,6],[576,2,576,6],[558,2,558,6],[559,4,559,6],[567,1,567,6],[567,7,567,8],[568,0,569,1],[568,2,569,2],[568,3,568,4],[568,5,568,6],[544,5,544,6],[544,7,544,8],[550,2,550,6],[551,0,552,1],[551,2,552,2],[551,3,552,3],[551,4,551,6],[551,8,552,8],[534,4,534,5],[534,6,534,8],[540,2,540,6],[541,4,541,5],[541,6,541,8],[542,2,542,6],[526,4,526,5],[526,6,526,8],[529,2,529,6],[529,7,529,8],[530,2,530,6],[531,2,531,6],[511,2,511,6],[512,4,512,6],[520,1,520,6],[520,7,520,8],[521,0,522,1],[521,2,522,2],[521,3,521,4],[521,5,521,6],[507,5,507,6],[507,7,507,8],[508,2,508,6],[509,0,510,1],[509,2,510,2],[509,3,510,3],[509,4,509,6],[509,8,510,8],[502,4,502,5],[502,6,502,8],[503,2,503,6],[504,4,504,5],[504,6,504,8],[505,2,505,6],[495,4,495,5],[495,6,495,8],[497,2,497,6],[497,7,497,8],[498,2,498,6],[499,2,499,6],[478,2,478,6],[479,4,479,6],[485,1,485,6],[485,7,485,8],[486,0,487,1],[486,2,487,2],[486,3,486,4],[486,5,486,6],[474,5,474,6],[474,7,474,8],[475,2,475,6],[476,0,477,1],[476,2,477,2],[476,3,477,3],[476,4,476,6],[476,8,477,8],[469,4,469,5],[469,6,469,8],[470,2,470,6],[471,4,471,5],[471,6,471,8],[472,2,472,6],[463,4,463,5],[463,6,463,8],[464,2,464,6],[464,7,464,8],[465,2,465,6],[466,2,466,6],[451,2,451,6],[452,4,452,6],[458,1,458,6],[458,7,458,8],[459,0,460,1],[459,2,460,2],[459,3,459,4],[459,5,459,6],[447,5,447,6],[447,7,447,8],[448,2,448,6],[449,0,450,1],[449,2,450,2],[449,3,450,3],[449,4,449,6],[449,8,450,8],[442,4,442,5],[442,6,442,8],[443,2,443,6],[444,4,444,5],[444,6,444,8],[445,2,445,6],[435,4,435,5],[435,6,435,8],[437,2,437,6],[437,7,437,8],[438,2,438,6],[439,2,439,6],[421,2,421,6],[422,4,422,6],[430,1,430,6],[430,7,430,8],[431,0,432,1],[431,2,432,2],[431,3,431,4],[431,5,431,6],[415,5,415,6],[415,7,415,8],[417,2,417,6],[418,0,419,1],[418,2,419,2],[418,3,419,3],[418,4,418,6],[418,8,419,8],[409,4,409,5],[409,6,409,8],[410,2,410,6],[411,4,411,5],[411,6,411,8],[413,2,413,6],[402,4,402,5],[402,6,402,8],[404,2,404,6],[404,7,404,8],[405,2,405,6],[406,2,406,6],[385,2,385,6],[386,4,386,6],[392,1,392,6],[392,7,392,8],[393,0,394,1],[393,2,394,2],[393,3,393,4],[393,5,393,6],[381,5,381,6],[381,7,381,8],[382,2,382,6],[383,0,384,1],[383,2,384,2],[383,3,384,3],[383,4,383,6],[383,8,384,8],[376,4,376,5],[376,6,376,8],[377,2,377,6],[378,4,378,5],[378,6,378,8],[379,2,379,6],[370,4,370,5],[370,6,370,8],[371,2,371,6],[371,7,371,8],[372,2,372,6],[373,2,373,6],[358,2,358,6],[359,4,359,6],[365,1,365,6],[365,7,365,8],[366,0,367,1],[366,2,367,2],[366,3,366,4],[366,5,366,6],[346,5,346,6],[346,7,346,8],[351,2,351,6],[352,0,353,1],[352,2,353,2],[352,3,353,3],[352,4,352,6],[352,8,353,8],[337,4,337,5],[337,6,337,8],[342,2,342,6],[343,4,343,5],[343,6,343,8],[344,2,344,6],[330,4,330,5],[330,6,330,8],[332,2,332,6],[332,7,332,8],[333,2,333,6],[334,2,334,6],[314,2,314,6],[315,4,315,6],[323,1,323,6],[323,7,323,8],[324,0,325,1],[324,2,325,2],[324,3,324,4],[324,5,324,6],[308,5,308,6],[308,7,308,8],[310,2,310,6],[311,0,312,1],[311,2,312,2],[311,3,312,3],[311,4,311,6],[311,8,312,8],[302,4,302,5],[302,6,302,8],[303,2,303,6],[304,4,304,5],[304,6,304,8],[306,2,306,6],[295,4,295,5],[295,6,295,8],[297,2,297,6],[297,7,297,8],[298,2,298,6],[299,2,299,6],[278,2,278,6],[279,4,279,6],[287,1,287,6],[287,7,287,8],[288,0,289,1],[288,2,289,2],[288,3,288,4],[288,5,288,6],[274,5,274,6],[274,7,274,8],[275,2,275,6],[276,0,277,1],[276,2,277,2],[276,3,277,3],[276,4,276,6],[276,8,277,8]],"merged_total":1242,"flags":["merged_cut"]}
[{"$nulls":12},"ESTADO MINAS GERAIS",null,null,"DMT",80,"Da usina para a obra"]
["CGCIT",{"$nulls":7},"DNIT",null,null,null," JANEIRO 2021",null,null,"DMT",10,"Areeira para usina"]
["SISTEMA DE CUSTOS REFERENCIAIS DE OBRAS - SICRO",null,null,{"$f":"$M$1","v":"ESTADO MINAS GERAIS"},{"$nulls":11},"DMT",5,"Pedreira para usina"]
["Custo Unitário de Referência",null,null,{"$f":"M2","v":" JANEIRO 2021"},null,null,"Produção da equipe",99.6,"t",{"$nulls":6},"DMT",5,"Jazida para obra (base)"]
[4011463,"Concreto asfáltico - faixa C - areia e brita comerciais",{"$nulls":5},"Valores em reais (R$)",{"$nulls":7},"DMT",5,"Bota-Fora"]
["A - EQUIPAMENTOS",null,"Quantidade","Utilização",null,"Custo Horário",null,null,"Custo",{"$nulls":6},"DMT",1,"Geral - Canteiro pra obra"]
[null,null,null,"Operativa","Improdutiva","Produtivo","Improdutivo",null,"Horário Total"]
["E9762","Rolo compactador de pneus autopropelido de 27 t - 85 kW",1,0.71,0.29000000000000004,{"$f":"VLOOKUP($A8,#REF!,8,0)","v":{"$error":"#REF!"}},{"$f":"VLOOKUP($A8,#REF!,7,0)","v":{"$error":"#REF!"}},null,{"$f":"ROUND((C8*(D8*F8))+(C8*(E8*G8)),4)","v":{"$error":"#REF!"}}]
["E9681","Rolo compactador liso tandem vibratório autopropelido de 10,4 t - 82 Kw",1,0.82,0.18000000000000005,{"$f":"VLOOKUP($A9,#REF!,8,0)","v":{"$error":"#REF!"}},{"$f":"VLOOKUP($A9,#REF!,7,0)","v":{"$error":"#REF!"}},null,{"$error":"#REF!"}]
["E9545","Vibroacabadora de asfalto sobre esteiras - 82 kW",1,1,0,{"$f":"VLOOKUP($A10,#REF!,8,0)","v":{"$error":"#REF!"}},{"$f":"VLOOKUP($A10,#REF!,7,0)","v":{"$error":"#REF!"}},null,{"$error":"#REF!"}]
[{"$nulls":6},"Custo horário total de equipamentos",null,{"$f":"SUM(I8:I10)","v":{"$error":"#REF!"}}]
["B - MÃO DE OBRA",null,"Quantidade","Unidade","Custo Horário",null,"Custo Horário Total"]
["P9824","Servente",8,"h",{"$f":"VLOOKUP($A13,#REF!,6,0)","v":{"$error":"#REF!"}},null,null,null,{"$f":"ROUND(C13*E13,4)","v":{"$error":"#REF!"}}]
[null,null,"Custo horário total de mão de obra",{"$nulls":4},{"$f":"SUM(I13)","v":{"$error":"#REF!"}}]
[null,null,"Custo horário total de execução",{"$nulls":5},{"$f":"SUM(H14,I11)","v":{"$error":"#REF!"}},560]
[null,null,"Custo unitário de execução",{"$nulls":5},{"$f":"I15/H4","v":{"$error":"#REF!"}}]
[{"$nulls":6},"Custo do FIC",1.7600000000000001E-3,{"$f":"I16*H17","v":{"$error":"#REF!"}}]
[{"$nulls":6},"Custo do FIT",null,"-"]
["C - MATERIAL",null,"Quantidade","Unidade","Preço Unitário",null,"Custo Unitário"]
[null,null,"Custo unitário total de material"]
["D - ATIVIDADES AUXILIARES",null,"Quantidade","Unidade","Custo Unitário",null,"Custo Unitário"]
[6416078,"Usinagem de concreto asfáltico - faixa C - areia e brita comerciais",1.02,"t",null,{"$f":"I83","v":{"$error":"#REF!"}},null,null,{"$f":"ROUND(C22*F22,4)","v":{"$error":"#REF!"}}]
[null,null,"Custo total de atividades auxiliares",{"$nulls":5},{"$f":"SUM(I22)","v":{"$error":"#REF!"}},113.5]
[{"$nulls":6},"Subtotal",null,{"$f":"SUM(I23,I17,I16,I18)","v":{"$error":"#REF!"}},119.15]
["E - TEMPO FIXO",null,"Código","Quantidade","Unidade","Custo Unitário",null,"Custo Unitário"]
[6416078,"Usinagem de concreto asfáltico - faixa C - areia e brita comerciais - Caminhão basculante 10 m³",5914649,1.02,"t",null,{"$f":"I218","v":{"$error":"#REF!"}},null,{"$f":"ROUND(D26*G26,4)","v":{"$error":"#REF!"}}]
[null,null,"Custo unitário total de tempo fixo",{"$nulls":5},{"$f":"SUM(I26)","v":{"$error":"#REF!"}},4.2699999999999996]
["F - MOMENTO DE TRANSPORTE",null,"Quantidade","Unidade","DMT",null,null,null,"Custo Unitário"]
[{"$nulls":4},"LN","RP","P"]
[6416078,"Usinagem de concreto asfáltico - faixa C - areia e brita comerciais - Caminhão basculante 10 m³",1.02,"tkm",null,null,{"$f":"$Q$1","v":80},null,{"$f":"ROUND((C30*G30)*$I$164,4)","v":{"$error":"#REF!"}}]
[null,null,"Custo unitário total de transporte",{"$nulls":5},{"$f":"SUM(I30)","v":{"$error":"#REF!"}}]
[{"$nulls":4},"Custo unitário direto total",null,null,null,{"$f":"SUM(I31,I27,I24)","v":{"$error":"#REF!"}}]
[{"$nulls":5},"BDI",{"$f":"'[12]Médio Porte'!$D$24","v":0.2374},null,{"$f":"ROUND(I32*G33,4)","v":{"$error":"#REF!"}},null,"SEM O CUSTO DA MASSA E DO MOMENTO DE TRANSPORTE"]
[{"$nulls":6},"Preço Unitário:",null,{"$f":"SUM(I32,I33)","v":{"$error":"#REF!"}},123.43]
["Obs."]
[]
["CGCIT",{"$nulls":7},"DNIT"]
["SISTEMA DE CUSTOS REFERENCIAIS DE OBRAS - SICRO",null,null,{"$f":"$M$1","v":"ESTADO MINAS GERAIS"}]
["Custo Unitário de Referência",null,null,{"$f":"M2","v":" JANEIRO 2021"},null,null,"Produção da equipe",99.6,"t"]
[6416078,"Usinagem de concreto asfáltico - faixa C - areia e brita comerciais",{"$nulls":5},"Valores em reais (R$)"]
["A - EQUIPAMENTOS",null,"Quantidade","Utilização",null,"Custo Horário",null,null,"Custo"]
[null,null,null,"Operativa","Improdutiva","Produtivo","Improdutivo",null,"Horário Total"]
["E9559","Aquecedor de fluido térmico - 12 kW",1,1,0,{"$f":"VLOOKUP($A43,#REF!,8,0)","v":{"$error":"#REF!"}},{"$f":"VLOOKUP($A43,#REF!,7,0)","v":{"$error":"#REF!"}},null,{"$f":"ROUND((C43*(D43*F43))+(C43*(E43*G43)),4)","v":{"$error":"#REF!"}}]
["E9584","Carregadeira de pneus com capacidade de 1,72 m³ - 113 kW",1,0.8,0.19999999999999996,{"$f":"VLOOKUP($A44,#REF!,8,0)","v":{"$error":"#REF!"}},{"$f":"VLOOKUP($A44,#REF!,7,0)","v":{"$error":"#REF!"}},null,{"$error":"#REF!"}]
["E9021","Grupo gerador - 456 kVA",1,1,0,{"$f":"VLOOKUP($A45,#REF!,8,0)","v":{"$error":"#REF!"}},{"$f":"VLOOKUP($A45,#REF!,7,0)","v":{"$error":"#REF!"}},null,{"$error":"#REF!"}]
["E9558","Tanque de estocagem de asfalto com capacidade de 30.000 l",2,1,0,{"$f":"VLOOKUP($A46,#REF!,8,0)","v":{"$error":"#REF!"}},{"$f":"VLOOKUP($A46,#REF!,7,0)","v":{"$error":"#REF!"}},null,{"$error":"#REF!"}]
["E9689","Usina de asfalto a quente gravimétrica com capacidade de 100/140 t/h - 260 kW",1,1,0,{"$f":"VLOOKUP($A47,#REF!,8,0)","v":{"$error":"#REF!"}},{"$f":"VLOOKUP($A47,#REF!,7,0)","v":{"$error":"#REF!"}},null,{"$error":"#REF!"}]
[{"$nulls":6},"Custo horário total de equipamentos",null,{"$f":"SUM(I43:I47)","v":{"$error":"#REF!"}},1324.34]
["B - MÃO DE OBRA",null,"Quantidade","Unidade","Custo Horário",null,"Custo Horário Total"]
["P9824","Servente",4,"h",{"$f":"VLOOKUP($A50,#REF!,6,0)","v":{"$error":"#REF!"}},null,null,null,{"$f":"ROUND(C50*E50,4)","v":{"$error":"#REF!"}}]
[null,null,"Custo horário total de mão de obra",{"$nulls":4},{"$f":"SUM(I50)","v":{"$error":"#REF!"}}]
[null,null,"Custo horário total de execução",{"$nulls":5},{"$f":"SUM(I48,H51)","v":{"$error":"#REF!"}},1389]
[null,null,"Custo unitário de execução",{"$nulls":5},{"$f":"I52/H39","v":{"$error":"#REF!"}},13.95]
[{"$nulls":6},"Custo do FIC",null,"-"]
[{"$nulls":6},"Custo do FIT",null,"-"]
["C - MATERIAL",null,"Quantidade","Unidade","Preço Unitário",null,"Custo Unitário"]
["M0028","Areia média",0.32474999999999998,"m³",null,{"$f":"VLOOKUP($A57,#REF!,5,0)","v":{"$error":"#REF!"}},null,null,{"$f":"ROUND(C57*F57,4)","v":{"$error":"#REF!"}}]
["M0005","Brita 0",6.2449999999999999E-2,"m³",null,{"$f":"VLOOKUP($A58,#REF!,5,0)","v":{"$error":"#REF!"}},null,null,{"$f":"ROUND(C58*F58,4)","v":{"$error":"#REF!"}}]
["M0191","Brita 1",6.2449999999999999E-2,"m³",null,{"$f":"VLOOKUP($A59,#REF!,5,0)","v":{"$error":"#REF!"}},null,null,{"$error":"#REF!"}]
["M0344","Cal hidratada - a granel",56.2,"kg",null,{"$f":"VLOOKUP($A60,#REF!,5,0)","v":{"$error":"#REF!"}},null,null,{"$error":"#REF!"}]
["M1943","Cimento asfáltico CAP 50/70",6.3229999999999995E-2,"t",null,{"$f":"VLOOKUP($A61,#REF!,5,0)","v":{"$error":"#REF!"}},null,null,{"$error":"#REF!"},0]
["M1941","Óleo combustível 1A",8,"l",null,{"$f":"VLOOKUP($A62,#REF!,5,0)","v":{"$error":"#REF!"}},null,null,{"$error":"#REF!"}]
["M1103","Pedrisco",0.13739000000000001,"m³",null,{"$f":"VLOOKUP($A63,#REF!,5,0)","v":{"$error":"#REF!"}},null,null,{"$error":"#REF!"}]
[null,null,"Custo unitário total de material",{"$nulls":5},{"$f":"SUM(I57:I63)","v":{"$error":"#REF!"}}]
["D - ATIVIDADES AUXILIARES",null,"Quantidade","Unidade","Custo Unitário",null,"Custo Unitário"]
[null,null,"Custo total de atividades auxiliares"]
[{"$nulls":6},"Subtotal",null,{"$f":"SUM(I64,I53,I54,I55)","v":{"$error":"#REF!"}}]
["E - TEMPO FIXO",null,"Código","Quantidade","Unidade","Custo Unitário",null,"Custo Unitário"]
["M0028","Areia média - Caminhão basculante 10 m³",5914647,0.48713000000000001,"t",null,{"$f":"$I$110","v":{"$error":"#REF!"}},null,{"$f":"ROUND(D69*G69,4)","v":{"$error":"#REF!"}}]
["M0005","Brita 0 - Caminhão basculante 10 m³",5914647,9.3679999999999999E-2,"t",null,{"$f":"$I$110","v":{"$error":"#REF!"}},null,{"$f":"ROUND(D70*G70,4)","v":{"$error":"#REF!"}}]
["M0191","Brita 1 - Caminhão basculante 10 m³",5914647,9.3679999999999999E-2,"t",null,{"$error":"#REF!"},null,{"$error":"#REF!"}]
["M0344","Cal hidratada - a granel - Caminhão silo 30 m³",5914363,5.62E-2,"t",null,{"$f":"$I$137","v":{"$error":"#REF!"}},null,{"$error":"#REF!"}]
["M1103","Pedrisco - Caminhão basculante 10 m³",5914647,0.20609,"t",null,{"$error":"#REF!"},null,{"$error":"#REF!"}]
[null,null,"Custo unitário total de tempo fixo",{"$nulls":5},{"$f":"SUM(I69:I73)","v":{"$error":"#REF!"}},1.4283999999999999]
["F - MOMENTO DE TRANSPORTE",null,"Quantidade","Unidade","DMT",null,null,null,"Custo Unitário"]
[{"$nulls":4},"LN","RP","P"]
["M0028","Areia média - Caminhão basculante 10 m³",0.48713000000000001,"tkm",null,null,{"$f":"$Q$2","v":10},null,{"$f":"ROUND((C77*G77)*$I$164,4)","v":{"$error":"#REF!"}},null,5914389]
["M0005","Brita 0 - Caminhão basculante 10 m³",9.3679999999999999E-2,"tkm",null,null,{"$f":"$Q$3","v":5},null,{"$f":"ROUND((C78*G78)*$I$164,4)","v":{"$error":"#REF!"}},null,5914389]
["M0191","Brita 1 - Caminhão basculante 10 m³",9.3679999999999999E-2,"tkm",null,null,{"$f":"$Q$3","v":5},null,{"$f":"ROUND((C79*G79)*$I$164,4)","v":{"$error":"#REF!"}},null,5914389]
["M0344","Cal hidratada - a granel - Caminhão silo 30 m³",5.62E-2,"tkm",null,null,{"$f":"$Q$3","v":5},null,{"$f":"ROUND((C80*G80)*$I$191,4)","v":{"$error":"#REF!"}},null,5914366]
["M1103","Pedrisco - Caminhão basculante 10 m³",0.20609,"tkm",null,null,{"$f":"$Q$3","v":5},null,{"$f":"ROUND((C81*G81)*$I$164,4)","v":{"$error":"#REF!"}},null,5914389]
[null,null,"Custo unitário total de transporte",{"$nulls":5},{"$f":"SUM(I77:I81)","v":{"$error":"#REF!"}}]
[{"$nulls":4},"Custo unitário direto total",null,null,null,{"$f":"ROUND(SUM(I82,I74,I67),2)","v":{"$error":"#REF!"}},111.28]
["Obs."]
[]
["CGCIT",{"$nulls":7},"DNIT"]
["SISTEMA DE CUSTOS REFERENCIAIS DE OBRAS - SICRO",null,null,{"$f":"$M$1","v":"ESTADO MINAS GERAIS"}]
["Custo Unitário de Referência",null,null,{"$f":"M2","v":" JANEIRO 2021"},null,null,"Produção da equipe",457.16,"t"]
[5914647,"Carga, manobra e descarga de agregados ou solos em caminhão basculante de 10 m³ - carga com carregadeira de 3,40 m³ (exclusa) e descarga livre",{"$nulls":5},"Valores em reais (R$)"]
["A - EQUIPAMENTOS",null,"Quantidade","Utilização",null,"Custo Horário",null,null,"Custo"]
[null,null,null,"Operativa","Improdutiva","Produtivo","Improdutivo",null,"Horário Total"]
["E9579","Caminhão basculante com capacidade de 10 m³ - 188 kW",3,0.86,0.14000000000000001,{"$f":"VLOOKUP($A92,#REF!,8,0)","v":{"$error":"#REF!"}},{"$f":"VLOOKUP($A92,#REF!,7,0)","v":{"$error":"#REF!"}},null,{"$f":"ROUND((C92*(D92*F92))+(C92*(E92*G92)),4)","v":{"$error":"#REF!"}}]
[{"$nulls":6},"Custo horário total de equipamentos",null,{"$f":"SUM(I92)","v":{"$error":"#REF!"}},434.37]
["B - MÃO DE OBRA",null,"Quantidade","Unidade","Custo Horário",null,"Custo Horário Total"]
[null,null,"Custo horário total de mão de obra",{"$nulls":4},"-"]
[null,null,"Custo horário total de execução",{"$nulls":5},{"$f":"SUM(I93)","v":{"$error":"#REF!"}}]
[null,null,"Custo unitário de execução",{"$nulls":5},{"$f":"I96/H88","v":{"$error":"#REF!"}}]
[{"$nulls":6},"Custo do FIC",null,"-"]
[{"$nulls":6},"Custo do FIT",null,"-"]
["C - MATERIAL",null,"Quantidade","Unidade","Preço Unitário",null,"Custo Unitário"]
[null,null,"Custo unitário total de material"]
["D - ATIVIDADES AUXILIARES",null,"Quantidade","Unidade","Custo Unitário",null,"Custo Unitário"]
[null,null,"Custo total de atividades auxiliares"]
[{"$nulls":6},"Subtotal",null,{"$f":"SUM(I97,I98,I99)","v":{"$error":"#REF!"}}]
["E - TEMPO FIXO",null,"Código","Quantidade","Unidade","Custo Unitário",null,"Custo Unitário"]
[null,null,"Custo unitário total de tempo fixo"]
["F - MOMENTO DE TRANSPORTE",null,"Quantidade","Unidade","DMT",null,null,null,"Custo Unitário"]
[{"$nulls":4},"LN","RP","P"]
[null,null,"Custo unitário total de transporte"]
[{"$nulls":4},"Custo unitário direto total",null,null,null,{"$f":"ROUND(SUM(I104),4)","v":{"$error":"#REF!"}},0.95]
["Obs."]
[]
["CGCIT",{"$nulls":7},"DNIT"]
["SISTEMA DE CUSTOS REFERENCIAIS DE OBRAS - SICRO",null,null,{"$f":"$M$1","v":"ESTADO MINAS GERAIS"}]
["Custo Unitário de Referência",null,null,{"$f":"M2","v":" JANEIRO 2021"},null,null,"Produção da equipe",25.97,"t"]
[5914363,"Carga, manobra e descarga de cimento a granel em caminhão silo de 30 m³",{"$nulls":5},"Valores em reais (R$)"]
["A - EQUIPAMENTOS",null,"Quantidade","Utilização",null,"Custo Horário",null,null,"Custo"]
[null,null,null,"Operativa","Improdutiva","Produtivo","Improdutivo",null,"Horário Total"]
["E9146","Caminhão silo com capacidade de 30 m³ - 265 kW",1,1,0,{"$f":"VLOOKUP($A119,#REF!,8,0)","v":{"$error":"#REF!"}},{"$f":"VLOOKUP($A119,#REF!,7,0)","v":{"$error":"#REF!"}},null,{"$f":"ROUND((C119*(D119*F119))+(C119*(E119*G119)),4)","v":{"$error":"#REF!"}}]
[{"$nulls":6},"Custo horário total de equipamentos",null,{"$f":"SUM(I119)","v":{"$error":"#REF!"}}]
["B - MÃO DE OBRA",null,"Quantidade","Unidade","Custo Horário",null,"Custo Horário Total"]
[null,null,"Custo horário total de mão de obra",{"$nulls":4},"-"]
[null,null,"Custo horário total de execução",{"$nulls":5},{"$f":"SUM(I120)","v":{"$error":"#REF!"}},273.39999999999998]
[null,null,"Custo unitário de execução",{"$nulls":5},{"$f":"I123/H115","v":{"$error":"#REF!"}}]
[{"$nulls":6},"Custo do FIC",null,"-"]
[{"$nulls":6},"Custo do FIT",null,"-"]
["C - MATERIAL",null,"Quantidade","Unidade","Preço Unitário",null,"Custo Unitário"]
[null,null,"Custo unitário total de material"]
["D - ATIVIDADES AUXILIARES",null,"Quantidade","Unidade","Custo Unitário",null,"Custo Unitário"]
[null,null,"Custo total de atividades auxiliares"]
[{"$nulls":6},"Subtotal",null,{"$f":"SUM(I124,I125,I126)","v":{"$error":"#REF!"}}]
["E - TEMPO FIXO",null,"Código","Quantidade","Unidade","Custo Unitário",null,"Custo Unitário"]
[null,null,"Custo unitário total de tempo fixo"]
["F - MOMENTO DE TRANSPORTE",null,"Quantidade","Unidade","DMT",null,null,null,"Custo Unitário"]
[{"$nulls":4},"LN","RP","P"]
[null,null,"Custo unitário total de transporte"]
[{"$nulls":4},"Custo unitário direto total",null,null,null,{"$f":"ROUND(SUM(I131),2)","v":{"$error":"#REF!"}},10.53]
["Obs."]
[]
["CGCIT",{"$nulls":7},"DNIT"]
["SISTEMA DE CUSTOS REFERENCIAIS DE OBRAS - SICRO",null,null,{"$f":"$M$1","v":"ESTADO MINAS GERAIS"}]
["Custo Unitário de Referência",null,null,{"$f":"M2","v":" JANEIRO 2021"},null,null,"Produção da equipe",373.5,"tkm"]
[5914389,"Transporte com caminhão basculante de 10 m³ - rodovia pavimentada",{"$nulls":5},"Valores em reais (R$)"]
["A - EQUIPAMENTOS",null,"Quantidade","Utilização",null,"Custo Horário",null,null,"Custo"]
[null,null,null,"Operativa","Improdutiva","Produtivo","Improdutivo",null,"Horário Total"]
["E9579","Caminhão basculante com capacidade de 10 m³ - 188 kW",1,1,0,{"$f":"VLOOKUP($A146,#REF!,8,0)","v":{"$error":"#REF!"}},{"$f":"VLOOKUP($A146,#REF!,7,0)","v":{"$error":"#REF!"}},null,{"$f":"ROUND((C146*(D146*F146))+(C146*(E146*G146)),4)","v":{"$error":"#REF!"}}]
[{"$nulls":6},"Custo horário total de equipamentos",null,{"$f":"SUM(I146)","v":{"$error":"#REF!"}},160.66999999999999]
["B - MÃO DE OBRA",null,"Quantidade","Unidade","Custo Horário",null,"Custo Horário Total"]
[null,null,"Custo horário total de mão de obra",{"$nulls":4},"-"]
[null,null,"Custo horário total de execução",{"$nulls":5},{"$f":"SUM(I147)","v":{"$error":"#REF!"}}]
[null,null,"Custo unitário de execução",{"$nulls":5},{"$f":"I150/H142","v":{"$error":"#REF!"}}]
[{"$nulls":6},"Custo do FIC",null,"-"]
[{"$nulls":6},"Custo do FIT",null,"-"]
["C - MATERIAL",null,"Quantidade","Unidade","Preço Unitário",null,"Custo Unitário"]
[null,null,"Custo unitário total de material"]
["D - ATIVIDADES AUXILIARES",null,"Quantidade","Unidade","Custo Unitário",null,"Custo Unitário"]
[null,null,"Custo total de atividades auxiliares"]
[{"$nulls":6},"Subtotal",null,{"$f":"SUM(I151,I152,I153)","v":{"$error":"#REF!"}}]
["E - TEMPO FIXO",null,"Código","Quantidade","Unidade","Custo Unitário",null,"Custo Unitário"]
[null,null,"Custo unitário total de tempo fixo"]
["F - MOMENTO DE TRANSPORTE",null,"Quantidade","Unidade","DMT",null,null,null,"Custo Unitário"]
[{"$nulls":4},"LN","RP","P"]
[null,null,"Custo unitário total de transporte",{"$nulls":5},"-"]
[{"$nulls":4},"Custo unitário direto total",null,null,null,{"$f":"ROUND(SUM(I158),2)","v":{"$error":"#REF!"}},0.43]
["Obs."]
[]
["CGCIT",{"$nulls":7},"DNIT"]
["SISTEMA DE CUSTOS REFERENCIAIS DE OBRAS - SICRO",null,null,{"$f":"$M$1","v":"ESTADO MINAS GERAIS"}]
["Custo Unitário de Referência",null,null,{"$f":"M2","v":" JANEIRO 2021"},null,null,"Produção da equipe",779.12,"tkm"]
[5914366,"Transporte de cimento a granel com caminhão silo de 30 m³ - rodovia pavimentada",{"$nulls":5},"Valores em reais (R$)"]
["A - EQUIPAMENTOS",null,"Quantidade","Utilização",null,"Custo Horário",null,null,"Custo"]
[null,null,null,"Operativa","Improdutiva","Produtivo","Improdutivo",null,"Horário Total"]
["E9146","Caminhão silo com capacidade de 30 m³ - 265 kW",1,1,0,{"$f":"VLOOKUP($A173,#REF!,8,0)","v":{"$error":"#REF!"}},{"$f":"VLOOKUP($A173,#REF!,7,0)","v":{"$error":"#REF!"}},null,{"$f":"ROUND((C173*(D173*F173))+(C173*(E173*G173)),4)","v":{"$error":"#REF!"}}]
[{"$nulls":6},"Custo horário total de equipamentos",null,{"$f":"SUM(I173)","v":{"$error":"#REF!"}}]
["B - MÃO DE OBRA",null,"Quantidade","Unidade","Custo Horário",null,"Custo Horário Total"]
[null,null,"Custo horário total de mão de obra",{"$nulls":4},"-"]
[null,null,"Custo horário total de execução",{"$nulls":5},{"$f":"SUM(I174)","v":{"$error":"#REF!"}}]
[null,null,"Custo unitário de execução",{"$nulls":5},{"$f":"I177/H169","v":{"$error":"#REF!"}}]
[{"$nulls":6},"Custo do FIC",null,"-"]
[{"$nulls":6},"Custo do FIT",null,"-"]
["C - MATERIAL",null,"Quantidade","Unidade","Preço Unitário",null,"Custo Unitário"]
[null,null,"Custo unitário total de material"]
["D - ATIVIDADES AUXILIARES",null,"Quantidade","Unidade","Custo Unitário",null,"Custo Unitário"]
[null,null,"Custo total de atividades auxiliares"]
[{"$nulls":6},"Subtotal",null,{"$f":"SUM(I178,I179,I180)","v":{"$error":"#REF!"}}]
["E - TEMPO FIXO",null,"Código","Quantidade","Unidade","Custo Unitário",null,"Custo Unitário"]
[null,null,"Custo unitário total de tempo fixo"]
["F - MOMENTO DE TRANSPORTE",null,"Quantidade","Unidade","DMT",null,null,null,"Custo Unitário"]
[{"$nulls":4},"LN","RP","P"]
[null,null,"Custo unitário total de transporte",{"$nulls":5},"-"]
[{"$nulls":4},"Custo unitário direto total",null,null,null,{"$f":"ROUND(SUM(I185),2)","v":{"$error":"#REF!"}},0.35]
["Obs."]
[]
["CGCIT",{"$nulls":7},"DNIT"]
["SISTEMA DE CUSTOS REFERENCIAIS DE OBRAS - SICRO",null,null,{"$f":"$M$1","v":"ESTADO MINAS GERAIS"}]
["Custo Unitário de Referência",null,null,{"$f":"M2","v":" JANEIRO 2021"},null,null,"Produção da equipe",99.6,"t"]
[5914649,"Carga, manobra e descarga de mistura betuminosa a quente em caminhão basculante de 10 m³ - carga em usina de asfalto 100/140 t/h e descarga em vibroacabadora",{"$nulls":5},"Valores em reais (R$)"]
["A - EQUIPAMENTOS",null,"Quantidade","Utilização",null,"Custo Horário",null,null,"Custo"]
[null,null,null,"Operativa","Improdutiva","Produtivo","Improdutivo",null,"Horário Total"]
["E9579","Caminhão basculante com capacidade de 10 m³ - 188 kW",3,0.81,0.18999999999999995,{"$f":"VLOOKUP($A200,#REF!,8,0)","v":{"$error":"#REF!"}},{"$f":"VLOOKUP($A200,#REF!,7,0)","v":{"$error":"#REF!"}},null,{"$f":"ROUND((C200*(D200*F200))+(C200*(E200*G200)),4)","v":{"$error":"#REF!"}}]
[{"$nulls":6},"Custo horário total de equipamentos",null,{"$f":"SUM(I200)","v":{"$error":"#REF!"}}]
["B - MÃO DE OBRA",null,"Quantidade","Unidade","Custo Horário",null,"Custo Horário Total"]
[null,null,"Custo horário total de mão de obra",{"$nulls":4},"-"]
[null,null,"Custo horário total de execução",{"$nulls":5},{"$f":"SUM(I201)","v":{"$error":"#REF!"}},417.35610000000003]
[null,null,"Custo unitário de execução",{"$nulls":5},{"$f":"I204/H196","v":{"$error":"#REF!"}}]
[{"$nulls":6},"Custo do FIC",null,"-"]
[{"$nulls":6},"Custo do FIT",null,"-"]
["C - MATERIAL",null,"Quantidade","Unidade","Preço Unitário",null,"Custo Unitário"]
[null,null,"Custo unitário total de material"]
["D - ATIVIDADES AUXILIARES",null,"Quantidade","Unidade","Custo Unitário",null,"Custo Unitário"]
[null,null,"Custo total de atividades auxiliares"]
[{"$nulls":6},"Subtotal",null,{"$f":"SUM(I205,I206,I207)","v":{"$error":"#REF!"}}]
["E - TEMPO FIXO",null,"Código","Quantidade","Unidade","Custo Unitário",null,"Custo Unitário"]
[null,null,"Custo unitário total de tempo fixo"]
["F - MOMENTO DE TRANSPORTE",null,"Quantidade","Unidade","DMT",null,null,null,"Custo Unitário"]
[{"$nulls":4},"LN","RP","P"]
[null,null,"Custo unitário total de transporte",{"$nulls":5},"-"]
[{"$nulls":4},"Custo unitário direto total",null,null,null,{"$f":"ROUND(SUM(I212),2)","v":{"$error":"#REF!"}},4.1900000000000004]
["Obs."]
[]
["CGCIT",{"$nulls":7},"DNIT"]
["SISTEMA DE CUSTOS REFERENCIAIS DE OBRAS - SICRO",null,null,{"$f":"$M$1","v":"ESTADO MINAS GERAIS"}]
["Custo Unitário de Referência",null,null,{"$f":"M2","v":" JANEIRO 2021"},null,null,"Produção da equipe",1038.46,"m²"]
[4011352,"Imprimação com emulsão asfáltica",{"$nulls":5},"Valores em reais (R$)"]
["A - EQUIPAMENTOS",null,"Quantidade","Utilização",null,"Custo Horário",null,null,"Custo"]
[null,null,null,"Operativa","Improdutiva","Produtivo","Improdutivo",null,"Horário Total"]
["E9509","Caminhão tanque distribuidor de asfalto com capacidade de 6.000 l - 7 kW/136 kW",1,1,0,{"$f":"VLOOKUP($A227,#REF!,8,0)","v":{"$error":"#REF!"}},{"$f":"VLOOKUP($A227,#REF!,7,0)","v":{"$error":"#REF!"}},null,{"$f":"ROUND((C227*(D227*F227))+(C227*(E227*G227)),4)","v":{"$error":"#REF!"}}]
["E9558","Tanque de estocagem de asfalto com capacidade de 30.000 l",2,1,0,{"$f":"VLOOKUP($A228,#REF!,8,0)","v":{"$error":"#REF!"}},{"$f":"VLOOKUP($A228,#REF!,7,0)","v":{"$error":"#REF!"}},null,{"$error":"#REF!"}]
[{"$nulls":6},"Custo horário total de equipamentos",null,{"$f":"SUM(I227:I228)","v":{"$error":"#REF!"}}]
["B - MÃO DE OBRA",null,"Quantidade","Unidade","Custo Horário",null,"Custo Horário Total"]
["P9824","Servente",2,"h",{"$f":"VLOOKUP($A231,#REF!,6,0)","v":{"$error":"#REF!"}},null,null,null,{"$f":"ROUND(C231*E231,4)","v":{"$error":"#REF!"}}]
[null,null,"Custo horário total de mão de obra",{"$nulls":4},{"$f":"SUM(I231)","v":{"$error":"#REF!"}}]
[null,null,"Custo horário total de execução",{"$nulls":5},{"$f":"SUM(H232,I229)","v":{"$error":"#REF!"}},238.0154]
[null,null,"Custo unitário de execução",{"$nulls":5},{"$f":"I233/H223","v":{"$error":"#REF!"}}]
[{"$nulls":6},"Custo do FIC",null,"-"]
[{"$nulls":6},"Custo do FIT",null,"-"]
["C - MATERIAL",null,"Quantidade","Unidade","Preço Unitário",null,"Custo Unitário"]
["M2092","Emulsão asfáltica para imprimação",1.2999999999999999E-3,"t",null,{"$f":"VLOOKUP($A238,#REF!,5,0)","v":{"$error":"#REF!"}},null,null,{"$f":"ROUND(C238*F238,4)","v":{"$error":"#REF!"}},0]
[null,null,"Custo unitário total de material"]
["D - ATIVIDADES AUXILIARES",null,"Quantidade","Unidade","Custo Unitário",null,"Custo Unitário"]
[null,null,"Custo total de atividades auxiliares"]
[{"$nulls":6},"Subtotal",null,{"$f":"SUM(I234,I235,I236)+I238","v":{"$error":"#REF!"}}]
["E - TEMPO FIXO",null,"Código","Quantidade","Unidade","Custo Unitário",null,"Custo Unitário"]
[null,null,"Custo unitário total de tempo fixo"]
["F - MOMENTO DE TRANSPORTE",null,"Quantidade","Unidade","DMT",null,null,null,"Custo Unitário"]
[{"$nulls":4},"LN","RP","P"]
[null,null,"Custo unitário total de transporte",{"$nulls":5},"-"]
[{"$nulls":4},"Custo unitário direto total",null,null,null,{"$f":"SUM(I242)","v":{"$error":"#REF!"}}]
[{"$nulls":5},"BDI",{"$f":"'[12]Médio Porte'!$D$24","v":0.2374},null,{"$f":"ROUND(I248*G249,4)","v":{"$error":"#REF!"}}]
[{"$nulls":6},"Preço Unitário:",null,{"$f":"ROUND(SUM(I248,I249),2)","v":{"$error":"#REF!"}},0.23,"SEM O MATERIAL"]
["Obs."]
[]
["CGCIT",{"$nulls":7},"DNIT"]
["SISTEMA DE CUSTOS REFERENCIAIS DE OBRAS - SICRO",null,null,{"$f":"$M$1","v":"ESTADO MINAS GERAIS"}]
["Custo Unitário de Referência",null,null,{"$f":"M2","v":" JANEIRO 2021"},null,null,"Produção da equipe",1500,"m²"]
[4011353,"Pintura de ligação",{"$nulls":5},"Valores em reais (R$)"]
["A - EQUIPAMENTOS",null,"Quantidade","Utilização",null,"Custo Horário",null,null,"Custo"]
[null,null,null,"Operativa","Improdutiva","Produtivo","Improdutivo",null,"Horário Total"]
["E9509","Caminhão tanque distribuidor de asfalto com capacidade de 6.000 l - 7 kW/136 kW",1,1,0,{"$f":"VLOOKUP($A259,#REF!,8,0)","v":{"$error":"#REF!"}},{"$f":"VLOOKUP($A259,#REF!,7,0)","v":{"$error":"#REF!"}},null,{"$f":"ROUND((C259*(D259*F259))+(C259*(E259*G259)),4)","v":{"$error":"#REF!"}}]
["E9558","Tanque de estocagem de asfalto com capacidade de 30.000 l",2,1,0,{"$f":"VLOOKUP($A260,#REF!,8,0)","v":{"$error":"#REF!"}},{"$f":"VLOOKUP($A260,#REF!,7,0)","v":{"$error":"#REF!"}},null,{"$error":"#REF!"}]
[{"$nulls":6},"Custo horário total de equipamentos",null,{"$f":"SUM(I259:I260)","v":{"$error":"#REF!"}}]
["B - MÃO DE OBRA",null,"Quantidade","Unidade","Custo Horário",null,"Custo Horário Total"]
["P9824","Servente",2,"h",{"$f":"VLOOKUP($A263,#REF!,6,0)","v":{"$error":"#REF!"}},null,null,null,{"$f":"ROUND(C263*E263,4)","v":{"$error":"#REF!"}}]
[null,null,"Custo horário total de mão de obra",{"$nulls":4},{"$f":"SUM(I263)","v":{"$error":"#REF!"}}]
[null,null,"Custo horário total de execução",{"$nulls":5},{"$f":"SUM(H264,I261)","v":{"$error":"#REF!"}}]
[null,null,"Custo unitário de execução",{"$nulls":5},{"$f":"I265/H255","v":{"$error":"#REF!"}}]
[{"$nulls":6},"Custo do FIC",null,"-"]
[{"$nulls":6},"Custo do FIT",null,"-"]
["C - MATERIAL",null,"Quantidade","Unidade","Preço Unitário",null,"Custo Unitário"]
["M1946","Emulsão asfáltica RR-1C",4.4999999999999999E-4,"t",null,{"$f":"VLOOKUP($A270,#REF!,5,0)","v":{"$error":"#REF!"}},null,null,{"$f":"ROUND(C270*F270,4)","v":{"$error":"#REF!"}}]
[null,null,"Custo unitário total de material"]
["D - ATIVIDADES AUXILIARES",null,"Quantidade","Unidade","Custo Unitário",null,"Custo Unitário"]
[null,null,"Custo total de atividades auxiliares"]
[{"$nulls":6},"Subtotal",null,{"$f":"SUM(I266,I267,I268)+I270","v":{"$error":"#REF!"}}]
["E - TEMPO FIXO",null,"Código","Quantidade","Unidade","Custo Unitário",null,"Custo Unitário"]
[null,null,"Custo unitário total de tempo fixo"]
["F - MOMENTO DE TRANSPORTE",null,"Quantidade","Unidade","DMT",null,null,null,"Custo Unitário"]
[{"$nulls":4},"LN","RP","P"]
[null,null,"Custo unitário total de transporte",{"$nulls":5},"-"]
[{"$nulls":4},"Custo unitário direto total",null,null,null,{"$f":"SUM(I274)","v":{"$error":"#REF!"}}]
[{"$nulls":5},"BDI",{"$f":"'[12]Médio Porte'!$D$24","v":0.2374},null,{"$f":"ROUND(I280*G281,4)","v":{"$error":"#REF!"}}]
[{"$nulls":6},"Preço Unitário:",null,{"$f":"ROUND(SUM(I280,I281),2)","v":{"$error":"#REF!"}},0.16,"SEM O MATERIAL"]
["Obs."]
[]
["CGCIT",{"$nulls":7},"DNIT"]
["SISTEMA DE CUSTOS REFERENCIAIS DE OBRAS - SICRO",null,null,{"$f":"$M$1","v":"ESTADO MINAS GERAIS"}]
["Custo Unitário de Referência",null,null,{"$f":"M2","v":" JANEIRO 2021"},null,null,"Produção da equipe",113.18,"m³"]
[4011276,"Base ou sub-base de brita graduada com brita comercial",{"$nulls":5},"Valores em reais (R$)"]
["A - EQUIPAMENTOS",null,"Quantidade","Utilização",null,"Custo Horário",null,null,"Custo"]
[null,null,null,"Operativa","Improdutiva","Produtivo","Improdutivo",null,"Horário Total"]
["E9571","Caminhão tanque com capacidade de 10.000 l - 188 kW",1,0.34,0.65999999999999992,{"$f":"VLOOKUP($A291,#REF!,8,0)","v":{"$error":"#REF!"}},{"$f":"VLOOKUP($A291,#REF!,7,0)","v":{"$error":"#REF!"}},null,{"$f":"ROUND((C291*(D291*F291))+(C291*(E291*G291)),4)","v":{"$error":"#REF!"}},103]
["E9514","Distribuidor de agregados autopropelido - 130 kW",1,1,0,{"$f":"VLOOKUP($A292,#REF!,8,0)","v":{"$error":"#REF!"}},{"$f":"VLOOKUP($A292,#REF!,7,0)","v":{"$error":"#REF!"}},null,{"$error":"#REF!"},183]
["E9762","Rolo compactador de pneus autopropelido de 27 t - 85 kW",1,0.65,0.35,{"$f":"VLOOKUP($A293,#REF!,8,0)","v":{"$error":"#REF!"}},{"$f":"VLOOKUP($A293,#REF!,7,0)","v":{"$error":"#REF!"}},null,{"$error":"#REF!"},109]
["E9530","Rolo compactador liso autopropelido vibratório de 11 t - 97 kW",1,0.52,0.48,{"$f":"VLOOKUP($A294,#REF!,8,0)","v":{"$error":"#REF!"}},{"$f":"VLOOKUP($A294,#REF!,7,0)","v":{"$error":"#REF!"}},null,{"$error":"#REF!"},96]
[{"$nulls":6},"Custo horário total de equipamentos",null,{"$f":"SUM(I291:I294)","v":{"$error":"#REF!"}},493]
["B - MÃO DE OBRA",null,"Quantidade","Unidade","Custo Horário",null,"Custo Horário Total"]
["P9824","Servente",1,"h",{"$f":"VLOOKUP($A297,#REF!,6,0)","v":{"$error":"#REF!"}},null,null,null,{"$f":"ROUND(C297*E297,4)","v":{"$error":"#REF!"}}]
[null,null,"Custo horário total de mão de obra",{"$nulls":4},{"$f":"SUM(I297)","v":{"$error":"#REF!"}}]
[null,null,"Custo horário total de execução",{"$nulls":5},{"$f":"SUM(H298,I295)","v":{"$error":"#REF!"}},509]
[null,null,"Custo unitário de execução",{"$nulls":5},{"$f":"I299/H287","v":{"$error":"#REF!"}}]
[{"$nulls":6},"Custo do FIC",3.5300000000000002E-3,{"$f":"I300*H301","v":{"$error":"#REF!"}}]
[{"$nulls":6},"Custo do FIT",null,"-"]
["C - MATERIAL",null,"Quantidade","Unidade","Preço Unitário",null,"Custo Unitário"]
[null,null,"Custo unitário total de material"]
["D - ATIVIDADES AUXILIARES",null,"Quantidade","Unidade","Custo Unitário",null,"Custo Unitário"]
[6416040,"Usinagem de brita graduada com brita comercial em usina de 300 t/h",1,"m³",null,{"$f":"$I$360","v":{"$error":"#REF!"}},null,null,{"$f":"ROUND(C306*F306,4)","v":{"$error":"#REF!"}},113.87]
[null,null,"Custo total de atividades auxiliares",{"$nulls":5},{"$f":"SUM(I306)","v":{"$error":"#REF!"}}]
[{"$nulls":6},"Subtotal",null,{"$f":"SUM(I307,I300,I301,I302)","v":{"$error":"#REF!"}}]
["E - TEMPO FIXO",null,"Código","Quantidade","Unidade","Custo Unitário",null,"Custo Unitário"]
[6416040,"Usinagem de brita graduada com brita comercial em usina de 300 t/h - Caminhão basculante 10 m³",5914652,2.2000000000000002,"t",null,{"$f":"$I$387","v":{"$error":"#REF!"}},null,{"$f":"ROUND(D310*G310,4)","v":{"$error":"#REF!"}},4.0199999999999996]
[null,null,"Custo unitário total de tempo fixo",{"$nulls":5},{"$f":"SUM(I310)","v":{"$error":"#REF!"}}]
["F - MOMENTO DE TRANSPORTE",null,"Quantidade","Unidade","DMT",null,null,null,"Custo Unitário"]
[{"$nulls":4},"LN","RP","P"]
[6416040,"Usinagem de brita graduada com brita comercial em usina de 300 t/h - Caminhão basculante 10 m³",2.2000000000000002,"tkm",null,null,{"$f":"$Q$1","v":80},null,{"$f":"ROUND((C314*G314)*$I$164,4)","v":{"$error":"#REF!"}},0,5914389]
[null,null,"Custo unitário total de transporte",{"$nulls":5},{"$f":"SUM(I314)","v":{"$error":"#REF!"}}]
[{"$nulls":4},"Custo unitário direto total",null,null,null,{"$f":"SUM(I315,I311,I308)","v":{"$error":"#REF!"}},122.43,"SEM O TRANSPORTE"]
[{"$nulls":5},"BDI",{"$f":"'[12]Médio Porte'!$D$24","v":0.2374},null,{"$f":"ROUND(I316*G317,4)","v":{"$error":"#REF!"}}]
[{"$nulls":6},"Preço Unitário:",null,{"$f":"ROUND(SUM(I316,I317),2)","v":{"$error":"#REF!"}}]
["Obs."]
[]
["CGCIT",{"$nulls":7},"DNIT"]
["SISTEMA DE CUSTOS REFERENCIAIS DE OBRAS - SICRO",null,null,{"$f":"$M$1","v":"ESTADO MINAS GERAIS"}]
["Custo Unitário de Referência",null,null,{"$f":"M2","v":" JANEIRO 2021"},null,null,"Produção da equipe",113.18,"m³"]
[6416040,"Usinagem de brita graduada com brita comercial em usina de 300 t/h",{"$nulls":5},"Valores em reais (R$)"]
["A - EQUIPAMENTOS",null,"Quantidade","Utilização",null,"Custo Horário",null,null,"Custo"]
[null,null,null,"Operativa","Improdutiva","Produtivo","Improdutivo",null,"Horário Total"]
["E9511","Carregadeira de pneus com capacidade de 3,40 m³ - 195 kW",2,0.56999999999999995,0.43000000000000005,{"$f":"VLOOKUP($A327,#REF!,8,0)","v":{"$error":"#REF!"}},{"$f":"VLOOKUP($A327,#REF!,7,0)","v":{"$error":"#REF!"}},null,{"$f":"ROUND((C327*(D327*F327))+(C327*(E327*G327)),4)","v":{"$error":"#REF!"}}]
["E9779","Grupo gerador - 100/110 kVA",1,1,0,{"$f":"VLOOKUP($A328,#REF!,8,0)","v":{"$error":"#REF!"}},{"$f":"VLOOKUP($A328,#REF!,7,0)","v":{"$error":"#REF!"}},null,{"$f":"ROUND((C328*(D328*F328))+(C328*(E328*G328)),4)","v":{"$error":"#REF!"}}]
["E9615","Usina misturadora de solos com capacidade de 300 t/h",1,1,0,{"$f":"VLOOKUP($A329,#REF!,8,0)","v":{"$error":"#REF!"}},{"$f":"VLOOKUP($A329,#REF!,7,0)","v":{"$error":"#REF!"}},null,{"$f":"ROUND((C329*(D329*F329))+(C329*(E329*G329)),4)","v":{"$error":"#REF!"}}]
[{"$nulls":6},"Custo horário total de equipamentos",null,{"$f":"SUM(I327:I329)","v":{"$error":"#REF!"}},533]
["B - MÃO DE OBRA",null,"Quantidade","Unidade","Custo Horário",null,"Custo Horário Total"]
["P9824","Servente",3,"h",{"$f":"VLOOKUP($A332,#REF!,6,0)","v":{"$error":"#REF!"}},null,null,null,{"$f":"ROUND(C332*E332,4)","v":{"$error":"#REF!"}}]
[null,null,"Custo horário total de mão de obra",{"$nulls":4},{"$f":"SUM(I332)","v":{"$error":"#REF!"}}]
[null,null,"Custo horário total de execução",{"$nulls":5},{"$f":"SUM(H333,I330)","v":{"$error":"#REF!"}}]
[null,null,"Custo unitário de execução",{"$nulls":5},{"$f":"I334/H323","v":{"$error":"#REF!"}},5.14]
[{"$nulls":6},"Custo do FIC"]
[{"$nulls":6},"Custo do FIT",null,"-"]
["C - MATERIAL",null,"Quantidade","Unidade","Preço Unitário",null,"Custo Unitário"]
["M0005","Brita 0",0.53076000000000001,"m³",null,{"$f":"VLOOKUP($A339,#REF!,5,0)","v":{"$error":"#REF!"}},null,null,{"$f":"ROUND(C339*F339,4)","v":{"$error":"#REF!"}}]
["M0191","Brita 1",0.14699999999999999,"m³",null,{"$f":"VLOOKUP($A340,#REF!,5,0)","v":{"$error":"#REF!"}},null,null,{"$error":"#REF!"}]
["M0192","Brita 2",0.2606,"m³",null,{"$f":"VLOOKUP($A341,#REF!,5,0)","v":{"$error":"#REF!"}},null,null,{"$error":"#REF!"}]
["M1135","Pó de pedra",0.52829000000000004,"m³",null,{"$f":"VLOOKUP($A342,#REF!,5,0)","v":{"$error":"#REF!"}},null,null,{"$error":"#REF!"}]
[null,null,"Custo unitário total de material",{"$nulls":5},{"$f":"SUM(I339:I342)","v":{"$error":"#REF!"}},106.64]
["D - ATIVIDADES AUXILIARES",null,"Quantidade","Unidade","Custo Unitário",null,"Custo Unitário"]
[null,null,"Custo total de atividades auxiliares"]
[{"$nulls":6},"Subtotal",null,{"$f":"SUM(I343,I335,I336,I337)","v":{"$error":"#REF!"}},111.78]
["E - TEMPO FIXO",null,"Código","Quantidade","Unidade","Custo Unitário",null,"Custo Unitário"]
["M0005","Brita 0 - Caminhão basculante 10 m³",5914647,0.79613999999999996,"t",null,{"$f":"$I$110","v":{"$error":"#REF!"}},null,{"$f":"ROUND(D348*G348,4)","v":{"$error":"#REF!"}}]
["M0191","Brita 1 - Caminhão basculante 10 m³",5914647,0.2205,"t",null,{"$f":"$I$110","v":{"$error":"#REF!"}},null,{"$f":"ROUND(D349*G349,4)","v":{"$error":"#REF!"}}]
["M0192","Brita 2 - Caminhão basculante 10 m³",5914647,0.39090000000000003,"t",null,{"$error":"#REF!"},null,{"$error":"#REF!"}]
["M1135","Pó de pedra - Caminhão basculante 10 m³",5914647,0.79244000000000003,"t",null,{"$error":"#REF!"},null,{"$error":"#REF!"}]
[null,null,"Custo unitário total de tempo fixo",{"$nulls":5},{"$f":"SUM(I348:I351)","v":{"$error":"#REF!"}},2.09]
["F - MOMENTO DE TRANSPORTE",null,"Quantidade","Unidade","DMT",null,null,null,"Custo Unitário"]
[{"$nulls":4},"LN","RP","P"]
["M0005","Brita 0 - Caminhão basculante 10 m³",0.79613999999999996,"tkm",null,null,{"$f":"$Q$3","v":5},null,{"$f":"ROUND((C355*G355)*$I$164,4)","v":{"$error":"#REF!"}},null,5914389]
["M0191","Brita 1 - Caminhão basculante 10 m³",0.2205,"tkm",null,null,{"$f":"$Q$3","v":5},null,{"$f":"ROUND((C356*G356)*$I$164,4)","v":{"$error":"#REF!"}},null,5914389]
["M0192","Brita 2 - Caminhão basculante 10 m³",0.39090000000000003,"tkm",null,null,{"$f":"$Q$3","v":5},null,{"$error":"#REF!"},null,5914389]
["M1135","Pó de pedra - Caminhão basculante 10 m³",0.79244000000000003,"tkm",null,null,5,null,{"$error":"#REF!"},null,5914389]
[null,null,"Custo unitário total de transporte",{"$nulls":5},{"$f":"SUM(I355:I358)","v":{"$error":"#REF!"}}]
[{"$nulls":4},"Custo unitário direto total",null,null,null,{"$f":"SUM(I359,I352,I346)","v":{"$error":"#REF!"}},113.87]
["Obs."]
[]
["CGCIT",{"$nulls":7},"DNIT"]
["SISTEMA DE CUSTOS REFERENCIAIS DE OBRAS - SICRO",null,null,{"$f":"$M$1","v":"ESTADO MINAS GERAIS"}]
["Custo Unitário de Referência",null,null,{"$f":"M2","v":" JANEIRO 2021"},null,null,"Produção da equipe",249,"t"]
[5914652,"Carga, manobra e descarga de agregados ou solos em caminhão basculante de 10 m³ - carga em usina de solos de 300 t/h e descarga em distribuidor autopropelido",{"$nulls":5},"Valores em reais (R$)"]
["A - EQUIPAMENTOS",null,"Quantidade","Utilização",null,"Custo Horário",null,null,"Custo"]
[null,null,null,"Operativa","Improdutiva","Produtivo","Improdutivo",null,"Horário Total"]
["E9579","Caminhão basculante com capacidade de 10 m³ - 188 kW",3,0.92,7.999999999999996E-2,{"$f":"VLOOKUP($A369,#REF!,8,0)","v":{"$error":"#REF!"}},{"$f":"VLOOKUP($A369,#REF!,7,0)","v":{"$error":"#REF!"}},null,{"$f":"ROUND((C369*(D369*F369))+(C369*(E369*G369)),4)","v":{"$error":"#REF!"}}]
[{"$nulls":6},"Custo horário total de equipamentos",null,{"$f":"SUM(I369)","v":{"$error":"#REF!"}},454]
["B - MÃO DE OBRA",null,"Quantidade","Unidade","Custo Horário",null,"Custo Horário Total"]
[null,null,"Custo horário total de mão de obra",{"$nulls":4},"-"]
[null,null,"Custo horário total de execução",{"$nulls":5},{"$f":"SUM(I370)","v":{"$error":"#REF!"}}]
[null,null,"Custo unitário de execução",{"$nulls":5},{"$f":"I373/H365","v":{"$error":"#REF!"}},1.8265]
[{"$nulls":6},"Custo do FIC",null,"-"]
[{"$nulls":6},"Custo do FIT",null,"-"]
["C - MATERIAL",null,"Quantidade","Unidade","Preço Unitário",null,"Custo Unitário"]
[null,null,"Custo unitário total de material"]
["D - ATIVIDADES AUXILIARES",null,"Quantidade","Unidade","Custo Unitário",null,"Custo Unitário"]
[null,null,"Custo total de atividades auxiliares"]
[{"$nulls":6},"Subtotal",null,{"$f":"SUM(I374)","v":{"$error":"#REF!"}}]
["E - TEMPO FIXO",null,"Código","Quantidade","Unidade","Custo Unitário",null,"Custo Unitário"]
[null,null,"Custo unitário total de tempo fixo"]
["F - MOMENTO DE TRANSPORTE",null,"Quantidade","Unidade","DMT",null,null,null,"Custo Unitário"]
[{"$nulls":4},"LN","RP","P"]
[null,null,"Custo unitário total de transporte",{"$nulls":5},"-"]
[{"$nulls":4},"Custo unitário direto total",null,null,null,{"$f":"ROUND(SUM(I381),2)","v":{"$error":"#REF!"}},1.83]
["Obs."]
[]
["CGCIT",{"$nulls":7},"DNIT"]
["SISTEMA DE CUSTOS REFERENCIAIS DE OBRAS - SICRO",null,null,{"$f":"$M$1","v":"ESTADO MINAS GERAIS"}]
["Custo Unitário de Referência",null,null,{"$f":"M2","v":" JANEIRO 2021"},null,null,"Produção da equipe",150.88,"m³"]
[4011228,"Sub-base estabilizada granulometricamente com mistura de solos na pista com material de jazida",{"$nulls":5},"Valores em reais (R$)"]
["A - EQUIPAMENTOS",null,"Quantidade","Utilização",null,"Custo Horário",null,null,"Custo"]
[null,null,null,"Operativa","Improdutiva","Produtivo","Improdutivo",null,"Horário Total"]
["E9571","Caminhão tanque com capacidade de 10.000 l - 188 kW",1,0.83,0.17000000000000004,{"$f":"VLOOKUP($A396,#REF!,8,0)","v":{"$error":"#REF!"}},{"$f":"VLOOKUP($A396,#REF!,7,0)","v":{"$error":"#REF!"}},null,{"$f":"ROUND((C396*(D396*F396))+(C396*(E396*G396)),4)","v":{"$error":"#REF!"}}]
["E9518","Grade de 24 discos rebocável de 24\"",1,0.62,0.38,{"$f":"VLOOKUP($A397,#REF!,8,0)","v":{"$error":"#REF!"}},{"$f":"VLOOKUP($A397,#REF!,7,0)","v":{"$error":"#REF!"}},null,{"$error":"#REF!"}]
["E9524","Motoniveladora - 93 kW",1,1,0,{"$f":"VLOOKUP($A398,#REF!,8,0)","v":{"$error":"#REF!"}},{"$f":"VLOOKUP($A398,#REF!,7,0)","v":{"$error":"#REF!"}},null,{"$error":"#REF!"}]
["E9762","Rolo compactador de pneus autopropelido de 27 t - 85 kW",1,0.65,0.35,{"$f":"VLOOKUP($A399,#REF!,8,0)","v":{"$error":"#REF!"}},{"$f":"VLOOKUP($A399,#REF!,7,0)","v":{"$error":"#REF!"}},null,{"$error":"#REF!"}]
["E9685","Rolo compactador pé de carneiro vibratório autopropelido de 11,6 t - 82 kW",1,0.67,0.32999999999999996,{"$f":"VLOOKUP($A400,#REF!,8,0)","v":{"$error":"#REF!"}},{"$f":"VLOOKUP($A400,#REF!,7,0)","v":{"$error":"#REF!"}},null,{"$error":"#REF!"}]
["E9577","Trator agrícola - 77 kW",1,0.62,0.38,{"$f":"VLOOKUP($A401,#REF!,8,0)","v":{"$error":"#REF!"}},{"$f":"VLOOKUP($A401,#REF!,7,0)","v":{"$error":"#REF!"}},null,{"$error":"#REF!"}]
[{"$nulls":6},"Custo horário total de equipamentos",null,{"$f":"SUM(I396:I401)","v":{"$error":"#REF!"}},649]
["B - MÃO DE OBRA",null,"Quantidade","Unidade","Custo Horário",null,"Custo Horário Total"]
["P9824","Servente",1,"h",{"$f":"VLOOKUP($A404,#REF!,6,0)","v":{"$error":"#REF!"}},null,null,null,{"$f":"ROUND(C404*E404,4)","v":{"$error":"#REF!"}}]
[null,null,"Custo horário total de mão de obra",{"$nulls":4},{"$f":"SUM(I404)","v":{"$error":"#REF!"}}]
[null,null,"Custo horário total de execução",{"$nulls":5},{"$f":"SUM(H405,I402)","v":{"$error":"#REF!"}}]
[null,null,"Custo unitário de execução",{"$nulls":5},{"$f":"I406/H392","v":{"$error":"#REF!"}},4.41]
[{"$nulls":6},"Custo do FIC",1.059E-2,{"$f":"ROUND(I407*H408,4)","v":{"$error":"#REF!"}}]
[{"$nulls":6},"Custo do FIT",null,"-"]
["C - MATERIAL",null,"Quantidade","Unidade","Preço Unitário",null,"Custo Unitário"]
[null,null,"Custo unitário total de material"]
["D - ATIVIDADES AUXILIARES",null,"Quantidade","Unidade","Custo Unitário",null,"Custo Unitário"]
[4016096,"Escavação e carga de material de jazida com escavadeira hidráulica de 1,56 m³",1.1000000000000001,"m³",null,{"$f":"$I$453","v":{"$error":"#REF!"}},null,null,{"$f":"ROUND(C413*F413,4)","v":{"$error":"#REF!"}}]
[null,null,"Custo total de atividades auxiliares",{"$nulls":5},{"$f":"SUM(I413)","v":{"$error":"#REF!"}}]
[{"$nulls":6},"Subtotal",null,{"$f":"SUM(I414,I407,I408,I409)","v":{"$error":"#REF!"}},5.4814999999999996]
["E - TEMPO FIXO",null,"Código","Quantidade","Unidade","Custo Unitário",null,"Custo Unitário"]
[4016096,"Escavação e carga de material de jazida com escavadeira hidráulica de 1,56 m³ - Caminhão basculante 10 m³",5914354,2.0625,"t",null,{"$f":"I480","v":{"$error":"#REF!"}},null,{"$f":"ROUND(D417*G417,4)","v":{"$error":"#REF!"}}]
[null,null,"Custo unitário total de tempo fixo",{"$nulls":5},{"$f":"SUM(I417)","v":{"$error":"#REF!"}}]
["F - MOMENTO DE TRANSPORTE",null,"Quantidade","Unidade","DMT",null,null,null,"Custo Unitário"]
[{"$nulls":4},"LN","RP","P"]
[4016096,"Escavação e carga de material de jazida com escavadeira hidráulica de 1,56 m³ - Caminhão basculante 10 m³",2.0625,"tkm",null,null,{"$f":"$Q$4","v":5},null,{"$f":"ROUND((C421*G421)*$I$164,4)","v":{"$error":"#REF!"}},null,5914389]
[null,null,"Custo unitário total de transporte",{"$nulls":5},{"$f":"SUM(I421)","v":{"$error":"#REF!"}}]
[{"$nulls":4},"Custo unitário direto total",null,null,null,{"$f":"SUM(I422,I418,I415)","v":{"$error":"#REF!"}}]
[{"$nulls":5},"BDI",{"$f":"'[12]Médio Porte'!$D$24","v":0.2374},null,{"$f":"ROUND(I423*G424,4)","v":{"$error":"#REF!"}}]
[{"$nulls":6},"Preço Unitário:",null,{"$f":"ROUND(SUM(I423,I424),2)","v":{"$error":"#REF!"}},7.52,"sem o momento de transporte"]
["Obs."]
[]
["CGCIT",{"$nulls":7},"DNIT"]
["SISTEMA DE CUSTOS REFERENCIAIS DE OBRAS - SICRO",null,null,{"$f":"$M$1","v":"ESTADO MINAS GERAIS"}]
["Custo Unitário de Referência",null,null,{"$f":"M2","v":" JANEIRO 2021"},null,null,"Produção da equipe",230.19,"m³"]
[4016096,"Escavação e carga de material de jazida com escavadeira hidráulica de 1,56 m³",{"$nulls":5},"Valores em reais (R$)"]
["A - EQUIPAMENTOS",null,"Quantidade","Utilização",null,"Custo Horário",null,null,"Custo"]
[null,null,null,"Operativa","Improdutiva","Produtivo","Improdutivo",null,"Horário Total"]
["E9515","Escavadeira hidráulica sobre esteiras com caçamba com capacidade de 1,56 m³ - 118 kW",1,1,0,{"$f":"VLOOKUP($A434,#REF!,8,0)","v":{"$error":"#REF!"}},{"$f":"VLOOKUP($A434,#REF!,7,0)","v":{"$error":"#REF!"}},null,{"$f":"ROUND((C434*(D434*F434))+(C434*(E434*G434)),4)","v":{"$error":"#REF!"}}]
[{"$nulls":6},"Custo horário total de equipamentos",null,{"$f":"SUM(I434)","v":{"$error":"#REF!"}}]
["B - MÃO DE OBRA",null,"Quantidade","Unidade","Custo Horário",null,"Custo Horário Total"]
["P9824","Servente",1,"h",{"$f":"VLOOKUP($A437,#REF!,6,0)","v":{"$error":"#REF!"}},null,null,null,{"$f":"ROUND(C437*E437,4)","v":{"$error":"#REF!"}}]
[null,null,"Custo horário total de mão de obra",{"$nulls":4},{"$f":"SUM(I437)","v":{"$error":"#REF!"}}]
[null,null,"Custo horário total de execução",{"$nulls":5},{"$f":"SUM(H438,I435)","v":{"$error":"#REF!"}},201.67]
[null,null,"Custo unitário de execução",{"$nulls":5},{"$f":"I439/H430","v":{"$error":"#REF!"}}]
[{"$nulls":6},"Custo do FIC",1.059E-2,{"$f":"I440*H441","v":{"$error":"#REF!"}}]
[{"$nulls":6},"Custo do FIT",null,"-"]
["C - MATERIAL",null,"Quantidade","Unidade","Preço Unitário",null,"Custo Unitário"]
[null,null,"Custo unitário total de material"]
["D - ATIVIDADES AUXILIARES",null,"Quantidade","Unidade","Custo Unitário",null,"Custo Unitário"]
[null,null,"Custo total de atividades auxiliares"]
[{"$nulls":6},"Subtotal",null,{"$f":"SUM(I440,I441,I442)","v":{"$error":"#REF!"}}]
["E - TEMPO FIXO",null,"Código","Quantidade","Unidade","Custo Unitário",null,"Custo Unitário"]
[null,null,"Custo unitário total de tempo fixo"]
["F - MOMENTO DE TRANSPORTE",null,"Quantidade","Unidade","DMT",null,null,null,"Custo Unitário"]
[{"$nulls":4},"LN","RP","P"]
[null,null,"Custo unitário total de transporte",{"$nulls":5},"-"]
[{"$nulls":4},"Custo unitário direto total",null,null,null,{"$f":"SUM(I447)","v":{"$error":"#REF!"}},0.89]
["Obs."]
[]
["CGCIT",{"$nulls":7},"DNIT"]
["SISTEMA DE CUSTOS REFERENCIAIS DE OBRAS - SICRO",null,null,{"$f":"$M$1","v":"ESTADO MINAS GERAIS"}]
["Custo Unitário de Referência",null,null,{"$f":"M2","v":" JANEIRO 2021"},null,null,"Produção da equipe",431.6,"t"]
[5914354,"Carga, manobra e descarga de agregados ou solos em caminhão basculante de 10 m³ - carga com escavadeira de 1,56 m³ (exclusa) e descarga livre",{"$nulls":5},"Valores em reais (R$)"]
["A - EQUIPAMENTOS",null,"Quantidade","Utilização",null,"Custo Horário",null,null,"Custo"]
[null,null,null,"Operativa","Improdutiva","Produtivo","Improdutivo",null,"Horário Total"]
["E9579","Caminhão basculante com capacidade de 10 m³ - 188 kW",3,0.84,0.16000000000000003,{"$f":"VLOOKUP($A462,#REF!,8,0)","v":{"$error":"#REF!"}},{"$f":"VLOOKUP($A462,#REF!,7,0)","v":{"$error":"#REF!"}},null,{"$f":"ROUND((C462*(D462*F462))+(C462*(E462*G462)),4)","v":{"$error":"#REF!"}}]
[{"$nulls":6},"Custo horário total de equipamentos",null,{"$f":"SUM(I462)","v":{"$error":"#REF!"}}]
["B - MÃO DE OBRA",null,"Quantidade","Unidade","Custo Horário",null,"Custo Horário Total"]
[null,null,"Custo horário total de mão de obra",{"$nulls":4},"-"]
[null,null,"Custo horário total de execução",{"$nulls":5},{"$f":"SUM(I463)","v":{"$error":"#REF!"}},427.56459999999998]
[null,null,"Custo unitário de execução",{"$nulls":5},{"$f":"I466/H458","v":{"$error":"#REF!"}}]
[{"$nulls":6},"Custo do FIC",null,"-"]
[{"$nulls":6},"Custo do FIT",null,"-"]
["C - MATERIAL",null,"Quantidade","Unidade","Preço Unitário",null,"Custo Unitário"]
[null,null,"Custo unitário total de material"]
["D - ATIVIDADES AUXILIARES",null,"Quantidade","Unidade","Custo Unitário",null,"Custo Unitário"]
[null,null,"Custo total de atividades auxiliares"]
[{"$nulls":6},"Subtotal",null,{"$f":"SUM(I467,I468,I469)","v":{"$error":"#REF!"}}]
["E - TEMPO FIXO",null,"Código","Quantidade","Unidade","Custo Unitário",null,"Custo Unitário"]
[null,null,"Custo unitário total de tempo fixo"]
["F - MOMENTO DE TRANSPORTE",null,"Quantidade","Unidade","DMT",null,null,null,"Custo Unitário"]
[{"$nulls":4},"LN","RP","P"]
[null,null,"Custo unitário total de transporte",{"$nulls":5},"-"]
[{"$nulls":4},"Custo unitário direto total",null,null,null,{"$f":"ROUND(SUM(I474),2)","v":{"$error":"#REF!"}},0.99]
["Obs."]
[]
["CGCIT",{"$nulls":7},"DNIT"]
["SISTEMA DE CUSTOS REFERENCIAIS DE OBRAS - SICRO",null,null,{"$f":"$M$1","v":"ESTADO MINAS GERAIS"}]
["Custo Unitário de Referência",null,null,{"$f":"M2","v":" JANEIRO 2021"},null,null,"Produção da equipe",1121.33,"m²"]
[4011209,"Regularização do subleito",{"$nulls":5},"Valores em reais (R$)"]
["A - EQUIPAMENTOS",null,"Quantidade","Utilização",null,"Custo Horário",null,null,"Custo"]
[null,null,null,"Operativa","Improdutiva","Produtivo","Improdutivo",null,"Horário Total"]
["E9571","Caminhão tanque com capacidade de 10.000 l - 188 kW",2,0.51,0.49,{"$f":"VLOOKUP($A489,#REF!,8,0)","v":{"$error":"#REF!"}},{"$f":"VLOOKUP($A489,#REF!,7,0)","v":{"$error":"#REF!"}},null,{"$f":"ROUND((C489*(D489*F489))+(C489*(E489*G489)),4)","v":{"$error":"#REF!"}}]
["E9518","Grade de 24 discos rebocável de 24\"",1,0.69,0.31000000000000005,{"$f":"VLOOKUP($A490,#REF!,8,0)","v":{"$error":"#REF!"}},{"$f":"VLOOKUP($A490,#REF!,7,0)","v":{"$error":"#REF!"}},null,{"$error":"#REF!"}]
["E9524","Motoniveladora - 93 kW",1,0.71,0.29000000000000004,{"$f":"VLOOKUP($A491,#REF!,8,0)","v":{"$error":"#REF!"}},{"$f":"VLOOKUP($A491,#REF!,7,0)","v":{"$error":"#REF!"}},null,{"$error":"#REF!"}]
["E9762","Rolo compactador de pneus autopropelido de 27 t - 85 kW",1,0.96,4.0000000000000036E-2,{"$f":"VLOOKUP($A492,#REF!,8,0)","v":{"$error":"#REF!"}},{"$f":"VLOOKUP($A492,#REF!,7,0)","v":{"$error":"#REF!"}},null,{"$error":"#REF!"}]
["E9685","Rolo compactador pé de carneiro vibratório autopropelido de 11,6 t - 82 kW",1,1,0,{"$f":"VLOOKUP($A493,#REF!,8,0)","v":{"$error":"#REF!"}},{"$f":"VLOOKUP($A493,#REF!,7,0)","v":{"$error":"#REF!"}},null,{"$error":"#REF!"}]
["E9577","Trator agrícola - 77 kW",1,0.69,0.31000000000000005,{"$f":"VLOOKUP($A494,#REF!,8,0)","v":{"$error":"#REF!"}},{"$f":"VLOOKUP($A494,#REF!,7,0)","v":{"$error":"#REF!"}},null,{"$error":"#REF!"}]
[{"$nulls":6},"Custo horário total de equipamentos",null,{"$f":"SUM(I489:I494)","v":{"$error":"#REF!"}}]
["B - MÃO DE OBRA",null,"Quantidade","Unidade","Custo Horário",null,"Custo Horário Total"]
["P9824","Servente",1,"h",{"$f":"VLOOKUP($A497,#REF!,6,0)","v":{"$error":"#REF!"}},null,null,null,{"$f":"ROUND(C497*E497,4)","v":{"$error":"#REF!"}}]
[null,null,"Custo horário total de mão de obra",{"$nulls":4},{"$f":"SUM(I497)","v":{"$error":"#REF!"}}]
[null,null,"Custo horário total de execução",{"$nulls":5},{"$f":"SUM(H498,I495)","v":{"$error":"#REF!"}},772.17]
[null,null,"Custo unitário de execução",{"$nulls":5},{"$f":"I499/H485","v":{"$error":"#REF!"}}]
[{"$nulls":6},"Custo do FIC",1.059E-2,{"$f":"I500*H501","v":{"$error":"#REF!"}}]
[{"$nulls":6},"Custo do FIT",null,"-"]
["C - MATERIAL",null,"Quantidade","Unidade","Preço Unitário",null,"Custo Unitário"]
[null,null,"Custo unitário total de material"]
["D - ATIVIDADES AUXILIARES",null,"Quantidade","Unidade","Custo Unitário",null,"Custo Unitário"]
[null,null,"Custo total de atividades auxiliares"]
[{"$nulls":6},"Subtotal",null,{"$f":"SUM(I500,I501,I502)","v":{"$error":"#REF!"}}]
["E - TEMPO FIXO",null,"Código","Quantidade","Unidade","Custo Unitário",null,"Custo Unitário"]
[null,null,"Custo unitário total de tempo fixo"]
["F - MOMENTO DE TRANSPORTE",null,"Quantidade","Unidade","DMT",null,null,null,"Custo Unitário"]
[{"$nulls":4},"LN","RP","P"]
[null,null,"Custo unitário total de transporte",{"$nulls":5},"-"]
[{"$nulls":4},"Custo unitário direto total",null,null,null,{"$f":"SUM(I507)","v":{"$error":"#REF!"}}]
[{"$nulls":5},"BDI",{"$f":"'[12]Médio Porte'!$D$24","v":0.2374},null,{"$f":"ROUND(I513*G514,4)","v":{"$error":"#REF!"}}]
[{"$nulls":6},"Preço Unitário:",null,{"$f":"ROUND(SUM(I513,I514),2)","v":{"$error":"#REF!"}},0.7]
["Obs."]
[]
["CGCIT",{"$nulls":7},"DNIT"]
["SISTEMA DE CUSTOS REFERENCIAIS DE OBRAS - SICRO",null,null,{"$f":"$M$1","v":"ESTADO MINAS GERAIS"}]
["Custo Unitário de Referência",null,null,{"$f":"M2","v":" JANEIRO 2021"},null,null,"Produção da equipe",177.07,"m²"]
[5213400,"Pintura de faixa - tinta base acrílica - espessura de 0,4 mm",{"$nulls":5},"Valores em reais (R$)"]
["A - EQUIPAMENTOS",null,"Quantidade","Utilização",null,"Custo Horário",null,null,"Custo"]
[null,null,null,"Operativa","Improdutiva","Produtivo","Improdutivo",null,"Horário Total"]
["E9687","Caminhão carroceria com capacidade de 5 t - 115 kW",1,0.5,0.5,{"$f":"VLOOKUP($A524,#REF!,8,0)","v":{"$error":"#REF!"}},{"$f":"VLOOKUP($A524,#REF!,7,0)","v":{"$error":"#REF!"}},null,{"$f":"ROUND((C524*(D524*F524))+(C524*(E524*G524)),4)","v":{"$error":"#REF!"}}]
["E9644","Caminhão demarcador de faixas com sistema de pintura a frio - 28 kW/115 kW",1,1,0,{"$f":"VLOOKUP($A525,#REF!,8,0)","v":{"$error":"#REF!"}},{"$f":"VLOOKUP($A525,#REF!,7,0)","v":{"$error":"#REF!"}},null,{"$error":"#REF!"}]
[{"$nulls":6},"Custo horário total de equipamentos",null,{"$f":"SUM(I524:I525)","v":{"$error":"#REF!"}}]
["B - MÃO DE OBRA",null,"Quantidade","Unidade","Custo Horário",null,"Custo Horário Total"]
["P9853","Pré-marcador",1,"h",{"$f":"VLOOKUP($A528,#REF!,6,0)","v":{"$error":"#REF!"}},null,null,null,{"$f":"ROUND(C528*E528,4)","v":{"$error":"#REF!"}}]
["P9824","Servente",5,"h",{"$f":"VLOOKUP($A529,#REF!,6,0)","v":{"$error":"#REF!"}},null,null,null,{"$f":"ROUND(C529*E529,4)","v":{"$error":"#REF!"}}]
[null,null,"Custo horário total de mão de obra",{"$nulls":4},{"$f":"SUM(I528:I529)","v":{"$error":"#REF!"}}]
[null,null,"Custo horário total de execução",{"$nulls":5},{"$f":"SUM(I526,H530)","v":{"$error":"#REF!"}},432]
[null,null,"Custo unitário de execução",{"$nulls":5},{"$f":"I531/H520","v":{"$error":"#REF!"}}]
[{"$nulls":6},"Custo do FIC",null,"-"]
[{"$nulls":6},"Custo do FIT",null,"-"]
["C - MATERIAL",null,"Quantidade","Unidade","Preço Unitário",null,"Custo Unitário"]
["M2037","Microesferas de vidro refletiva tipo I-B",0.1,"kg",null,{"$f":"VLOOKUP($A536,#REF!,5,0)","v":{"$error":"#REF!"}},null,null,{"$f":"ROUND(C536*F536,4)","v":{"$error":"#REF!"}}]
["M2038","Microesferas de vidro refletiva tipo II-A",0.25,"kg",null,{"$f":"VLOOKUP($A537,#REF!,5,0)","v":{"$error":"#REF!"}},null,null,{"$error":"#REF!"}]
["M2034","Solvente para tinta à base de resina acrílica",0.02,"l",null,{"$f":"VLOOKUP($A538,#REF!,5,0)","v":{"$error":"#REF!"}},null,null,{"$error":"#REF!"}]
["M2044","Tinta para pré-marcação",0.03,"l",null,{"$f":"VLOOKUP($A539,#REF!,5,0)","v":{"$error":"#REF!"}},null,null,{"$error":"#REF!"}]
["M2027","Tinta refletiva acrílica",0.4,"l",null,{"$f":"VLOOKUP($A540,#REF!,5,0)","v":{"$error":"#REF!"}},null,null,{"$error":"#REF!"}]
[null,null,"Custo unitário total de material",{"$nulls":5},{"$f":"SUM(I536:I540)","v":{"$error":"#REF!"}}]
["D - ATIVIDADES AUXILIARES",null,"Quantidade","Unidade","Custo Unitário",null,"Custo Unitário"]
[null,null,"Custo total de atividades auxiliares"]
[{"$nulls":6},"Subtotal",null,{"$f":"SUM(I541,I532)","v":{"$error":"#REF!"}}]
["E - TEMPO FIXO",null,"Código","Quantidade","Unidade","Custo Unitário",null,"Custo Unitário"]
["M2037","Microesferas de vidro refletiva tipo I-B - Caminhão carroceria 5 t",5915474,1E-4,"t",null,{"$f":"$I$590","v":{"$error":"#REF!"}},null,{"$f":"ROUND(D546*G546,4)","v":{"$error":"#REF!"}}]
["M2038","Microesferas de vidro refletiva tipo II-A - Caminhão carroceria 5 t",5915474,2.5000000000000001E-4,"t",null,{"$f":"$I$590","v":{"$error":"#REF!"}},null,{"$f":"ROUND(D547*G547,4)","v":{"$error":"#REF!"}}]
["M2034","Solvente para tinta à base de resina acrílica - Caminhão carroceria 5 t",5915474,2.0000000000000002E-5,"t",null,{"$error":"#REF!"},null,{"$error":"#REF!"}]
["M2044","Tinta para pré-marcação - Caminhão carroceria 5 t",5915474,5.0000000000000002E-5,"t",null,{"$error":"#REF!"},null,{"$error":"#REF!"}]
["M2027","Tinta refletiva acrílica - Caminhão carroceria 5 t",5915474,6.2E-4,"t",null,{"$error":"#REF!"},null,{"$error":"#REF!"}]
[null,null,"Custo unitário total de tempo fixo",{"$nulls":5},{"$f":"SUM(I546:I550)","v":{"$error":"#REF!"}}]
["F - MOMENTO DE TRANSPORTE",null,"Quantidade","Unidade","DMT",null,null,null,"Custo Unitário"]
[{"$nulls":4},"LN","RP","P"]
["M2037","Microesferas de vidro refletiva tipo I-B - Caminhão carroceria 5 t",1E-4,"tkm",null,null,{"$f":"$Q$1","v":80},null,{"$f":"ROUND((C554*G554)*$I$617,4)","v":{"$error":"#REF!"}},null,5915324]
["M2038","Microesferas de vidro refletiva tipo II-A - Caminhão carroceria 5 t",2.5000000000000001E-4,"tkm",null,null,80,null,{"$f":"ROUND((C555*G555)*$I$617,4)","v":{"$error":"#REF!"}}]
["M2034","Solvente para tinta à base de resina acrílica - Caminhão carroceria 5 t",2.0000000000000002E-5,"tkm",null,null,80,null,{"$error":"#REF!"}]
["M2044","Tinta para pré-marcação - Caminhão carroceria 5 t",5.0000000000000002E-5,"tkm",null,null,80,null,{"$error":"#REF!"}]
["M2027","Tinta refletiva acrílica - Caminhão carroceria 5 t",6.2E-4,"tkm",null,null,80,null,{"$error":"#REF!"}]
[null,null,"Custo unitário total de transporte",{"$nulls":5},{"$f":"SUM(I554:I558)","v":{"$error":"#REF!"}}]
[{"$nulls":4},"Custo unitário direto total",null,null,null,{"$f":"SUM(I559,I551,I544)","v":{"$error":"#REF!"}}]
[{"$nulls":5},"BDI",{"$f":"'[12]Médio Porte'!$D$24","v":0.2374},null,{"$f":"ROUND(I560*G561,4)","v":{"$error":"#REF!"}}]
[{"$nulls":6},"Preço Unitário:",null,{"$f":"ROUND(SUM(I560,I561),2)","v":{"$error":"#REF!"}},19.23]
["Obs."]
[]
["CGCIT",{"$nulls":7},"DNIT"]
["SISTEMA DE CUSTOS REFERENCIAIS DE OBRAS - SICRO",null,null,{"$f":"$M$1","v":"ESTADO MINAS GERAIS"}]
["Custo Unitário de Referência",null,null,{"$f":"M2","v":" JANEIRO 2021"},null,null,"Produção da equipe",7.7610400000000004,"t"]
[5915474,"Carga, manobra e descarga de materiais diversos em caminhão carroceria de 5 t - carga e descarga manuais",{"$nulls":5},"Valores em reais (R$)"]
["A - EQUIPAMENTOS",null,"Quantidade","Utilização",null,"Custo Horário",null,null,"Custo"]
[null,null,null,"Operativa","Improdutiva","Produtivo","Improdutivo",null,"Horário Total"]
["E9687","Caminhão carroceria com capacidade de 5 t - 115 kW",1,1,0,{"$f":"VLOOKUP($A571,#REF!,8,0)","v":{"$error":"#REF!"}},{"$f":"VLOOKUP($A571,#REF!,7,0)","v":{"$error":"#REF!"}},null,{"$f":"ROUND((C571*(D571*F571))+(C571*(E571*G571)),4)","v":{"$error":"#REF!"}}]
[{"$nulls":6},"Custo horário total de equipamentos",null,{"$f":"SUM(I571)","v":{"$error":"#REF!"}}]
["B - MÃO DE OBRA",null,"Quantidade","Unidade","Custo Horário",null,"Custo Horário Total"]
["P9824","Servente",4,"h",{"$f":"VLOOKUP($A574,#REF!,6,0)","v":{"$error":"#REF!"}},null,null,null,{"$f":"ROUND(C574*E574,4)","v":{"$error":"#REF!"}}]
[null,null,"Custo horário total de mão de obra",{"$nulls":4},{"$f":"SUM(I574)","v":{"$error":"#REF!"}}]
[null,null,"Custo horário total de execução",{"$nulls":5},{"$f":"SUM(I572,H575)","v":{"$error":"#REF!"}},160.35]
[null,null,"Custo unitário de execução",{"$nulls":5},{"$f":"I576/H567","v":{"$error":"#REF!"}}]
[{"$nulls":6},"Custo do FIC",null,"-"]
[{"$nulls":6},"Custo do FIT",null,"-"]
["C - MATERIAL",null,"Quantidade","Unidade","Preço Unitário",null,"Custo Unitário"]
[null,null,"Custo unitário total de material"]
["D - ATIVIDADES AUXILIARES",null,"Quantidade","Unidade","Custo Unitário",null,"Custo Unitário"]
[null,null,"Custo total de atividades auxiliares"]
[{"$nulls":6},"Subtotal",null,{"$f":"SUM(I577,I578,I579)","v":{"$error":"#REF!"}}]
["E - TEMPO FIXO",null,"Código","Quantidade","Unidade","Custo Unitário",null,"Custo Unitário"]
[null,null,"Custo unitário total de tempo fixo"]
["F - MOMENTO DE TRANSPORTE",null,"Quantidade","Unidade","DMT",null,null,null,"Custo Unitário"]
[{"$nulls":4},"LN","RP","P"]
[null,null,"Custo unitário total de transporte",{"$nulls":5},"-"]
[{"$nulls":4},"Custo unitário direto total",null,null,null,{"$f":"SUM(I584)","v":{"$error":"#REF!"}},20.66]
["Obs."]
[]
["CGCIT",{"$nulls":7},"DNIT"]
["SISTEMA DE CUSTOS REFERENCIAIS DE OBRAS - SICRO",null,null,{"$f":"$M$1","v":"ESTADO MINAS GERAIS"}]
["Custo Unitário de Referência",null,null,{"$f":"M2","v":" JANEIRO 2021"},null,null,"Produção da equipe",125.5,"tkm"]
[5915324,"Transporte com caminhão carroceria de 5 t - rodovia pavimentada",{"$nulls":5},"Valores em reais (R$)"]
["A - EQUIPAMENTOS",null,"Quantidade","Utilização",null,"Custo Horário",null,null,"Custo"]
[null,null,null,"Operativa","Improdutiva","Produtivo","Improdutivo",null,"Horário Total"]
["E9687","Caminhão carroceria com capacidade de 5 t - 115 kW",1,1,0,{"$f":"VLOOKUP($A599,#REF!,8,0)","v":{"$error":"#REF!"}},{"$f":"VLOOKUP($A599,#REF!,7,0)","v":{"$error":"#REF!"}},null,{"$f":"ROUND((C599*(D599*F599))+(C599*(E599*G599)),4)","v":{"$error":"#REF!"}}]
[{"$nulls":6},"Custo horário total de equipamentos",null,{"$f":"SUM(I599)","v":{"$error":"#REF!"}}]
["B - MÃO DE OBRA",null,"Quantidade","Unidade","Custo Horário",null,"Custo Horário Total"]
[null,null,"Custo horário total de mão de obra",{"$nulls":4},"-"]
[null,null,"Custo horário total de execução",{"$nulls":5},{"$f":"SUM(I600)","v":{"$error":"#REF!"}},95.67]
[null,null,"Custo unitário de execução",{"$nulls":5},{"$f":"I603/H595","v":{"$error":"#REF!"}}]
[{"$nulls":6},"Custo do FIC",null,"-"]
[{"$nulls":6},"Custo do FIT",null,"-"]
["C - MATERIAL",null,"Quantidade","Unidade","Preço Unitário",null,"Custo Unitário"]
[null,null,"Custo unitário total de material"]
["D - ATIVIDADES AUXILIARES",null,"Quantidade","Unidade","Custo Unitário",null,"Custo Unitário"]
[null,null,"Custo total de atividades auxiliares"]
[{"$nulls":6},"Subtotal",null,{"$f":"SUM(I604,I605,I606)","v":{"$error":"#REF!"}}]
["E - TEMPO FIXO",null,"Código","Quantidade","Unidade","Custo Unitário",null,"Custo Unitário"]
[null,null,"Custo unitário total de tempo fixo"]
["F - MOMENTO DE TRANSPORTE",null,"Quantidade","Unidade","DMT",null,null,null,"Custo Unitário"]
[{"$nulls":4},"LN","RP","P"]
[null,null,"Custo unitário total de transporte",{"$nulls":5},"-"]
[{"$nulls":4},"Custo unitário direto total",null,null,null,{"$f":"SUM(I611)","v":{"$error":"#REF!"}},0.76]
["Obs."]
[]
["CGCIT",{"$nulls":7},"DNIT"]
["SISTEMA DE CUSTOS REFERENCIAIS DE OBRAS - SICRO",null,null,{"$f":"$M$1","v":"ESTADO MINAS GERAIS"}]
["Custo Unitário de Referência",null,null,{"$f":"M2","v":" JANEIRO 2021"},null,null,"Produção da equipe",80.319999999999993,"un"]
[5213359,"Tacha refletiva monodirecional - fornecimento e colocação",{"$nulls":5},"Valores em reais (R$)"]
["A - EQUIPAMENTOS",null,"Quantidade","Utilização",null,"Custo Horário",null,null,"Custo"]
[null,null,null,"Operativa","Improdutiva","Produtivo","Improdutivo",null,"Horário Total"]
["E9687","Caminhão carroceria com capacidade de 5 t - 115 kW",1,1,0,{"$f":"VLOOKUP($A626,#REF!,8,0)","v":{"$error":"#REF!"}},{"$f":"VLOOKUP($A626,#REF!,7,0)","v":{"$error":"#REF!"}},null,{"$f":"ROUND((C626*(D626*F626))+(C626*(E626*G626)),4)","v":{"$error":"#REF!"}}]
["E9521","Grupo gerador - 2,5/3 kVA",1,1,0,{"$f":"VLOOKUP($A627,#REF!,8,0)","v":{"$error":"#REF!"}},{"$f":"VLOOKUP($A627,#REF!,7,0)","v":{"$error":"#REF!"}},null,{"$error":"#REF!"}]
["E9675","Martelete perfurador/rompedor elétrico - 1,5 kW",1,1,0,{"$f":"VLOOKUP($A628,#REF!,8,0)","v":{"$error":"#REF!"}},{"$f":"VLOOKUP($A628,#REF!,7,0)","v":{"$error":"#REF!"}},null,{"$error":"#REF!"}]
[{"$nulls":6},"Custo horário total de equipamentos",null,{"$f":"SUM(I626:I628)","v":{"$error":"#REF!"}}]
["B - MÃO DE OBRA",null,"Quantidade","Unidade","Custo Horário",null,"Custo Horário Total"]
["P9830","Montador",2,"h",{"$f":"VLOOKUP($A631,#REF!,6,0)","v":{"$error":"#REF!"}},null,null,null,{"$f":"ROUND(C631*E631,4)","v":{"$error":"#REF!"}}]
["P9824","Servente",4,"h",{"$f":"VLOOKUP($A632,#REF!,6,0)","v":{"$error":"#REF!"}},null,null,null,{"$f":"ROUND(C632*E632,4)","v":{"$error":"#REF!"}}]
[null,null,"Custo horário total de mão de obra",{"$nulls":4},{"$f":"SUM(I631:I632)","v":{"$error":"#REF!"}}]
[null,null,"Custo horário total de execução",{"$nulls":5},{"$f":"SUM(I629,H633)","v":{"$error":"#REF!"}},208.185]
[null,null,"Custo unitário de execução",{"$nulls":5},{"$f":"I634/H622","v":{"$error":"#REF!"}}]
[{"$nulls":6},"Custo do FIC",null,"-"]
[{"$nulls":6},"Custo do FIT",null,"-"]
["C - MATERIAL",null,"Quantidade","Unidade","Preço Unitário",null,"Custo Unitário"]
["M2041","Cola poliéster",0.08,"kg",null,{"$f":"VLOOKUP($A639,#REF!,5,0)","v":{"$error":"#REF!"}},null,null,{"$f":"ROUND(C639*F639,4)","v":{"$error":"#REF!"}}]
["M3826","Tacha refletiva monodirecional",1,"un",null,{"$f":"VLOOKUP($A640,#REF!,5,0)","v":{"$error":"#REF!"}},null,null,{"$error":"#REF!"}]
[null,null,"Custo unitário total de material",{"$nulls":5},{"$f":"SUM(I639:I640)","v":{"$error":"#REF!"}}]
["D - ATIVIDADES AUXILIARES",null,"Quantidade","Unidade","Custo Unitário",null,"Custo Unitário"]
[null,null,"Custo total de atividades auxiliares"]
[{"$nulls":6},"Subtotal",null,{"$f":"SUM(I641,I635,I636,I637)","v":{"$error":"#REF!"}},14.630100000000001]
["E - TEMPO FIXO",null,"Código","Quantidade","Unidade","Custo Unitário",null,"Custo Unitário"]
["M2083","Tacha refletiva monodirecional - Caminhão carroceria 5 t",5915474,2.9999999999999997E-4,"t",null,{"$f":"$I$590","v":{"$error":"#REF!"}},null,{"$f":"ROUND(D646*G646,4)","v":{"$error":"#REF!"}}]
[null,null,"Custo unitário total de tempo fixo",{"$nulls":5},{"$f":"SUM(I646)","v":{"$error":"#REF!"}}]
["F - MOMENTO DE TRANSPORTE",null,"Quantidade","Unidade","DMT",null,null,null,"Custo Unitário"]
[{"$nulls":4},"LN","RP","P"]
["M2083","Tacha refletiva monodirecional - Caminhão carroceria 5 t",2.9999999999999997E-4,"tkm",null,null,{"$f":"$Q$1","v":80},null,{"$f":"ROUND((C650*G650)*$I$617,4)","v":{"$error":"#REF!"}}]
[null,null,"Custo unitário total de transporte",{"$nulls":5},{"$f":"SUM(I650)","v":{"$error":"#REF!"}}]
[{"$nulls":4},"Custo unitário direto total",null,null,null,{"$f":"SUM(I651,I647,I644)","v":{"$error":"#REF!"}},0]
[{"$nulls":5},"BDI",{"$f":"'[12]Médio Porte'!$D$24","v":0.2374},null,{"$f":"ROUND(I652*G653,4)","v":{"$error":"#REF!"}}]
[{"$nulls":6},"Preço Unitário:",null,{"$f":"ROUND(SUM(I652,I653),2)","v":{"$error":"#REF!"}},14.46]
["Obs."]
[]
["CGCIT",{"$nulls":7},"DNIT"]
["SISTEMA DE CUSTOS REFERENCIAIS DE OBRAS - SICRO",null,null,{"$f":"$M$1","v":"ESTADO MINAS GERAIS"}]
["Custo Unitário de Referência",null,null,{"$f":"M2","v":" JANEIRO 2021"},null,null,"Produção da equipe",35.57,"un"]
[5213362,"Tachão refletivo bidirecional - fornecimento e colocação",{"$nulls":5},"Valores em reais (R$)"]
["A - EQUIPAMENTOS",null,"Quantidade","Utilização",null,"Custo Horário",null,null,"Custo"]
[null,null,null,"Operativa","Improdutiva","Produtivo","Improdutivo",null,"Horário Total"]
["E9687","Caminhão carroceria com capacidade de 5 t - 115 kW",1,1,0,{"$f":"VLOOKUP($A663,#REF!,8,0)","v":{"$error":"#REF!"}},{"$f":"VLOOKUP($A663,#REF!,7,0)","v":{"$error":"#REF!"}},null,{"$f":"ROUND((C663*(D663*F663))+(C663*(E663*G663)),4)","v":{"$error":"#REF!"}}]
["E9521","Grupo gerador - 2,5/3 kVA",1,1,0,{"$f":"VLOOKUP($A664,#REF!,8,0)","v":{"$error":"#REF!"}},{"$f":"VLOOKUP($A664,#REF!,7,0)","v":{"$error":"#REF!"}},null,{"$error":"#REF!"}]
["E9675","Martelete perfurador/rompedor elétrico - 1,5 kW",1,1,0,{"$f":"VLOOKUP($A665,#REF!,8,0)","v":{"$error":"#REF!"}},{"$f":"VLOOKUP($A665,#REF!,7,0)","v":{"$error":"#REF!"}},null,{"$error":"#REF!"}]
[{"$nulls":6},"Custo horário total de equipamentos",null,{"$f":"SUM(I663:I665)","v":{"$error":"#REF!"}}]
["B - MÃO DE OBRA",null,"Quantidade","Unidade","Custo Horário",null,"Custo Horário Total"]
["P9830","Montador",2,"h",{"$f":"VLOOKUP($A668,#REF!,6,0)","v":{"$error":"#REF!"}},null,null,null,{"$f":"ROUND(C668*E668,4)","v":{"$error":"#REF!"}}]
["P9824","Servente",4,"h",{"$f":"VLOOKUP($A669,#REF!,6,0)","v":{"$error":"#REF!"}},null,null,null,{"$f":"ROUND(C669*E669,4)","v":{"$error":"#REF!"}}]
[null,null,"Custo horário total de mão de obra",{"$nulls":4},{"$f":"SUM(I668:I669)","v":{"$error":"#REF!"}}]
[null,null,"Custo horário total de execução",{"$nulls":5},{"$f":"SUM(I666,H670)","v":{"$error":"#REF!"}},208.15]
[null,null,"Custo unitário de execução",{"$nulls":5},{"$f":"I671/H659","v":{"$error":"#REF!"}}]
[{"$nulls":6},"Custo do FIC",null,"-"]
[{"$nulls":6},"Custo do FIT",null,"-"]
["C - MATERIAL",null,"Quantidade","Unidade","Preço Unitário",null,"Custo Unitário"]
["M2041","Cola poliéster",0.2,"kg",null,{"$f":"VLOOKUP($A676,#REF!,5,0)","v":{"$error":"#REF!"}},null,null,{"$f":"ROUND(C676*F676,4)","v":{"$error":"#REF!"}}]
["M3867","Tachão refletivo bidirecional",1,"un",null,{"$f":"VLOOKUP($A677,#REF!,5,0)","v":{"$error":"#REF!"}},null,null,{"$error":"#REF!"}]
[null,null,"Custo unitário total de material",{"$nulls":5},{"$f":"SUM(I676:I677)","v":{"$error":"#REF!"}}]
["D - ATIVIDADES AUXILIARES",null,"Quantidade","Unidade","Custo Unitário",null,"Custo Unitário"]
[null,null,"Custo total de atividades auxiliares"]
[{"$nulls":6},"Subtotal",null,{"$f":"SUM(I678,I672,I673,I674)","v":{"$error":"#REF!"}},63.665999999999997]
["E - TEMPO FIXO",null,"Código","Quantidade","Unidade","Custo Unitário",null,"Custo Unitário"]
["M2086","Tachão refletivo bidirecional - Caminhão carroceria 5 t",5915474,2.5000000000000001E-3,"t",null,{"$f":"$I$590","v":{"$error":"#REF!"}},null,{"$f":"ROUND(D683*G683,4)","v":{"$error":"#REF!"}}]
[null,null,"Custo unitário total de tempo fixo",{"$nulls":5},{"$f":"SUM(I683)","v":{"$error":"#REF!"}}]
["F - MOMENTO DE TRANSPORTE",null,"Quantidade","Unidade","DMT",null,null,null,"Custo Unitário"]
[{"$nulls":4},"LN","RP","P"]
["M2086","Tachão refletivo bidirecional - Caminhão carroceria 5 t",2.5000000000000001E-3,"tkm",null,null,{"$f":"$Q$1","v":80},null,{"$f":"ROUND((C687*G687)*$I$617,4)","v":{"$error":"#REF!"}},0]
[null,null,"Custo unitário total de transporte",{"$nulls":5},{"$f":"SUM(I687)","v":{"$error":"#REF!"}},0]
[{"$nulls":4},"Custo unitário direto total",null,null,null,{"$f":"SUM(I688,I684,I681)","v":{"$error":"#REF!"}}]
[{"$nulls":5},"BDI",{"$f":"'[12]Médio Porte'!$D$24","v":0.2374},null,{"$f":"ROUND(I689*G690,4)","v":{"$error":"#REF!"}}]
[{"$nulls":6},"Preço Unitário:",null,{"$f":"ROUND(SUM(I689,I690),2)","v":{"$error":"#REF!"}},63.7]
["Obs."]
[]
["CGCIT",{"$nulls":7},"DNIT"]
["SISTEMA DE CUSTOS REFERENCIAIS DE OBRAS - SICRO",null,null,{"$f":"$M$1","v":"ESTADO MINAS GERAIS"}]
["Custo Unitário de Referência",null,null,{"$f":"M2","v":" JANEIRO 2021"},null,null,"Produção da equipe",3,"un"]
[5213440,"Fornecimento e implantação de placa de regulamentação em aço D = 0,60 m - película retrorrefletiva tipo I + SI",{"$nulls":5},"Valores em reais (R$)"]
["A - EQUIPAMENTOS",null,"Quantidade","Utilização",null,"Custo Horário",null,null,"Custo"]
[null,null,null,"Operativa","Improdutiva","Produtivo","Improdutivo",null,"Horário Total"]
["E9687","Caminhão carroceria com capacidade de 5 t - 115 kW",1,0.3,0.7,{"$f":"VLOOKUP($A700,#REF!,8,0)","v":{"$error":"#REF!"}},{"$f":"VLOOKUP($A700,#REF!,7,0)","v":{"$error":"#REF!"}},null,{"$f":"ROUND((C700*(D700*F700))+(C700*(E700*G700)),4)","v":{"$error":"#REF!"}}]
[{"$nulls":6},"Custo horário total de equipamentos",null,{"$f":"SUM(I700)","v":{"$error":"#REF!"}}]
["B - MÃO DE OBRA",null,"Quantidade","Unidade","Custo Horário",null,"Custo Horário Total"]
["P9830","Montador",1,"h",{"$f":"VLOOKUP($A703,#REF!,6,0)","v":{"$error":"#REF!"}},null,null,null,{"$f":"ROUND(C703*E703,4)","v":{"$error":"#REF!"}}]
["P9824","Servente",2,"h",{"$f":"VLOOKUP($A704,#REF!,6,0)","v":{"$error":"#REF!"}},null,null,null,{"$f":"ROUND(C704*E704,4)","v":{"$error":"#REF!"}}]
[null,null,"Custo horário total de mão de obra",{"$nulls":4},{"$f":"SUM(I703:I704)","v":{"$error":"#REF!"}}]
[null,null,"Custo horário total de execução",{"$nulls":5},{"$f":"SUM(H705,I701)","v":{"$error":"#REF!"}}]
[null,null,"Custo unitário de execução",{"$nulls":5},{"$f":"I706/H696","v":{"$error":"#REF!"}}]
[{"$nulls":6},"Custo do FIC",null,"-"]
[{"$nulls":6},"Custo do FIT",null,"-"]
["C - MATERIAL",null,"Quantidade","Unidade","Preço Unitário",null,"Custo Unitário"]
[null,null,"Custo unitário total de material"]
["D - ATIVIDADES AUXILIARES",null,"Quantidade","Unidade","Custo Unitário",null,"Custo Unitário"]
[5213414,"Confecção de placa em aço nº 16 galvanizado, com película retrorrefletiva tipo I + SI",0.28273999999999999,"m²",null,{"$f":"I766","v":{"$error":"#REF!"}},null,null,{"$f":"ROUND(C713*F713,4)","v":{"$error":"#REF!"}}]
[null,null,"Custo total de atividades auxiliares",{"$nulls":5},{"$f":"SUM(I713)","v":{"$error":"#REF!"}}]
[{"$nulls":6},"Subtotal",null,{"$f":"SUM(I714,I707,I708,I709)","v":{"$error":"#REF!"}},155.6994]
["E - TEMPO FIXO",null,"Código","Quantidade","Unidade","Custo Unitário",null,"Custo Unitário"]
[5213414,"Confecção de placa em aço nº 16 galvanizado, com película retrorrefletiva tipo I + SI - Caminhão carroceria 5 t",5915474,3.7499999999999999E-3,"t",null,{"$f":"$I$590","v":{"$error":"#REF!"}},null,{"$f":"ROUND(D717*G717,4)","v":{"$error":"#REF!"}}]
[null,null,"Custo unitário total de tempo fixo",{"$nulls":5},{"$f":"SUM(I717)","v":{"$error":"#REF!"}}]
["F - MOMENTO DE TRANSPORTE",null,"Quantidade","Unidade","DMT",null,null,null,"Custo Unitário"]
[{"$nulls":4},"LN","RP","P"]
[5213414,"Confecção de placa em aço nº 16 galvanizado, com película retrorrefletiva tipo I + SI - Caminhão carroceria 5 t",3.7499999999999999E-3,"tkm",null,null,{"$f":"$Q$1","v":80},null,{"$f":"ROUND((C721*G721)*$I$911,4)","v":{"$error":"#REF!"}}]
[null,null,"Custo unitário total de transporte",{"$nulls":5},{"$f":"SUM(I721)","v":{"$error":"#REF!"}}]
[{"$nulls":4},"Custo unitário direto total",null,null,null,{"$f":"SUM(I722,I718,I715)","v":{"$error":"#REF!"}}]
[{"$nulls":5},"BDI",{"$f":"'[12]Médio Porte'!$D$24","v":0.2374},null,{"$f":"ROUND(I723*G724,4)","v":{"$error":"#REF!"}}]
[{"$nulls":6},"Preço Unitário:",null,{"$f":"ROUND(SUM(I723,I724),2)","v":{"$error":"#REF!"}},156.02000000000001]
["Obs."]
[]
["CGCIT",{"$nulls":7},"DNIT"]
["SISTEMA DE CUSTOS REFERENCIAIS DE OBRAS - SICRO",null,null,{"$f":"$M$1","v":"ESTADO MINAS GERAIS"}]
["Custo Unitário de Referência",null,null,{"$f":"M2","v":" JANEIRO 2021"},null,null,"Produção da equipe",4,"m²"]
[5213414,"Confecção de placa em aço nº 16 galvanizado, com película retrorrefletiva tipo I + SI",{"$nulls":5},"Valores em reais (R$)"]
["A - EQUIPAMENTOS",null,"Quantidade","Utilização",null,"Custo Horário",null,null,"Custo"]
[null,null,null,"Operativa","Improdutiva","Produtivo","Improdutivo",null,"Horário Total"]
["E9568","Furadeira de impacto de 12,5 mm - 0,8 kW",0.15060000000000001,1,0,{"$f":"VLOOKUP($A734,#REF!,8,0)","v":{"$error":"#REF!"}},{"$f":"VLOOKUP($A734,#REF!,7,0)","v":{"$error":"#REF!"}},null,{"$f":"ROUND((C734*(D734*F734))+(C734*(E734*G734)),4)","v":{"$error":"#REF!"}}]
["E9066","Grupo gerador - 13/14 kVA",0.48193000000000003,1,0,{"$f":"VLOOKUP($A735,#REF!,8,0)","v":{"$error":"#REF!"}},{"$f":"VLOOKUP($A735,#REF!,7,0)","v":{"$error":"#REF!"}},null,{"$error":"#REF!"}]
["E9623","Máquina de bancada guilhotina - 4 kW",0.20080000000000001,1,0,{"$f":"VLOOKUP($A736,#REF!,8,0)","v":{"$error":"#REF!"}},{"$f":"VLOOKUP($A736,#REF!,7,0)","v":{"$error":"#REF!"}},null,{"$error":"#REF!"}]
["E9622","Máquina de bancada universal para corte de chapa - 1,5 kW",0.48193000000000003,1,0,{"$f":"VLOOKUP($A737,#REF!,8,0)","v":{"$error":"#REF!"}},{"$f":"VLOOKUP($A737,#REF!,7,0)","v":{"$error":"#REF!"}},null,{"$error":"#REF!"}]
[{"$nulls":6},"Custo horário total de equipamentos",null,{"$f":"SUM(I734:I737)","v":{"$error":"#REF!"}}]
["B - MÃO DE OBRA",null,"Quantidade","Unidade","Custo Horário",null,"Custo Horário Total"]
["P9801","Ajudante",2,"h",{"$f":"VLOOKUP($A740,#REF!,6,0)","v":{"$error":"#REF!"}},null,null,null,{"$f":"ROUND(C740*E740,4)","v":{"$error":"#REF!"}}]
["P9830","Montador",1,"h",{"$f":"VLOOKUP($A741,#REF!,6,0)","v":{"$error":"#REF!"}},null,null,null,{"$error":"#REF!"}]
["P9823","Serralheiro",1,"h",{"$f":"VLOOKUP($A742,#REF!,6,0)","v":{"$error":"#REF!"}},null,null,null,{"$error":"#REF!"}]
["P9824","Servente",2,"h",{"$f":"VLOOKUP($A743,#REF!,6,0)","v":{"$error":"#REF!"}},null,null,null,{"$error":"#REF!"}]
[null,null,"Custo horário total de mão de obra",{"$nulls":4},{"$f":"SUM(I740:I743)","v":{"$error":"#REF!"}}]
[null,null,"Custo horário total de execução",{"$nulls":5},{"$f":"SUM(H744,I738)","v":{"$error":"#REF!"}},131.6371]
[null,null,"Custo unitário de execução",{"$nulls":5},{"$f":"I745/H730","v":{"$error":"#REF!"}}]
[{"$nulls":6},"Custo do FIC",null,"-"]
[{"$nulls":6},"Custo do FIT",null,"-"]
["C - MATERIAL",null,"Quantidade","Unidade","Preço Unitário",null,"Custo Unitário"]
["M1367","Chapa de aço galvanizado",11.775,"kg",null,{"$f":"VLOOKUP($A750,#REF!,5,0)","v":{"$error":"#REF!"}},null,null,{"$f":"ROUND(C750*F750,4)","v":{"$error":"#REF!"}}]
["M3229","Película retrorrefletiva tipo I + SI",1,"m²",null,{"$f":"VLOOKUP($A751,#REF!,5,0)","v":{"$error":"#REF!"}},null,null,{"$error":"#REF!"}]
[null,null,"Custo unitário total de material",{"$nulls":5},{"$f":"SUM(I750:I751)","v":{"$error":"#REF!"}}]
["D - ATIVIDADES AUXILIARES",null,"Quantidade","Unidade","Custo Unitário",null,"Custo Unitário"]
[5212552,"Pintura eletrostática a pó com tinta poliester em chapa de aço",1,"m²",null,{"$f":"I800","v":{"$error":"#REF!"}},null,null,{"$f":"ROUND(C754*F754,4)","v":{"$error":"#REF!"}}]
[null,null,"Custo total de atividades auxiliares",{"$nulls":5},{"$f":"SUM(I754)","v":{"$error":"#REF!"}}]
[{"$nulls":6},"Subtotal",null,{"$f":"SUM(I755,I752,I746,I747,I748)","v":{"$error":"#REF!"}}]
["E - TEMPO FIXO",null,"Código","Quantidade","Unidade","Custo Unitário",null,"Custo Unitário"]
["M1367","Chapa de aço galvanizado - Caminhão carroceria 15 t",5914333,1.1780000000000001E-2,"t",null,{"$f":"$I$829","v":{"$error":"#REF!"}},null,{"$f":"ROUND(D758*G758,4)","v":{"$error":"#REF!"}}]
["M3229","Película retrorrefletiva tipo I + SI - Caminhão carroceria 5 t",5915474,5.2999999999999998E-4,"t",null,{"$f":"$I$590","v":{"$error":"#REF!"}},null,{"$f":"ROUND(D759*G759,4)","v":{"$error":"#REF!"}}]
[null,null,"Custo unitário total de tempo fixo",{"$nulls":5},{"$f":"SUM(I758:I759)","v":{"$error":"#REF!"}}]
["F - MOMENTO DE TRANSPORTE",null,"Quantidade","Unidade","DMT",null,null,null,"Custo Unitário"]
[{"$nulls":4},"LN","RP","P"]
["M1367","Chapa de aço galvanizado - Caminhão carroceria 15 t",1.1780000000000001E-2,"tkm",null,null,{"$f":"$Q$1","v":80},null,{"$f":"ROUND((C763*G763)*$I$884,4)","v":{"$error":"#REF!"}},null,5914479]
["M3229","Película retrorrefletiva tipo I + SI - Caminhão carroceria 5 t",5.2999999999999998E-4,"tkm",null,null,80,null,{"$f":"ROUND((C764*G764)*$I$911,4)","v":{"$error":"#REF!"}},null,5915324]
[null,null,"Custo unitário total de transporte",{"$nulls":5},{"$f":"SUM(I763:I764)","v":{"$error":"#REF!"}}]
[{"$nulls":4},"Custo unitário direto total",null,null,null,{"$f":"SUM(I765,I760,I756)","v":{"$error":"#REF!"}},414.04]
["Obs."]
[]
["CGCIT",{"$nulls":7},"DNIT"]
["SISTEMA DE CUSTOS REFERENCIAIS DE OBRAS - SICRO",null,null,{"$f":"$M$1","v":"ESTADO MINAS GERAIS"}]
["Custo Unitário de Referência",null,null,{"$f":"M2","v":" JANEIRO 2021"},null,null,"Produção da equipe",9.9600000000000009,"m²"]
[5212552,"Pintura eletrostática a pó com tinta poliester em chapa de aço",{"$nulls":5},"Valores em reais (R$)"]
["A - EQUIPAMENTOS",null,"Quantidade","Utilização",null,"Custo Horário",null,null,"Custo"]
[null,null,null,"Operativa","Improdutiva","Produtivo","Improdutivo",null,"Horário Total"]
["E9076","Equipamento de pintura com cabine de 7,00 kW e estufa de 80.000 kCal para pintura eletrostática",1,1,0,{"$f":"VLOOKUP($A775,#REF!,8,0)","v":{"$error":"#REF!"}},{"$f":"VLOOKUP($A775,#REF!,7,0)","v":{"$error":"#REF!"}},null,{"$f":"ROUND((C775*(D775*F775))+(C775*(E775*G775)),4)","v":{"$error":"#REF!"}}]
["E9066","Grupo gerador - 13/14 kVA",1,1,0,{"$f":"VLOOKUP($A776,#REF!,8,0)","v":{"$error":"#REF!"}},{"$f":"VLOOKUP($A776,#REF!,7,0)","v":{"$error":"#REF!"}},null,{"$error":"#REF!"}]
[{"$nulls":6},"Custo horário total de equipamentos",null,{"$f":"SUM(I775:I776)","v":{"$error":"#REF!"}}]
["B - MÃO DE OBRA",null,"Quantidade","Unidade","Custo Horário",null,"Custo Horário Total"]
["P9801","Ajudante",1,"h",{"$f":"VLOOKUP($A779,#REF!,6,0)","v":{"$error":"#REF!"}},null,null,null,{"$f":"ROUND(C779*E779,4)","v":{"$error":"#REF!"}}]
["P9822","Pintor",1,"h",{"$f":"VLOOKUP($A780,#REF!,6,0)","v":{"$error":"#REF!"}},null,null,null,{"$error":"#REF!"}]
["P9824","Servente",1,"h",{"$f":"VLOOKUP($A781,#REF!,6,0)","v":{"$error":"#REF!"}},null,null,null,{"$error":"#REF!"}]
[null,null,"Custo horário total de mão de obra",{"$nulls":4},{"$f":"SUM(I779:I781)","v":{"$error":"#REF!"}}]
[null,null,"Custo horário total de execução",{"$nulls":5},{"$f":"SUM(H782,I777)","v":{"$error":"#REF!"}},102.35939999999999]
[null,null,"Custo unitário de execução",{"$nulls":5},{"$f":"I783/H771","v":{"$error":"#REF!"}}]
[{"$nulls":6},"Custo do FIC",null,"-"]
[{"$nulls":6},"Custo do FIT",null,"-"]
["C - MATERIAL",null,"Quantidade","Unidade","Preço Unitário",null,"Custo Unitário"]
["M3153","Tinta poliéster em pó",8.4500000000000006E-2,"kg",null,{"$f":"VLOOKUP($A788,#REF!,5,0)","v":{"$error":"#REF!"}},null,null,{"$f":"ROUND(C788*F788,4)","v":{"$error":"#REF!"}}]
[null,null,"Custo unitário total de material",{"$nulls":5},{"$f":"SUM(I788)","v":{"$error":"#REF!"}}]
["D - ATIVIDADES AUXILIARES",null,"Quantidade","Unidade","Custo Unitário",null,"Custo Unitário"]
[null,null,"Custo total de atividades auxiliares"]
[{"$nulls":6},"Subtotal",null,{"$f":"SUM(I789,I784,I785,I786)","v":{"$error":"#REF!"}}]
["E - TEMPO FIXO",null,"Código","Quantidade","Unidade","Custo Unitário",null,"Custo Unitário"]
["M3153","Tinta poliéster em pó - Caminhão carroceria 15 t",5914655,8.0000000000000007E-5,"t",null,{"$f":"I857","v":{"$error":"#REF!"}},null,{"$f":"ROUND(D794*G794,4)","v":{"$error":"#REF!"}}]
[null,null,"Custo unitário total de tempo fixo",{"$nulls":5},{"$f":"SUM(I794)","v":{"$error":"#REF!"}}]
["F - MOMENTO DE TRANSPORTE",null,"Quantidade","Unidade","DMT",null,null,null,"Custo Unitário"]
[{"$nulls":4},"LN","RP","P"]
["M3153","Tinta poliéster em pó - Caminhão carroceria 15 t",8.0000000000000007E-5,"tkm",null,null,{"$f":"$Q$1","v":80},null,{"$f":"ROUND((C798*G798)*$I$617,4)","v":{"$error":"#REF!"}},null,5914479]
[null,null,"Custo unitário total de transporte",{"$nulls":5},{"$f":"SUM(I798)","v":{"$error":"#REF!"}}]
[{"$nulls":4},"Custo unitário direto total",null,null,null,{"$f":"SUM(I799,I795,I792)","v":{"$error":"#REF!"}},13.76]
["Obs."]
[]
["CGCIT",{"$nulls":7},"DNIT"]
["SISTEMA DE CUSTOS REFERENCIAIS DE OBRAS - SICRO",null,null,{"$f":"$M$1","v":"ESTADO MINAS GERAIS"}]
["Custo Unitário de Referência",null,null,{"$f":"M2","v":" JANEIRO 2021"},null,null,"Produção da equipe",21.37,"t"]
[5914333,"Carga, manobra e descarga de materiais diversos em caminhão carroceria de 15 t - carga e descarga com caminhão guindauto de 20 t.m",{"$nulls":5},"Valores em reais (R$)"]
["A - EQUIPAMENTOS",null,"Quantidade","Utilização",null,"Custo Horário",null,null,"Custo"]
[null,null,null,"Operativa","Improdutiva","Produtivo","Improdutivo",null,"Horário Total"]
["E9592","Caminhão carroceria com capacidade de 15 t - 188 kW",2,0.53,0.47,{"$f":"VLOOKUP($A809,#REF!,8,0)","v":{"$error":"#REF!"}},{"$f":"VLOOKUP($A809,#REF!,7,0)","v":{"$error":"#REF!"}},null,{"$f":"ROUND((C809*(D809*F809))+(C809*(E809*G809)),4)","v":{"$error":"#REF!"}}]
["E9686","Caminhão carroceria com guindauto com capacidade de 20 t.m - 136 kW",1,1,0,{"$f":"VLOOKUP($A810,#REF!,8,0)","v":{"$error":"#REF!"}},{"$f":"VLOOKUP($A810,#REF!,7,0)","v":{"$error":"#REF!"}},null,{"$error":"#REF!"}]
[{"$nulls":6},"Custo horário total de equipamentos",null,{"$f":"SUM(I809:I810)","v":{"$error":"#REF!"}}]
["B - MÃO DE OBRA",null,"Quantidade","Unidade","Custo Horário",null,"Custo Horário Total"]
["P9824","Servente",2,"h",{"$f":"VLOOKUP($A813,#REF!,6,0)","v":{"$error":"#REF!"}},null,null,null,{"$f":"ROUND(C813*E813,4)","v":{"$error":"#REF!"}}]
[null,null,"Custo horário total de mão de obra",{"$nulls":4},{"$f":"SUM(I813)","v":{"$error":"#REF!"}}]
[null,null,"Custo horário total de execução",{"$nulls":5},{"$f":"SUM(H814,I811)","v":{"$error":"#REF!"}}]
[null,null,"Custo unitário de execução",{"$nulls":5},{"$f":"I815/H805","v":{"$error":"#REF!"}}]
[{"$nulls":6},"Custo do FIC",null,"-"]
[{"$nulls":6},"Custo do FIT",null,"-"]
["C - MATERIAL",null,"Quantidade","Unidade","Preço Unitário",null,"Custo Unitário"]
[null,null,"Custo unitário total de material"]
["D - ATIVIDADES AUXILIARES",null,"Quantidade","Unidade","Custo Unitário",null,"Custo Unitário"]
[null,null,"Custo total de atividades auxiliares"]
[{"$nulls":6},"Subtotal",null,{"$f":"SUM(I816,I817,I818)","v":{"$error":"#REF!"}}]
["E - TEMPO FIXO",null,"Código","Quantidade","Unidade","Custo Unitário",null,"Custo Unitário"]
[null,null,"Custo unitário total de tempo fixo"]
["F - MOMENTO DE TRANSPORTE",null,"Quantidade","Unidade","DMT",null,null,null,"Custo Unitário"]
[{"$nulls":4},"LN","RP","P"]
[null,null,"Custo unitário total de transporte",{"$nulls":5},"-"]
[{"$nulls":4},"Custo unitário direto total",null,null,null,{"$f":"ROUND(SUM(I823),4)","v":{"$error":"#REF!"}},20.77]
["Obs."]
[]
["CGCIT",{"$nulls":7},"DNIT"]
["SISTEMA DE CUSTOS REFERENCIAIS DE OBRAS - SICRO",null,null,{"$f":"$M$1","v":"ESTADO MINAS GERAIS"}]
["Custo Unitário de Referência",null,null,{"$f":"M2","v":" JANEIRO 2021"},null,null,"Produção da equipe",11.84,"t"]
[5914655,"Carga, manobra e descarga de materiais diversos em caminhão carroceria de 15 t - carga e descarga manuais",{"$nulls":5},"Valores em reais (R$)"]
["A - EQUIPAMENTOS",null,"Quantidade","Utilização",null,"Custo Horário",null,null,"Custo"]
[null,null,null,"Operativa","Improdutiva","Produtivo","Improdutivo",null,"Horário Total"]
["E9592","Caminhão carroceria com capacidade de 15 t - 188 kW",1,1,0,{"$f":"VLOOKUP($A838,#REF!,8,0)","v":{"$error":"#REF!"}},{"$f":"VLOOKUP($A838,#REF!,7,0)","v":{"$error":"#REF!"}},null,{"$f":"ROUND((C838*(D838*F838))+(C838*(E838*G838)),4)","v":{"$error":"#REF!"}}]
[{"$nulls":6},"Custo horário total de equipamentos",null,{"$f":"SUM(I838)","v":{"$error":"#REF!"}}]
["B - MÃO DE OBRA",null,"Quantidade","Unidade","Custo Horário",null,"Custo Horário Total"]
["P9824","Servente",6,"h",{"$f":"VLOOKUP($A841,#REF!,6,0)","v":{"$error":"#REF!"}},null,null,null,{"$f":"ROUND(C841*E841,4)","v":{"$error":"#REF!"}}]
[null,null,"Custo horário total de mão de obra",{"$nulls":4},{"$f":"SUM(I841)","v":{"$error":"#REF!"}}]
[null,null,"Custo horário total de execução",{"$nulls":5},{"$f":"SUM(H842,I839)","v":{"$error":"#REF!"}}]
[null,null,"Custo unitário de execução",{"$nulls":5},{"$f":"I843/H834","v":{"$error":"#REF!"}}]
[{"$nulls":6},"Custo do FIC",null,"-"]
[{"$nulls":6},"Custo do FIT",null,"-"]
["C - MATERIAL",null,"Quantidade","Unidade","Preço Unitário",null,"Custo Unitário"]
[null,null,"Custo unitário total de material"]
["D - ATIVIDADES AUXILIARES",null,"Quantidade","Unidade","Custo Unitário",null,"Custo Unitário"]
[null,null,"Custo total de atividades auxiliares"]
[{"$nulls":6},"Subtotal",null,{"$f":"SUM(I844,I845,I846)","v":{"$error":"#REF!"}}]
["E - TEMPO FIXO",null,"Código","Quantidade","Unidade","Custo Unitário",null,"Custo Unitário"]
[null,null,"Custo unitário total de tempo fixo"]
["F - MOMENTO DE TRANSPORTE",null,"Quantidade","Unidade","DMT",null,null,null,"Custo Unitário"]
[{"$nulls":4},"LN","RP","P"]
[null,null,"Custo unitário total de transporte",{"$nulls":5},"-"]
[{"$nulls":4},"Custo unitário direto total",null,null,null,{"$f":"ROUND(SUM(I851),4)","v":{"$error":"#REF!"}},22.02]
["Obs."]
[]
["CGCIT",{"$nulls":7},"DNIT"]
["SISTEMA DE CUSTOS REFERENCIAIS DE OBRAS - SICRO",null,null,{"$f":"$M$1","v":"ESTADO MINAS GERAIS"}]
["Custo Unitário de Referência",null,null,{"$f":"M2","v":" JANEIRO 2021"},null,null,"Produção da equipe",372.88,"tkm"]
[5914479,"Transporte com caminhão carroceria de 15 t - rodovia pavimentada",{"$nulls":5},"Valores em reais (R$)"]
["A - EQUIPAMENTOS",null,"Quantidade","Utilização",null,"Custo Horário",null,null,"Custo"]
[null,null,null,"Operativa","Improdutiva","Produtivo","Improdutivo",null,"Horário Total"]
["E9592","Caminhão carroceria com capacidade de 15 t - 188 kW",1,1,0,{"$f":"VLOOKUP($A866,#REF!,8,0)","v":{"$error":"#REF!"}},{"$f":"VLOOKUP($A866,#REF!,7,0)","v":{"$error":"#REF!"}},null,{"$f":"ROUND((C866*(D866*F866))+(C866*(E866*G866)),4)","v":{"$error":"#REF!"}}]
[{"$nulls":6},"Custo horário total de equipamentos",null,{"$f":"SUM(I866)","v":{"$error":"#REF!"}}]
["B - MÃO DE OBRA",null,"Quantidade","Unidade","Custo Horário",null,"Custo Horário Total"]
[null,null,"Custo horário total de mão de obra",{"$nulls":4},"-"]
[null,null,"Custo horário total de execução",{"$nulls":5},{"$f":"SUM(I867)","v":{"$error":"#REF!"}}]
[null,null,"Custo unitário de execução",{"$nulls":5},{"$f":"I870/H862","v":{"$error":"#REF!"}}]
[{"$nulls":6},"Custo do FIC",null,"-"]
[{"$nulls":6},"Custo do FIT",null,"-"]
["C - MATERIAL",null,"Quantidade","Unidade","Preço Unitário",null,"Custo Unitário"]
[null,null,"Custo unitário total de material"]
["D - ATIVIDADES AUXILIARES",null,"Quantidade","Unidade","Custo Unitário",null,"Custo Unitário"]
[null,null,"Custo total de atividades auxiliares"]
[{"$nulls":6},"Subtotal",null,{"$f":"SUM(I871,I872,I873)","v":{"$error":"#REF!"}}]
["E - TEMPO FIXO",null,"Código","Quantidade","Unidade","Custo Unitário",null,"Custo Unitário"]
[null,null,"Custo unitário total de tempo fixo"]
["F - MOMENTO DE TRANSPORTE",null,"Quantidade","Unidade","DMT",null,null,null,"Custo Unitário"]
[{"$nulls":4},"LN","RP","P"]
[null,null,"Custo unitário total de transporte",{"$nulls":5},"-"]
[{"$nulls":4},"Custo unitário direto total",null,null,null,{"$f":"ROUND(SUM(I878),4)","v":{"$error":"#REF!"}},0.44]
["Obs."]
[]
["CGCIT",{"$nulls":7},"DNIT"]
["SISTEMA DE CUSTOS REFERENCIAIS DE OBRAS - SICRO",null,null,{"$f":"$M$1","v":"ESTADO MINAS GERAIS"}]
["Custo Unitário de Referência",null,null,{"$f":"M2","v":" JANEIRO 2021"},null,null,"Produção da equipe",125.5,"tkm"]
[5915324,"Transporte com caminhão carroceria de 5 t - rodovia pavimentada",{"$nulls":5},"Valores em reais (R$)"]
["A - EQUIPAMENTOS",null,"Quantidade","Utilização",null,"Custo Horário",null,null,"Custo"]
[null,null,null,"Operativa","Improdutiva","Produtivo","Improdutivo",null,"Horário Total"]
["E9687","Caminhão carroceria com capacidade de 5 t - 115 kW",1,1,0,{"$f":"VLOOKUP($A893,#REF!,8,0)","v":{"$error":"#REF!"}},{"$f":"VLOOKUP($A893,#REF!,7,0)","v":{"$error":"#REF!"}},null,{"$f":"ROUND((C893*(D893*F893))+(C893*(E893*G893)),4)","v":{"$error":"#REF!"}}]
[{"$nulls":6},"Custo horário total de equipamentos",null,{"$f":"SUM(I893)","v":{"$error":"#REF!"}}]
["B - MÃO DE OBRA",null,"Quantidade","Unidade","Custo Horário",null,"Custo Horário Total"]
[null,null,"Custo horário total de mão de obra",{"$nulls":4},"-"]
[null,null,"Custo horário total de execução",{"$nulls":5},{"$f":"SUM(I894)","v":{"$error":"#REF!"}},95.67]
[null,null,"Custo unitário de execução",{"$nulls":5},{"$f":"I897/H889","v":{"$error":"#REF!"}}]
[{"$nulls":6},"Custo do FIC",null,"-"]
[{"$nulls":6},"Custo do FIT",null,"-"]
["C - MATERIAL",null,"Quantidade","Unidade","Preço Unitário",null,"Custo Unitário"]
[null,null,"Custo unitário total de material"]
["D - ATIVIDADES AUXILIARES",null,"Quantidade","Unidade","Custo Unitário",null,"Custo Unitário"]
[null,null,"Custo total de atividades auxiliares"]
[{"$nulls":6},"Subtotal",null,{"$f":"SUM(I898,I899,I900)","v":{"$error":"#REF!"}}]
["E - TEMPO FIXO",null,"Código","Quantidade","Unidade","Custo Unitário",null,"Custo Unitário"]
[null,null,"Custo unitário total de tempo fixo"]
["F - MOMENTO DE TRANSPORTE",null,"Quantidade","Unidade","DMT",null,null,null,"Custo Unitário"]
[{"$nulls":4},"LN","RP","P"]
[null,null,"Custo unitário total de transporte",{"$nulls":5},"-"]
[{"$nulls":4},"Custo unitário direto total",null,null,null,{"$f":"ROUND(SUM(I905),4)","v":{"$error":"#REF!"}},0.76]
["Obs."]
[]
["CGCIT",{"$nulls":7},"DNIT"]
["SISTEMA DE CUSTOS REFERENCIAIS DE OBRAS - SICRO",null,null,{"$f":"$M$1","v":"ESTADO MINAS GERAIS"}]
["Custo Unitário de Referência",null,null,{"$f":"M2","v":" JANEIRO 2021"},null,null,"Produção da equipe",5,"un"]
[5213851,"Fornecimento e implantação de suporte metálico galvanizado para placa de regulamentação - D = 0,60 m",{"$nulls":5},"Valores em reais (R$)"]
["A - EQUIPAMENTOS",null,"Quantidade","Utilização",null,"Custo Horário",null,null,"Custo"]
[null,null,null,"Operativa","Improdutiva","Produtivo","Improdutivo",null,"Horário Total"]
["E9687","Caminhão carroceria com capacidade de 5 t - 115 kW",1,0.3,0.7,{"$f":"VLOOKUP($A920,#REF!,8,0)","v":{"$error":"#REF!"}},{"$f":"VLOOKUP($A920,#REF!,7,0)","v":{"$error":"#REF!"}},null,{"$f":"ROUND((C920*(D920*F920))+(C920*(E920*G920)),4)","v":{"$error":"#REF!"}}]
[{"$nulls":6},"Custo horário total de equipamentos",null,{"$f":"SUM(I920)","v":{"$error":"#REF!"}}]
["B - MÃO DE OBRA",null,"Quantidade","Unidade","Custo Horário",null,"Custo Horário Total"]
["P9823","Serralheiro",1,"h",{"$f":"VLOOKUP($A923,#REF!,6,0)","v":{"$error":"#REF!"}},null,null,null,{"$f":"ROUND(C923*E923,4)","v":{"$error":"#REF!"}}]
["P9824","Servente",1,"h",{"$f":"VLOOKUP($A924,#REF!,6,0)","v":{"$error":"#REF!"}},null,null,null,{"$f":"ROUND(C924*E924,4)","v":{"$error":"#REF!"}}]
[null,null,"Custo horário total de mão de obra",{"$nulls":4},{"$f":"SUM(I923:I924)","v":{"$error":"#REF!"}}]
[null,null,"Custo horário total de execução",{"$nulls":5},{"$f":"SUM(I921,H925)","v":{"$error":"#REF!"}}]
[null,null,"Custo unitário de execução",{"$nulls":5},{"$f":"I926/H916","v":{"$error":"#REF!"}},19.600000000000001]
[{"$nulls":6},"Custo do FIC",null,"-"]
[{"$nulls":6},"Custo do FIT",null,"-"]
["C - MATERIAL",null,"Quantidade","Unidade","Preço Unitário",null,"Custo Unitário"]
["M0789","Conjunto de cantoneiras e parafusos galvanizados para fixação de placas",1.0581199999999999,"kg",null,{"$f":"VLOOKUP($A931,#REF!,5,0)","v":{"$error":"#REF!"}},null,null,{"$f":"ROUND(C931*F931,4)","v":{"$error":"#REF!"}}]
["M0787","Suporte em aço carbono galvanizado perfil \"C\"",11.775,"kg",null,{"$f":"VLOOKUP($A932,#REF!,5,0)","v":{"$error":"#REF!"}},null,null,{"$error":"#REF!"}]
[null,null,"Custo unitário total de material",{"$nulls":5},{"$f":"SUM(I931:I932)","v":{"$error":"#REF!"}}]
["D - ATIVIDADES AUXILIARES",null,"Quantidade","Unidade","Custo Unitário",null,"Custo Unitário"]
[1107892,"Concreto fck = 20 MPa - confecção em betoneira e lançamento manual - areia e brita comerciais",1.7999999999999999E-2,"m³",null,{"$f":"$I$1000","v":{"$error":"#REF!"}},null,null,{"$f":"ROUND(C935*F935,4)","v":{"$error":"#REF!"}}]
[4805750,"Escavação manual em material de 1ª categoria na profundidade de até 1 m",1.7999999999999999E-2,"m³",null,{"$f":"$I$1027","v":{"$error":"#REF!"}},null,null,{"$f":"ROUND(C936*F936,4)","v":{"$error":"#REF!"}}]
[null,null,"Custo total de atividades auxiliares",{"$nulls":5},{"$f":"SUM(I935:I936)","v":{"$error":"#REF!"}}]
[{"$nulls":6},"Subtotal",null,{"$f":"SUM(I937,I933,I927,I928,I929)","v":{"$error":"#REF!"}},223.01660000000001]
["E - TEMPO FIXO",null,"Código","Quantidade","Unidade","Custo Unitário",null,"Custo Unitário"]
["M0789","Conjunto de cantoneiras e parafusos galvanizados para fixação de placas - Caminhão carroceria 5 t",5915474,1.06E-3,"t",null,{"$f":"$I$590","v":{"$error":"#REF!"}},null,{"$f":"ROUND(D940*G940,4)","v":{"$error":"#REF!"}}]
["M0787","Suporte em aço carbono galvanizado perfil \"C\" - Caminhão carroceria 5 t",5915474,1.1780000000000001E-2,"t",null,{"$f":"$I$590","v":{"$error":"#REF!"}},null,{"$f":"ROUND(D941*G941,4)","v":{"$error":"#REF!"}}]
[4805750,"Escavação manual em material de 1ª categoria na profundidade de até 1 m - Caminhão basculante 6 m³",5915476,3.3750000000000002E-2,"t",null,{"$error":"#REF!"},null,{"$error":"#REF!"}]
[null,null,"Custo unitário total de tempo fixo",{"$nulls":5},{"$f":"SUM(I940:I942)","v":{"$error":"#REF!"}}]
["F - MOMENTO DE TRANSPORTE",null,"Quantidade","Unidade","DMT",null,null,null,"Custo Unitário"]
[{"$nulls":4},"LN","RP","P"]
["M0789","Conjunto de cantoneiras e parafusos galvanizados para fixação de placas - Caminhão carroceria 5 t",1.06E-3,"tkm",null,null,{"$f":"$Q$1","v":80},null,{"$f":"ROUND((C946*G946)*$I$617,4)","v":{"$error":"#REF!"}},null,5915324]
["M0787","Suporte em aço carbono galvanizado perfil \"C\" - Caminhão carroceria 5 t",1.1780000000000001E-2,"tkm",null,null,{"$f":"$Q$1","v":80},null,{"$f":"ROUND((C947*G947)*$I$617,4)","v":{"$error":"#REF!"}},null,5915324]
[4805750,"Escavação manual em material de 1ª categoria na profundidade de até 1 m - Caminhão basculante 6 m³",3.3750000000000002E-2,"tkm",null,null,{"$f":"$Q$1","v":80},null,{"$f":"ROUND((C948*G948)*$I$1054,4)","v":{"$error":"#REF!"}},null,5914344]
[null,null,"Custo unitário total de transporte",{"$nulls":5},{"$f":"SUM(I946:I948)","v":{"$error":"#REF!"}}]
[{"$nulls":4},"Custo unitário direto total",null,null,null,{"$f":"SUM(I949,I943,I938)","v":{"$error":"#REF!"}},223.93]
[{"$nulls":5},"BDI",{"$f":"'[12]Médio Porte'!$D$24","v":0.2374},null,{"$f":"ROUND(I950*G951,4)","v":{"$error":"#REF!"}}]
[{"$nulls":6},"Preço Unitário:",null,{"$f":"ROUND(SUM(I950,I951),2)","v":{"$error":"#REF!"}}]
["Obs."]
[]
["CGCIT",{"$nulls":7},"DNIT"]
["SISTEMA DE CUSTOS REFERENCIAIS DE OBRAS - SICRO",null,null,{"$f":"$M$1","v":"ESTADO MINAS GERAIS"}]
["Custo Unitário de Referência",null,null,{"$f":"M2","v":" JANEIRO 2021"},null,null,"Produção da equipe",3.9289900000000002,"m³"]
[1107892,"Concreto fck = 20 MPa - confecção em betoneira e lançamento manual - areia e brita comerciais",{"$nulls":5},"Valores em reais (R$)"]
["A - EQUIPAMENTOS",null,"Quantidade","Utilização",null,"Custo Horário",null,null,"Custo"]
[null,null,null,"Operativa","Improdutiva","Produtivo","Improdutivo",null,"Horário Total"]
["E9010","Balança plataforma digital com mesa de 75 x 75 cm com capacidade de 500 kg",1,1,0,{"$f":"VLOOKUP($A961,#REF!,8,0)","v":{"$error":"#REF!"}},{"$f":"VLOOKUP($A961,#REF!,7,0)","v":{"$error":"#REF!"}},null,{"$f":"ROUND((C961*(D961*F961))+(C961*(E961*G961)),4)","v":{"$error":"#REF!"}}]
["E9519","Betoneira com motor a gasolina com capacidade de 600 l - 10 kW",1,1,0,{"$f":"VLOOKUP($A962,#REF!,8,0)","v":{"$error":"#REF!"}},{"$f":"VLOOKUP($A962,#REF!,7,0)","v":{"$error":"#REF!"}},null,{"$error":"#REF!"}]
["E9521","Grupo gerador - 2,5/3 kVA",1,1,0,{"$f":"VLOOKUP($A963,#REF!,8,0)","v":{"$error":"#REF!"}},{"$f":"VLOOKUP($A963,#REF!,7,0)","v":{"$error":"#REF!"}},null,{"$error":"#REF!"}]
["E9071","Transportador manual carrinho de mão com capacidade de 80 l",4,0.9,9.9999999999999978E-2,{"$f":"VLOOKUP($A964,#REF!,8,0)","v":{"$error":"#REF!"}},{"$f":"VLOOKUP($A964,#REF!,7,0)","v":{"$error":"#REF!"}},null,{"$error":"#REF!"}]
["E9064","Transportador manual gerica com capacidade de 180 l",3,0.41,0.59000000000000008,{"$f":"VLOOKUP($A965,#REF!,8,0)","v":{"$error":"#REF!"}},{"$f":"VLOOKUP($A965,#REF!,7,0)","v":{"$error":"#REF!"}},null,{"$error":"#REF!"}]
[{"$nulls":6},"Custo horário total de equipamentos",null,{"$f":"SUM(I961:I965)","v":{"$error":"#REF!"}}]
["B - MÃO DE OBRA",null,"Quantidade","Unidade","Custo Horário",null,"Custo Horário Total"]
["P9821","Pedreiro",1,"h",{"$f":"VLOOKUP($A968,#REF!,6,0)","v":{"$error":"#REF!"}},null,null,null,{"$f":"ROUND(C968*E968,4)","v":{"$error":"#REF!"}}]
["P9824","Servente",9,"h",{"$f":"VLOOKUP($A969,#REF!,6,0)","v":{"$error":"#REF!"}},null,null,null,{"$f":"ROUND(C969*E969,4)","v":{"$error":"#REF!"}}]
[null,null,"Custo horário total de mão de obra",{"$nulls":4},{"$f":"SUM(I968:I969)","v":{"$error":"#REF!"}}]
[null,null,"Custo horário total de execução",{"$nulls":5},{"$f":"SUM(H970,I966)","v":{"$error":"#REF!"}}]
[null,null,"Custo unitário de execução",{"$nulls":5},{"$f":"I971/H957","v":{"$error":"#REF!"}}]
[{"$nulls":6},"Custo do FIC",null,"-"]
[{"$nulls":6},"Custo do FIT",null,"-"]
["C - MATERIAL",null,"Quantidade","Unidade","Preço Unitário",null,"Custo Unitário"]
["M0030","Aditivo plastificante e retardador de pega para concreto e argamassa",0.84645999999999999,"kg",null,{"$f":"VLOOKUP($A976,#REF!,5,0)","v":{"$error":"#REF!"}},null,null,{"$f":"ROUND(C976*F976,4)","v":{"$error":"#REF!"}}]
["M0082","Areia média lavada",0.63334000000000001,"m³",null,{"$f":"VLOOKUP($A977,#REF!,5,0)","v":{"$error":"#REF!"}},null,null,{"$error":"#REF!"}]
["M0191","Brita 1",0.36753999999999998,"m³",null,{"$f":"VLOOKUP($A978,#REF!,5,0)","v":{"$error":"#REF!"}},null,null,{"$error":"#REF!"}]
["M0192","Brita 2",0.36753999999999998,"m³",null,{"$f":"VLOOKUP($A979,#REF!,5,0)","v":{"$error":"#REF!"}},null,null,{"$error":"#REF!"}]
["M0424","Cimento Portland CP II - 32",282.15206999999998,"kg",null,{"$f":"VLOOKUP($A980,#REF!,5,0)","v":{"$error":"#REF!"}},null,null,{"$error":"#REF!"}]
[null,null,"Custo unitário total de material",{"$nulls":5},{"$f":"SUM(I976:I980)","v":{"$error":"#REF!"}}]
["D - ATIVIDADES AUXILIARES",null,"Quantidade","Unidade","Custo Unitário",null,"Custo Unitário"]
[null,null,"Custo total de atividades auxiliares"]
[{"$nulls":6},"Subtotal",null,{"$f":"SUM(I981,I972,I973,I974)","v":{"$error":"#REF!"}},298.85000000000002]
["E - TEMPO FIXO",null,"Código","Quantidade","Unidade","Custo Unitário",null,"Custo Unitário"]
["M0030","Aditivo plastificante e retardador de pega para concreto e argamassa - Caminhão carroceria 15 t",5914655,8.4999999999999995E-4,"t",null,{"$f":"$I$857","v":{"$error":"#REF!"}},null,{"$f":"ROUND(D986*G986,4)","v":{"$error":"#REF!"}}]
["M0082","Areia média lavada - Caminhão basculante 10 m³",5914647,0.95001000000000002,"t",null,{"$f":"$I$110","v":{"$error":"#REF!"}},null,{"$f":"ROUND(D987*G987,4)","v":{"$error":"#REF!"}}]
["M0191","Brita 1 - Caminhão basculante 10 m³",5914647,0.55130999999999997,"t",null,{"$f":"$I$110","v":{"$error":"#REF!"}},null,{"$error":"#REF!"}]
["M0192","Brita 2 - Caminhão basculante 10 m³",5914647,0.55130999999999997,"t",null,{"$f":"$I$110","v":{"$error":"#REF!"}},null,{"$error":"#REF!"}]
["M0424","Cimento Portland CP II - 32 - Caminhão carroceria 15 t",5914655,0.28215000000000001,"t",null,{"$f":"$I$857","v":{"$error":"#REF!"}},null,{"$error":"#REF!"}]
[null,null,"Custo unitário total de tempo fixo",{"$nulls":5},{"$f":"SUM(I986:I990)","v":{"$error":"#REF!"}}]
["F - MOMENTO DE TRANSPORTE",null,"Quantidade","Unidade","DMT",null,null,null,"Custo Unitário"]
[{"$nulls":4},"LN","RP","P"]
["M0030","Aditivo plastificante e retardador de pega para concreto e argamassa - Caminhão carroceria 15 t",8.4999999999999995E-4,"tkm",null,null,{"$f":"$Q$1","v":80},null,{"$f":"ROUND((C994*G994)*$I$884,4)","v":{"$error":"#REF!"}},null,5914479]
["M0082","Areia média lavada - Caminhão basculante 10 m³",0.95001000000000002,"tkm",null,null,{"$f":"$Q$2","v":10},null,{"$f":"ROUND((C995*G995)*$I$164,4)","v":{"$error":"#REF!"}},null,5914389]
["M0191","Brita 1 - Caminhão basculante 10 m³",0.55130999999999997,"tkm",null,null,{"$f":"$Q$3","v":5},null,{"$f":"ROUND((C996*G996)*$I$164,4)","v":{"$error":"#REF!"}},null,5914389]
["M0192","Brita 2 - Caminhão basculante 10 m³",0.55130999999999997,"tkm",null,null,{"$f":"$Q$3","v":5},null,{"$f":"ROUND((C997*G997)*$I$164,4)","v":{"$error":"#REF!"}},null,5914389]
["M0424","Cimento Portland CP II - 32 - Caminhão carroceria 15 t",0.28215000000000001,"tkm",null,null,{"$f":"$Q$3","v":5},null,{"$f":"ROUND((C998*G998)*$I$884,4)","v":{"$error":"#REF!"}},null,5914479]
[null,null,"Custo unitário total de transporte",{"$nulls":5},{"$f":"SUM(I994:I998)","v":{"$error":"#REF!"}}]
[{"$nulls":4},"Custo unitário direto total",null,null,null,{"$f":"SUM(I999,I991,I984)","v":{"$error":"#REF!"}},307.04000000000002,"SEM O MOMENTOS DE TRANSPORTE"]
["Obs."]
[]
["CGCIT",{"$nulls":7},"DNIT"]
["SISTEMA DE CUSTOS REFERENCIAIS DE OBRAS - SICRO",null,null,{"$f":"$M$1","v":"ESTADO MINAS GERAIS"}]
["Custo Unitário de Referência",null,null,{"$f":"M2","v":" JANEIRO 2021"},null,null,"Produção da equipe",0.5,"m³"]
[4805750,"Escavação manual em material de 1ª categoria na profundidade de até 1 m",{"$nulls":5},"Valores em reais (R$)"]
["A - EQUIPAMENTOS",null,"Quantidade","Utilização",null,"Custo Horário",null,null,"Custo"]
[null,null,null,"Operativa","Improdutiva","Produtivo","Improdutivo",null,"Horário Total"]
[{"$nulls":6},"Custo horário total de equipamentos"]
["B - MÃO DE OBRA",null,"Quantidade","Unidade","Custo Horário",null,"Custo Horário Total"]
["P9824","Servente",1,"h",{"$f":"VLOOKUP($A1011,#REF!,6,0)","v":{"$error":"#REF!"}},null,null,null,{"$f":"ROUND(C1011*E1011,4)","v":{"$error":"#REF!"}}]
[null,null,"Custo horário total de mão de obra",{"$nulls":4},{"$f":"SUM(I1011)","v":{"$error":"#REF!"}}]
[null,null,"Custo horário total de execução",{"$nulls":5},{"$f":"SUM(H1012)","v":{"$error":"#REF!"}}]
[null,null,"Custo unitário de execução",{"$nulls":5},{"$f":"I1013/H1005","v":{"$error":"#REF!"}}]
[{"$nulls":6},"Custo do FIC",1.059E-2,{"$f":"I1014*H1015","v":{"$error":"#REF!"}}]
[{"$nulls":6},"Custo do FIT",null,"-"]
["C - MATERIAL",null,"Quantidade","Unidade","Preço Unitário",null,"Custo Unitário"]
[null,null,"Custo unitário total de material"]
["D - ATIVIDADES AUXILIARES",null,"Quantidade","Unidade","Custo Unitário",null,"Custo Unitário"]
[null,null,"Custo total de atividades auxiliares"]
[{"$nulls":6},"Subtotal",null,{"$f":"SUM(I1014,I1015,I1016)","v":{"$error":"#REF!"}}]
["E - TEMPO FIXO",null,"Código","Quantidade","Unidade","Custo Unitário",null,"Custo Unitário"]
[null,null,"Custo unitário total de tempo fixo"]
["F - MOMENTO DE TRANSPORTE",null,"Quantidade","Unidade","DMT",null,null,null,"Custo Unitário"]
[{"$nulls":4},"LN","RP","P"]
[null,null,"Custo unitário total de transporte",{"$nulls":5},"-"]
[{"$nulls":4},"Custo unitário direto total",null,null,null,{"$f":"SUM(I1021)","v":{"$error":"#REF!"}},33]
["Obs."]
[]
["CGCIT",{"$nulls":7},"DNIT"]
["SISTEMA DE CUSTOS REFERENCIAIS DE OBRAS - SICRO",null,null,{"$f":"$M$1","v":"ESTADO MINAS GERAIS"}]
["Custo Unitário de Referência",null,null,{"$f":"M2","v":" JANEIRO 2021"},null,null,"Produção da equipe",224.1,"tkm"]
[5914344,"Transporte com caminhão basculante de 6 m³ - rodovia pavimentada",{"$nulls":5},"Valores em reais (R$)"]
["A - EQUIPAMENTOS",null,"Quantidade","Utilização",null,"Custo Horário",null,null,"Custo"]
[null,null,null,"Operativa","Improdutiva","Produtivo","Improdutivo",null,"Horário Total"]
["E9506","Caminhão basculante com capacidade de 6 m³ - 136 kW",1,1,0,{"$f":"VLOOKUP($A1036,#REF!,8,0)","v":{"$error":"#REF!"}},{"$f":"VLOOKUP($A1036,#REF!,7,0)","v":{"$error":"#REF!"}},null,{"$f":"ROUND((C1036*(D1036*F1036))+(C1036*(E1036*G1036)),4)","v":{"$error":"#REF!"}}]
[{"$nulls":6},"Custo horário total de equipamentos",null,{"$f":"SUM(I1036)","v":{"$error":"#REF!"}}]
["B - MÃO DE OBRA",null,"Quantidade","Unidade","Custo Horário",null,"Custo Horário Total"]
[null,null,"Custo horário total de mão de obra",{"$nulls":4},"-"]
[null,null,"Custo horário total de execução",{"$nulls":5},{"$f":"SUM(I1037)","v":{"$error":"#REF!"}}]
[null,null,"Custo unitário de execução",{"$nulls":5},{"$f":"I1040/H1032","v":{"$error":"#REF!"}}]
[{"$nulls":6},"Custo do FIC",null,"-"]
[{"$nulls":6},"Custo do FIT",null,"-"]
["C - MATERIAL",null,"Quantidade","Unidade","Preço Unitário",null,"Custo Unitário"]
[null,null,"Custo unitário total de material"]
["D - ATIVIDADES AUXILIARES",null,"Quantidade","Unidade","Custo Unitário",null,"Custo Unitário"]
[null,null,"Custo total de atividades auxiliares"]
[{"$nulls":6},"Subtotal",null,{"$f":"SUM(I1041,I1042,I1043)","v":{"$error":"#REF!"}}]
["E - TEMPO FIXO",null,"Código","Quantidade","Unidade","Custo Unitário",null,"Custo Unitário"]
[null,null,"Custo unitário total de tempo fixo"]
["F - MOMENTO DE TRANSPORTE",null,"Quantidade","Unidade","DMT",null,null,null,"Custo Unitário"]
[{"$nulls":4},"LN","RP","P"]
[null,null,"Custo unitário total de transporte",{"$nulls":5},"-"]
[{"$nulls":4},"Custo unitário direto total",null,null,null,{"$f":"SUM(I1048)","v":{"$error":"#REF!"}},0.52]
["Obs."]
[]
["CGCIT",{"$nulls":7},"DNIT"]
["SISTEMA DE CUSTOS REFERENCIAIS DE OBRAS - SICRO",null,null,{"$f":"$M$1","v":"ESTADO MINAS GERAIS"}]
["Custo Unitário de Referência",null,null,{"$f":"M2","v":" JANEIRO 2021"},null,null,"Produção da equipe",1,"m"]
[2003325,"Sarjeta triangular de concreto - STC 04 - areia e brita comerciais",{"$nulls":5},"Valores em reais (R$)"]
["A - EQUIPAMENTOS",null,"Quantidade","Utilização",null,"Custo Horário",null,null,"Custo"]
[null,null,null,"Operativa","Improdutiva","Produtivo","Improdutivo",null,"Horário Total"]
[{"$nulls":6},"Custo horário total de equipamentos"]
["B - MÃO DE OBRA",null,"Quantidade","Unidade","Custo Horário",null,"Custo Horário Total"]
[null,null,"Custo horário total de mão de obra",{"$nulls":4},"-"]
[null,null,"Custo horário total de execução",{"$nulls":5},"-"]
[null,null,"Custo unitário de execução",{"$nulls":5},"-"]
[{"$nulls":6},"Custo do FIC",null,"-"]
[{"$nulls":6},"Custo do FIT",null,"-"]
["C - MATERIAL",null,"Quantidade","Unidade","Preço Unitário",null,"Custo Unitário"]
[null,null,"Custo unitário total de material"]
["D - ATIVIDADES AUXILIARES",null,"Quantidade","Unidade","Custo Unitário",null,"Custo Unitário"]
[4805755,"Apiloamento manual",0.1462,"m³",null,{"$f":"$I$1114","v":{"$error":"#REF!"}},null,null,{"$f":"ROUND(C1073*F1073,4)","v":{"$error":"#REF!"}}]
[1107892,"Concreto fck = 20 MPa - confecção em betoneira e lançamento manual - areia e brita comerciais",7.1800000000000003E-2,"m³",null,{"$f":"$I$1162","v":{"$error":"#REF!"}},null,null,{"$f":"ROUND(C1074*F1074,4)","v":{"$error":"#REF!"}},22.04]
[2003842,"Enchimento de junta de concreto com argamassa asfáltica de densidade 1.700 kg/m³ - espessura de 1 cm",0.1017,"kg",null,{"$f":"$I$1192","v":{"$error":"#REF!"}},null,null,{"$error":"#REF!"}]
[4805751,"Escavação manual em material de 1ª categoria na profundidade de 1 a 2 m",0.14180000000000001,"m³",null,{"$f":"$I$1219","v":{"$error":"#REF!"}},null,null,{"$error":"#REF!"}]
[3108022,"Guia de madeira de 2,5 x 8,0 cm - confecção e instalação",0.48749999999999999,"m",null,{"$f":"$I$1250","v":{"$error":"#REF!"}},null,null,{"$error":"#REF!"}]
[null,null,"Custo total de atividades auxiliares",{"$nulls":5},{"$f":"SUM(I1073:I1077)","v":{"$error":"#REF!"}}]
[{"$nulls":6},"Subtotal",null,{"$f":"SUM(I1078,I1067,I1068,I1069)","v":{"$error":"#REF!"}},37.14]
["E - TEMPO FIXO",null,"Código","Quantidade","Unidade","Custo Unitário",null,"Custo Unitário"]
[null,null,"Custo unitário total de tempo fixo"]
["F - MOMENTO DE TRANSPORTE",null,"Quantidade","Unidade","DMT",null,null,null,"Custo Unitário"]
[{"$nulls":4},"LN","RP","P"]
[null,null,"Custo unitário total de transporte",{"$nulls":5},"-"]
[{"$nulls":4},"Custo unitário direto total",null,null,null,{"$f":"SUM(I1079)","v":{"$error":"#REF!"}},37.14]
[{"$nulls":5},"BDI",{"$f":"'[12]Médio Porte'!$D$24","v":0.2374},null,{"$f":"ROUND(I1085*G1086,4)","v":{"$error":"#REF!"}}]
[{"$nulls":6},"Preço Unitário:",null,{"$f":"ROUND(SUM(I1085,I1086),2)","v":{"$error":"#REF!"}}]
["Obs."]
[]
["CGCIT",{"$nulls":7},"DNIT"]
["SISTEMA DE CUSTOS REFERENCIAIS DE OBRAS - SICRO",null,null,{"$f":"$M$1","v":"ESTADO MINAS GERAIS"}]
["Custo Unitário de Referência",null,null,{"$f":"M2","v":" JANEIRO 2021"},null,null,"Produção da equipe",0.66666999999999998,"m³"]
[4805755,"Apiloamento manual",{"$nulls":5},"Valores em reais (R$)"]
["A - EQUIPAMENTOS",null,"Quantidade","Utilização",null,"Custo Horário",null,null,"Custo"]
[null,null,null,"Operativa","Improdutiva","Produtivo","Improdutivo",null,"Horário Total"]
[{"$nulls":6},"Custo horário total de equipamentos"]
["B - MÃO DE OBRA",null,"Quantidade","Unidade","Custo Horário",null,"Custo Horário Total"]
["P9824","Servente",1,"h",{"$f":"VLOOKUP($A1098,#REF!,6,0)","v":{"$error":"#REF!"}},null,null,null,{"$f":"ROUND(C1098*E1098,4)","v":{"$error":"#REF!"}}]
[null,null,"Custo horário total de mão de obra",{"$nulls":4},"-"]
[null,null,"Custo horário total de execução",{"$nulls":5},{"$f":"SUM(H1098:I1099)","v":{"$error":"#REF!"}}]
[null,null,"Custo unitário de execução",{"$nulls":5},{"$f":"I1100/H1092","v":{"$error":"#REF!"}}]
[{"$nulls":6},"Custo do FIC",null,"-"]
[{"$nulls":6},"Custo do FIT",null,"-"]
["C - MATERIAL",null,"Quantidade","Unidade","Preço Unitário",null,"Custo Unitário"]
[null,null,"Custo unitário total de material"]
["D - ATIVIDADES AUXILIARES",null,"Quantidade","Unidade","Custo Unitário",null,"Custo Unitário"]
[null,null,"Custo total de atividades auxiliares"]
[{"$nulls":6},"Subtotal",null,{"$f":"SUM(I1101,I1102,I1103)","v":{"$error":"#REF!"}}]
["E - TEMPO FIXO",null,"Código","Quantidade","Unidade","Custo Unitário",null,"Custo Unitário"]
[null,null,"Custo unitário total de tempo fixo"]
["F - MOMENTO DE TRANSPORTE",null,"Quantidade","Unidade","DMT",null,null,null,"Custo Unitário"]
[{"$nulls":4},"LN","RP","P"]
[null,null,"Custo unitário total de transporte",{"$nulls":5},"-"]
[{"$nulls":4},"Custo unitário direto total",null,null,null,{"$f":"SUM(I1108)","v":{"$error":"#REF!"}},24.25]
["Obs."]
[]
["CGCIT",{"$nulls":7},"DNIT"]
["SISTEMA DE CUSTOS REFERENCIAIS DE OBRAS - SICRO",null,null,{"$f":"$M$1","v":"ESTADO MINAS GERAIS"}]
["Custo Unitário de Referência",null,null,{"$f":"M2","v":" JANEIRO 2021"},null,null,"Produção da equipe",3.9289900000000002,"m³"]
[1107892,"Concreto fck = 20 MPa - confecção em betoneira e lançamento manual - areia e brita comerciais",{"$nulls":5},"Valores em reais (R$)"]
["A - EQUIPAMENTOS",null,"Quantidade","Utilização",null,"Custo Horário",null,null,"Custo"]
[null,null,null,"Operativa","Improdutiva","Produtivo","Improdutivo",null,"Horário Total"]
["E9010","Balança plataforma digital com mesa de 75 x 75 cm com capacidade de 500 kg",1,1,0,{"$f":"VLOOKUP($A1123,#REF!,8,0)","v":{"$error":"#REF!"}},{"$f":"VLOOKUP($A1123,#REF!,7,0)","v":{"$error":"#REF!"}},null,{"$f":"ROUND((C1123*(D1123*F1123))+(C1123*(E1123*G1123)),4)","v":{"$error":"#REF!"}}]
["E9519","Betoneira com motor a gasolina com capacidade de 600 l - 10 kW",1,1,0,{"$f":"VLOOKUP($A1124,#REF!,8,0)","v":{"$error":"#REF!"}},{"$f":"VLOOKUP($A1124,#REF!,7,0)","v":{"$error":"#REF!"}},null,{"$error":"#REF!"}]
["E9521","Grupo gerador - 2,5/3 kVA",1,1,0,{"$f":"VLOOKUP($A1125,#REF!,8,0)","v":{"$error":"#REF!"}},{"$f":"VLOOKUP($A1125,#REF!,7,0)","v":{"$error":"#REF!"}},null,{"$error":"#REF!"}]
["E9071","Transportador manual carrinho de mão com capacidade de 80 l",4,0.9,9.9999999999999978E-2,{"$f":"VLOOKUP($A1126,#REF!,8,0)","v":{"$error":"#REF!"}},{"$f":"VLOOKUP($A1126,#REF!,7,0)","v":{"$error":"#REF!"}},null,{"$error":"#REF!"}]
["E9064","Transportador manual gerica com capacidade de 180 l",3,0.41,0.59000000000000008,{"$f":"VLOOKUP($A1127,#REF!,8,0)","v":{"$error":"#REF!"}},{"$f":"VLOOKUP($A1127,#REF!,7,0)","v":{"$error":"#REF!"}},null,{"$error":"#REF!"}]
[{"$nulls":6},"Custo horário total de equipamentos",null,{"$f":"SUM(I1123:I1127)","v":{"$error":"#REF!"}}]
["B - MÃO DE OBRA",null,"Quantidade","Unidade","Custo Horário",null,"Custo Horário Total"]
["P9821","Pedreiro",1,"h",{"$f":"VLOOKUP($A1130,#REF!,6,0)","v":{"$error":"#REF!"}},null,null,null,{"$f":"ROUND(C1130*E1130,4)","v":{"$error":"#REF!"}}]
["P9824","Servente",9,"h",{"$f":"VLOOKUP($A1131,#REF!,6,0)","v":{"$error":"#REF!"}},null,null,null,{"$f":"ROUND(C1131*E1131,4)","v":{"$error":"#REF!"}}]
[null,null,"Custo horário total de mão de obra",{"$nulls":4},{"$f":"SUM(I1130:I1131)","v":{"$error":"#REF!"}}]
[null,null,"Custo horário total de execução",{"$nulls":5},{"$f":"SUM(H1132,I1128)","v":{"$error":"#REF!"}},209.83]
[null,null,"Custo unitário de execução",{"$nulls":5},{"$f":"I1133/H1119","v":{"$error":"#REF!"}}]
[{"$nulls":6},"Custo do FIC",null,"-"]
[{"$nulls":6},"Custo do FIT",null,"-"]
["C - MATERIAL",null,"Quantidade","Unidade","Preço Unitário",null,"Custo Unitário"]
["M0030","Aditivo plastificante e retardador de pega para concreto e argamassa",0.84645999999999999,"kg",null,{"$f":"VLOOKUP($A1138,#REF!,5,0)","v":{"$error":"#REF!"}},null,null,{"$f":"ROUND(C1138*F1138,4)","v":{"$error":"#REF!"}}]
["M0082","Areia média lavada",0.63334000000000001,"m³",null,{"$f":"VLOOKUP($A1139,#REF!,5,0)","v":{"$error":"#REF!"}},null,null,{"$error":"#REF!"}]
["M0191","Brita 1",0.36753999999999998,"m³",null,{"$f":"VLOOKUP($A1140,#REF!,5,0)","v":{"$error":"#REF!"}},null,null,{"$error":"#REF!"}]
["M0192","Brita 2",0.36753999999999998,"m³",null,{"$f":"VLOOKUP($A1141,#REF!,5,0)","v":{"$error":"#REF!"}},null,null,{"$error":"#REF!"}]
["M0424","Cimento Portland CP II - 32",282.15206999999998,"kg",null,{"$f":"VLOOKUP($A1142,#REF!,5,0)","v":{"$error":"#REF!"}},null,null,{"$error":"#REF!"}]
[null,null,"Custo unitário total de material",{"$nulls":5},{"$f":"SUM(I1138:I1142)","v":{"$error":"#REF!"}}]
["D - ATIVIDADES AUXILIARES",null,"Quantidade","Unidade","Custo Unitário",null,"Custo Unitário"]
[null,null,"Custo total de atividades auxiliares"]
[{"$nulls":6},"Subtotal",null,{"$f":"SUM(I1143,I1134,I1135,I1136)","v":{"$error":"#REF!"}},298.85939999999999]
["E - TEMPO FIXO",null,"Código","Quantidade","Unidade","Custo Unitário",null,"Custo Unitário"]
["M0030","Aditivo plastificante e retardador de pega para concreto e argamassa - Caminhão carroceria 15 t",5914655,8.4999999999999995E-4,"t",null,{"$f":"$I$857","v":{"$error":"#REF!"}},null,{"$f":"ROUND(D1148*G1148,4)","v":{"$error":"#REF!"}}]
["M0082","Areia média lavada - Caminhão basculante 10 m³",5914647,0.95001000000000002,"t",null,{"$f":"$I$110","v":{"$error":"#REF!"}},null,{"$f":"ROUND(D1149*G1149,4)","v":{"$error":"#REF!"}}]
["M0191","Brita 1 - Caminhão basculante 10 m³",5914647,0.55130999999999997,"t",null,{"$f":"$I$110","v":{"$error":"#REF!"}},null,{"$error":"#REF!"}]
["M0192","Brita 2 - Caminhão basculante 10 m³",5914647,0.55130999999999997,"t",null,{"$f":"$I$110","v":{"$error":"#REF!"}},null,{"$error":"#REF!"}]
["M0424","Cimento Portland CP II - 32 - Caminhão carroceria 15 t",5914655,0.28215000000000001,"t",null,{"$f":"$I$857","v":{"$error":"#REF!"}},null,{"$error":"#REF!"}]
[null,null,"Custo unitário total de tempo fixo",{"$nulls":5},{"$f":"SUM(I1148:I1152)","v":{"$error":"#REF!"}}]
["F - MOMENTO DE TRANSPORTE",null,"Quantidade","Unidade","DMT",null,null,null,"Custo Unitário"]
[{"$nulls":4},"LN","RP","P"]
["M0030","Aditivo plastificante e retardador de pega para concreto e argamassa - Caminhão carroceria 15 t",8.4999999999999995E-4,"tkm",null,null,{"$f":"$Q$1","v":80},null,{"$f":"ROUND((C1156*G1156)*$I$884,4)","v":{"$error":"#REF!"}},null,5914479]
["M0082","Areia média lavada - Caminhão basculante 10 m³",0.95001000000000002,"tkm",null,null,{"$f":"$Q$2","v":10},null,{"$f":"ROUND((C1157*G1157)*$I$164,4)","v":{"$error":"#REF!"}},null,5914389]
["M0191","Brita 1 - Caminhão basculante 10 m³",0.55130999999999997,"tkm",null,null,{"$f":"$Q$3","v":5},null,{"$f":"ROUND((C1158*G1158)*$I$164,4)","v":{"$error":"#REF!"}},null,5914389]
["M0192","Brita 2 - Caminhão basculante 10 m³",0.55130999999999997,"tkm",null,null,{"$f":"$Q$3","v":5},null,{"$f":"ROUND((C1159*G1159)*$I$164,4)","v":{"$error":"#REF!"}},null,5914389]
["M0424","Cimento Portland CP II - 32 - Caminhão carroceria 15 t",0.28215000000000001,"tkm",null,null,{"$f":"$Q$3","v":5},null,{"$f":"ROUND((C1160*G1160)*$I$884,4)","v":{"$error":"#REF!"}},null,5914479]
[null,null,"Custo unitário total de transporte",{"$nulls":5},{"$f":"SUM(I1156:I1160)","v":{"$error":"#REF!"}}]
[{"$nulls":4},"Custo unitário direto total",null,null,null,{"$f":"SUM(I1161,I1153,I1146)","v":{"$error":"#REF!"}},307.04000000000002,"SEM OS MOMENTOS DE TRANSPORTE"]
["Obs."]
[]
["CGCIT",{"$nulls":7},"DNIT"]
["SISTEMA DE CUSTOS REFERENCIAIS DE OBRAS - SICRO",null,null,{"$f":"$M$1","v":"ESTADO MINAS GERAIS"}]
["Custo Unitário de Referência",null,null,{"$f":"M2","v":" JANEIRO 2021"},null,null,"Produção da equipe",1,"kg"]
[2003842,"Enchimento de junta de concreto com argamassa asfáltica de densidade 1.700 kg/m³ - espessura de 1 cm",{"$nulls":5},"Valores em reais (R$)"]
["A - EQUIPAMENTOS",null,"Quantidade","Utilização",null,"Custo Horário",null,null,"Custo"]
[null,null,null,"Operativa","Improdutiva","Produtivo","Improdutivo",null,"Horário Total"]
[{"$nulls":6},"Custo horário total de equipamentos"]
["B - MÃO DE OBRA",null,"Quantidade","Unidade","Custo Horário",null,"Custo Horário Total"]
["P9824","Servente",2,"h",{"$f":"VLOOKUP($A1173,#REF!,6,0)","v":{"$error":"#REF!"}},null,null,null,{"$f":"ROUND(C1173*E1173,4)","v":{"$error":"#REF!"}}]
[null,null,"Custo horário total de mão de obra",{"$nulls":4},{"$f":"SUM(I1173)","v":{"$error":"#REF!"}}]
[null,null,"Custo horário total de execução",{"$nulls":5},{"$f":"SUM(H1174)","v":{"$error":"#REF!"}}]
[null,null,"Custo unitário de execução",{"$nulls":5},{"$f":"I1175/H1167","v":{"$error":"#REF!"}}]
[{"$nulls":6},"Custo do FIC",null,"-"]
[{"$nulls":6},"Custo do FIT",null,"-"]
["C - MATERIAL",null,"Quantidade","Unidade","Preço Unitário",null,"Custo Unitário"]
["M2158","Argamassa asfáltica",1,"kg",null,{"$f":"VLOOKUP($A1180,#REF!,5,0)","v":{"$error":"#REF!"}},null,null,{"$f":"ROUND(C1180*F1180,4)","v":{"$error":"#REF!"}}]
[null,null,"Custo unitário total de material",{"$nulls":5},{"$f":"SUM(I1180)","v":{"$error":"#REF!"}}]
["D - ATIVIDADES AUXILIARES",null,"Quantidade","Unidade","Custo Unitário",null,"Custo Unitário"]
[null,null,"Custo total de atividades auxiliares"]
[{"$nulls":6},"Subtotal",null,{"$f":"SUM(I1181,I1176,I1177,I1178)","v":{"$error":"#REF!"}}]
["E - TEMPO FIXO",null,"Código","Quantidade","Unidade","Custo Unitário",null,"Custo Unitário"]
["M2158","Argamassa asfáltica - Caminhão carroceria 15 t",5914655,1E-3,"t",null,{"$f":"$I$857","v":{"$error":"#REF!"}},null,{"$f":"ROUND(D1186*G1186,4)","v":{"$error":"#REF!"}}]
[null,null,"Custo unitário total de tempo fixo",{"$nulls":5},{"$f":"SUM(I1186)","v":{"$error":"#REF!"}}]
["F - MOMENTO DE TRANSPORTE",null,"Quantidade","Unidade","DMT",null,null,null,"Custo Unitário"]
[{"$nulls":4},"LN","RP","P"]
["M2158","Argamassa asfáltica - Caminhão carroceria 15 t",1E-3,"tkm",null,null,{"$f":"$Q$1","v":80},null,{"$f":"ROUND((C1190*G1190)*$I$884,4)","v":{"$error":"#REF!"}},null,5914479]
[null,null,"Custo unitário total de transporte",{"$nulls":5},{"$f":"SUM(I1190)","v":{"$error":"#REF!"}}]
[{"$nulls":4},"Custo unitário direto total",null,null,null,{"$f":"SUM(I1191,I1187,I1184)","v":{"$error":"#REF!"}},44.48]
["Obs."]
[]
["CGCIT",{"$nulls":7},"DNIT"]
["SISTEMA DE CUSTOS REFERENCIAIS DE OBRAS - SICRO",null,null,{"$f":"$M$1","v":"ESTADO MINAS GERAIS"}]
["Custo Unitário de Referência",null,null,{"$f":"M2","v":" JANEIRO 2021"},null,null,"Produção da equipe",0.4,"m³"]
[4805751,"Escavação manual em material de 1ª categoria na profundidade de 1 a 2 m",{"$nulls":5},"Valores em reais (R$)"]
["A - EQUIPAMENTOS",null,"Quantidade","Utilização",null,"Custo Horário",null,null,"Custo"]
[null,null,null,"Operativa","Improdutiva","Produtivo","Improdutivo",null,"Horário Total"]
[{"$nulls":6},"Custo horário total de equipamentos"]
["B - MÃO DE OBRA",null,"Quantidade","Unidade","Custo Horário",null,"Custo Horário Total"]
["P9824","Servente",1,"h",{"$f":"VLOOKUP($A1203,#REF!,6,0)","v":{"$error":"#REF!"}},null,null,null,{"$f":"ROUND(C1203*E1203,4)","v":{"$error":"#REF!"}}]
[null,null,"Custo horário total de mão de obra",{"$nulls":4},{"$f":"SUM(I1203)","v":{"$error":"#REF!"}}]
[null,null,"Custo horário total de execução",{"$nulls":5},{"$f":"SUM(H1204)","v":{"$error":"#REF!"}}]
[null,null,"Custo unitário de execução",{"$nulls":5},{"$f":"I1205/H1197","v":{"$error":"#REF!"}}]
[{"$nulls":6},"Custo do FIC",null,"-"]
[{"$nulls":6},"Custo do FIT",null,"-"]
["C - MATERIAL",null,"Quantidade","Unidade","Preço Unitário",null,"Custo Unitário"]
[null,null,"Custo unitário total de material"]
["D - ATIVIDADES AUXILIARES",null,"Quantidade","Unidade","Custo Unitário",null,"Custo Unitário"]
[null,null,"Custo total de atividades auxiliares"]
[{"$nulls":6},"Subtotal",null,{"$f":"SUM(I1206,I1207,I1208)","v":{"$error":"#REF!"}}]
["E - TEMPO FIXO",null,"Código","Quantidade","Unidade","Custo Unitário",null,"Custo Unitário"]
[null,null,"Custo unitário total de tempo fixo"]
["F - MOMENTO DE TRANSPORTE",null,"Quantidade","Unidade","DMT",null,null,null,"Custo Unitário"]
[{"$nulls":4},"LN","RP","P"]
[null,null,"Custo unitário total de transporte",{"$nulls":5},"-"]
[{"$nulls":4},"Custo unitário direto total",null,null,null,{"$f":"SUM(I1213)","v":{"$error":"#REF!"}},41.25]
["Obs."]
[]
["CGCIT",{"$nulls":7},"DNIT"]
["SISTEMA DE CUSTOS REFERENCIAIS DE OBRAS - SICRO",null,null,{"$f":"$M$1","v":"ESTADO MINAS GERAIS"}]
["Custo Unitário de Referência",null,null,{"$f":"M2","v":" JANEIRO 2021"},null,null,"Produção da equipe",100,"m"]
[3108022,"Guia de madeira de 2,5 x 8,0 cm - confecção e instalação",{"$nulls":5},"Valores em reais (R$)"]
["A - EQUIPAMENTOS",null,"Quantidade","Utilização",null,"Custo Horário",null,null,"Custo"]
[null,null,null,"Operativa","Improdutiva","Produtivo","Improdutivo",null,"Horário Total"]
[{"$nulls":6},"Custo horário total de equipamentos"]
["B - MÃO DE OBRA",null,"Quantidade","Unidade","Custo Horário",null,"Custo Horário Total"]
["P9801","Ajudante",1,"h",{"$f":"VLOOKUP($A1230,#REF!,6,0)","v":{"$error":"#REF!"}},null,null,null,{"$f":"ROUND(C1230*E1230,4)","v":{"$error":"#REF!"}}]
["P9808","Carpinteiro",1,"h",{"$f":"VLOOKUP($A1231,#REF!,6,0)","v":{"$error":"#REF!"}},null,null,null,{"$f":"ROUND(C1231*E1231,4)","v":{"$error":"#REF!"}}]
[null,null,"Custo horário total de mão de obra",{"$nulls":4},{"$f":"SUM(I1230:I1231)","v":{"$error":"#REF!"}}]
[null,null,"Custo horário total de execução",{"$nulls":5},{"$f":"SUM(H1232)","v":{"$error":"#REF!"}}]
[null,null,"Custo unitário de execução",{"$nulls":5},{"$f":"I1233/H1224","v":{"$error":"#REF!"}}]
[{"$nulls":6},"Custo do FIC",null,"-"]
[{"$nulls":6},"Custo do FIT",null,"-"]
["C - MATERIAL",null,"Quantidade","Unidade","Preço Unitário",null,"Custo Unitário"]
["M1429","Tábua de pinho de terceira - E = 2,5 cm",8.4000000000000005E-2,"m²",null,{"$f":"VLOOKUP($A1238,#REF!,5,0)","v":{"$error":"#REF!"}},null,null,{"$f":"ROUND(C1238*F1238,4)","v":{"$error":"#REF!"}}]
[null,null,"Custo unitário total de material",{"$nulls":5},{"$f":"SUM(I1238)","v":{"$error":"#REF!"}}]
["D - ATIVIDADES AUXILIARES",null,"Quantidade","Unidade","Custo Unitário",null,"Custo Unitário"]
[null,null,"Custo total de atividades auxiliares"]
[{"$nulls":6},"Subtotal",null,{"$f":"SUM(I1239,I1234,I1235,I1236)","v":{"$error":"#REF!"}}]
["E - TEMPO FIXO",null,"Código","Quantidade","Unidade","Custo Unitário",null,"Custo Unitário"]
["M1429","Tábua de pinho de terceira - E = 2,5 cm - Caminhão carroceria 15 t",5914655,2.0999999999999999E-3,"t",null,{"$f":"$I$857","v":{"$error":"#REF!"}},null,{"$f":"ROUND(D1244*G1244,4)","v":{"$error":"#REF!"}}]
[null,null,"Custo unitário total de tempo fixo",{"$nulls":5},{"$f":"SUM(I1244)","v":{"$error":"#REF!"}}]
["F - MOMENTO DE TRANSPORTE",null,"Quantidade","Unidade","DMT",null,null,null,"Custo Unitário"]
[{"$nulls":4},"LN","RP","P"]
["M1429","Tábua de pinho de terceira - E = 2,5 cm - Caminhão carroceria 15 t",2.0999999999999999E-3,"tkm",null,null,{"$f":"$Q$6","v":1},null,{"$f":"ROUND((C1248*G1248)*$I$884,4)","v":{"$error":"#REF!"}},null,5914479]
[null,null,"Custo unitário total de transporte",{"$nulls":5},{"$f":"SUM(I1248)","v":{"$error":"#REF!"}}]
[{"$nulls":4},"Custo unitário direto total",null,null,null,{"$f":"SUM(I1249,I1245,I1242)","v":{"$error":"#REF!"}},2.42]
["Obs."]
[]
["CGCIT",{"$nulls":7},"DNIT"]
["SISTEMA DE CUSTOS REFERENCIAIS DE OBRAS - SICRO",null,null,{"$f":"$M$1","v":"ESTADO MINAS GERAIS"}]
["Custo Unitário de Referência",null,null,{"$f":"M2","v":" JANEIRO 2021"},null,null,"Produção da equipe",1,"m"]
[2003373,"Meio fio de concreto - MFC 03 - areia e brita comerciais - fôrma de madeira",{"$nulls":5},"Valores em reais (R$)"]
["A - EQUIPAMENTOS",null,"Quantidade","Utilização",null,"Custo Horário",null,null,"Custo"]
[null,null,null,"Operativa","Improdutiva","Produtivo","Improdutivo",null,"Horário Total"]
[{"$nulls":6},"Custo horário total de equipamentos"]
["B - MÃO DE OBRA",null,"Quantidade","Unidade","Custo Horário",null,"Custo Horário Total"]
[null,null,"Custo horário total de mão de obra",{"$nulls":4},"-"]
[null,null,"Custo horário total de execução",{"$nulls":5},"-"]
[null,null,"Custo unitário de execução",{"$nulls":5},"-"]
[{"$nulls":6},"Custo do FIC",null,"-"]
[{"$nulls":6},"Custo do FIT",null,"-"]
["C - MATERIAL",null,"Quantidade","Unidade","Preço Unitário",null,"Custo Unitário"]
[null,null,"Custo unitário total de material"]
["D - ATIVIDADES AUXILIARES",null,"Quantidade","Unidade","Custo Unitário",null,"Custo Unitário"]
[1107892,"Concreto fck = 20 MPa - confecção em betoneira e lançamento manual - areia e brita comerciais",4.2000000000000003E-2,"m³",null,{"$f":"$I$1162","v":{"$error":"#REF!"}},null,null,{"$f":"ROUND(C1269*F1269,4)","v":{"$error":"#REF!"}}]
[2003842,"Enchimento de junta de concreto com argamassa asfáltica de densidade 1.700 kg/m³ - espessura de 1 cm",5.9499999999999997E-2,"kg",null,{"$f":"$I$1192","v":{"$error":"#REF!"}},null,null,{"$f":"ROUND(C1270*F1270,4)","v":{"$error":"#REF!"}}]
[4805751,"Escavação manual em material de 1ª categoria na profundidade de 1 a 2 m",0.03,"m³",null,{"$f":"$I$1219","v":{"$error":"#REF!"}},null,null,{"$error":"#REF!"}]
[3103302,"Formas de tábuas de pinho para dispositivos de drenagem - utilização de 3 vezes - confecção, instalação e retirada",8.6699999999999999E-2,"m²",null,{"$f":"$I$1219","v":{"$error":"#REF!"}},null,null,{"$error":"#REF!"}]
[null,null,"Custo total de atividades auxiliares",{"$nulls":5},{"$f":"SUM(I1269:I1272)","v":{"$error":"#REF!"}}]
[{"$nulls":6},"Subtotal",null,{"$f":"SUM(I1273,I1263,I1264,I1265)","v":{"$error":"#REF!"}},21.466699999999999]
["E - TEMPO FIXO",null,"Código","Quantidade","Unidade","Custo Unitário",null,"Custo Unitário"]
[null,null,"Custo unitário total de tempo fixo"]
["F - MOMENTO DE TRANSPORTE",null,"Quantidade","Unidade","DMT",null,null,null,"Custo Unitário"]
[{"$nulls":4},"LN","RP","P"]
[null,null,"Custo unitário total de transporte",{"$nulls":5},"-"]
[{"$nulls":4},"Custo unitário direto total",null,null,null,{"$f":"SUM(I1274)","v":{"$error":"#REF!"}}]
[{"$nulls":5},"BDI",{"$f":"'[12]Médio Porte'!$D$24","v":0.2374},null,{"$f":"ROUND(I1280*G1281,4)","v":{"$error":"#REF!"}}]
[{"$nulls":6},"Preço Unitário:",null,{"$f":"ROUND(SUM(I1280,I1281),2)","v":{"$error":"#REF!"}},21.47]
["Obs."]
[]
["CGCIT",{"$nulls":7},"DNIT"]
["SISTEMA DE CUSTOS REFERENCIAIS DE OBRAS - SICRO",null,null,{"$f":"$M$1","v":"ESTADO MINAS GERAIS"}]
["Custo Unitário de Referência",null,null,{"$f":"M2","v":" JANEIRO 2021"},null,null,"Produção da equipe",1,"m²"]
[3103302,"Formas de tábuas de pinho para dispositivos de drenagem - utilização de 3 vezes - confecção, instalação e retirada",{"$nulls":5},"Valores em reais (R$)"]
["A - EQUIPAMENTOS",null,"Quantidade","Utilização",null,"Custo Horário",null,null,"Custo"]
[null,null,null,"Operativa","Improdutiva","Produtivo","Improdutivo",null,"Horário Total"]
["E9066","Grupo gerador - 13/14 kVA",0.13855000000000001,1,0,{"$f":"VLOOKUP($A1291,#REF!,8,0)","v":{"$error":"#REF!"}},{"$f":"VLOOKUP($A1291,#REF!,7,0)","v":{"$error":"#REF!"}},null,{"$f":"ROUND((C1291*(D1291*F1291))+(C1291*(E1291*G1291)),4)","v":{"$error":"#REF!"}}]
["E9535","Serra circular com bancada - D = 30 cm - 4 kW",0.13855000000000001,1,0,{"$f":"VLOOKUP($A1292,#REF!,8,0)","v":{"$error":"#REF!"}},{"$f":"VLOOKUP($A1292,#REF!,7,0)","v":{"$error":"#REF!"}},null,{"$error":"#REF!"}]
[{"$nulls":6},"Custo horário total de equipamentos",null,{"$f":"SUM(I1291:I1292)","v":{"$error":"#REF!"}}]
["B - MÃO DE OBRA",null,"Quantidade","Unidade","Custo Horário",null,"Custo Horário Total"]
["P9801","Ajudante",0.9,"h",{"$f":"VLOOKUP($A1295,#REF!,6,0)","v":{"$error":"#REF!"}},null,null,null,{"$f":"ROUND(C1295*E1295,4)","v":{"$error":"#REF!"}}]
["P9808","Carpinteiro",0.9,"h",{"$f":"VLOOKUP($A1296,#REF!,6,0)","v":{"$error":"#REF!"}},null,null,null,{"$f":"ROUND(C1296*E1296,4)","v":{"$error":"#REF!"}}]
[null,null,"Custo horário total de mão de obra",{"$nulls":4},{"$f":"SUM(I1295:I1296)","v":{"$error":"#REF!"}}]
[null,null,"Custo horário total de execução",{"$nulls":5},{"$f":"SUM(H1297,I1293)","v":{"$error":"#REF!"}}]
[null,null,"Custo unitário de execução",{"$nulls":5},{"$f":"I1298/H1287","v":{"$error":"#REF!"}}]
[{"$nulls":6},"Custo do FIC",null,"-"]
[{"$nulls":6},"Custo do FIT",null,"-"]
["C - MATERIAL",null,"Quantidade","Unidade","Preço Unitário",null,"Custo Unitário"]
["M0560","Desmoldante para formas",1.8519999999999998E-2,"l",null,{"$f":"VLOOKUP($A1303,#REF!,5,0)","v":{"$error":"#REF!"}},null,null,{"$f":"ROUND(C1303*F1303,4)","v":{"$error":"#REF!"}}]
["M1205","Prego de ferro",0.11674,"kg",null,{"$f":"VLOOKUP($A1304,#REF!,5,0)","v":{"$error":"#REF!"}},null,null,{"$error":"#REF!"}]
["M0290","Tábua de 2,5 x 10 cm",1.2329600000000001,"m",null,{"$f":"VLOOKUP($A1305,#REF!,5,0)","v":{"$error":"#REF!"}},null,null,{"$error":"#REF!"}]
["M1429","Tábua de pinho de terceira - E = 2,5 cm",0.40425,"m²",null,{"$f":"VLOOKUP($A1306,#REF!,5,0)","v":{"$error":"#REF!"}},null,null,{"$error":"#REF!"}]
[null,null,"Custo unitário total de material",{"$nulls":5},{"$f":"SUM(I1303:I1306)","v":{"$error":"#REF!"}}]
["D - ATIVIDADES AUXILIARES",null,"Quantidade","Unidade","Custo Unitário",null,"Custo Unitário"]
[null,null,"Custo total de atividades auxiliares"]
[{"$nulls":6},"Subtotal",null,{"$f":"SUM(I1307,I1299,I1300,I1301)","v":{"$error":"#REF!"}}]
["E - TEMPO FIXO",null,"Código","Quantidade","Unidade","Custo Unitário",null,"Custo Unitário"]
["M1205","Prego de ferro - Caminhão carroceria 15 t",5914655,1.2E-4,"t",null,{"$f":"$I$857","v":{"$error":"#REF!"}},null,{"$f":"ROUND(D1312*G1312,4)","v":{"$error":"#REF!"}}]
["M0290","Tábua de 2,5 x 10 cm - Caminhão carroceria 15 t",5914655,3.0799999999999998E-3,"t",null,{"$f":"$I$857","v":{"$error":"#REF!"}},null,{"$f":"ROUND(D1313*G1313,4)","v":{"$error":"#REF!"}}]
["M1429","Tábua de pinho de terceira - E = 2,5 cm - Caminhão carroceria 15 t",5914655,1.0109999999999999E-2,"t",null,{"$error":"#REF!"},null,{"$error":"#REF!"}]
[null,null,"Custo unitário total de tempo fixo",{"$nulls":5},{"$f":"SUM(I1312:I1314)","v":{"$error":"#REF!"}}]
["F - MOMENTO DE TRANSPORTE",null,"Quantidade","Unidade","DMT",null,null,null,"Custo Unitário"]
[{"$nulls":4},"LN","RP","P"]
["M1205","Prego de ferro - Caminhão carroceria 15 t",1.2E-4,"tkm",null,null,{"$f":"$Q$6","v":1},null,{"$f":"ROUND((C1318*G1318)*$I$884,4)","v":{"$error":"#REF!"}},null,5914479]
["M0290","Tábua de 2,5 x 10 cm - Caminhão carroceria 15 t",3.0799999999999998E-3,"tkm",null,null,{"$f":"$Q$6","v":1},null,{"$f":"ROUND((C1319*G1319)*$I$884,4)","v":{"$error":"#REF!"}},null,5914479]
["M1429","Tábua de pinho de terceira - E = 2,5 cm - Caminhão carroceria 15 t",1.0109999999999999E-2,"tkm",null,null,{"$f":"$Q$6","v":1},null,{"$error":"#REF!"},null,5914479]
[null,null,"Custo unitário total de transporte",{"$nulls":5},{"$f":"SUM(I1318:I1320)","v":{"$error":"#REF!"}}]
[{"$nulls":4},"Custo unitário direto total",null,null,null,{"$f":"SUM(I1321,I1315,I1310)","v":{"$error":"#REF!"}},54.07]
["Obs."]
[]
["CGCIT",{"$nulls":7},"DNIT"]
["SISTEMA DE CUSTOS REFERENCIAIS DE OBRAS - SICRO",null,null,{"$f":"$M$1","v":"ESTADO MINAS GERAIS"}]
["Custo Unitário de Referência",null,null,{"$f":"M2","v":" JANEIRO 2021"},null,null,"Produção da equipe",305.14,"m³"]
[2003844,"Lastro de areia comercial - espalhamento mecânico",{"$nulls":5},"Valores em reais (R$)"]
["A - EQUIPAMENTOS",null,"Quantidade","Utilização",null,"Custo Horário",null,null,"Custo"]
[null,null,null,"Operativa","Improdutiva","Produtivo","Improdutivo",null,"Horário Total"]
["E9524","Motoniveladora - 93 kW",1,1,0,{"$f":"VLOOKUP($A1331,#REF!,8,0)","v":{"$error":"#REF!"}},{"$f":"VLOOKUP($A1331,#REF!,7,0)","v":{"$error":"#REF!"}},null,{"$f":"ROUND((C1331*(D1331*F1331))+(C1331*(E1331*G1331)),4)","v":{"$error":"#REF!"}}]
[{"$nulls":6},"Custo horário total de equipamentos",null,{"$f":"SUM(I1331)","v":{"$error":"#REF!"}}]
["B - MÃO DE OBRA",null,"Quantidade","Unidade","Custo Horário",null,"Custo Horário Total"]
["P9824","Servente",1,"h",{"$f":"VLOOKUP($A1334,#REF!,6,0)","v":{"$error":"#REF!"}},null,null,null,{"$f":"ROUND(C1334*E1334,4)","v":{"$error":"#REF!"}}]
[null,null,"Custo horário total de mão de obra",{"$nulls":4},{"$f":"SUM(I1334)","v":{"$error":"#REF!"}}]
[null,null,"Custo horário total de execução",{"$nulls":5},{"$f":"SUM(H1335,I1332)","v":{"$error":"#REF!"}}]
[null,null,"Custo unitário de execução",{"$nulls":5},{"$f":"I1336/H1327","v":{"$error":"#REF!"}}]
[{"$nulls":6},"Custo do FIC",3.5300000000000002E-3,{"$f":"I1337*H1338","v":{"$error":"#REF!"}}]
[{"$nulls":6},"Custo do FIT",null,"-"]
["C - MATERIAL",null,"Quantidade","Unidade","Preço Unitário",null,"Custo Unitário"]
["M0081","Areia grossa",1,"m³",null,{"$f":"VLOOKUP($A1341,#REF!,5,0)","v":{"$error":"#REF!"}},null,null,{"$f":"ROUND(C1341*F1341,4)","v":{"$error":"#REF!"}}]
[null,null,"Custo unitário total de material",{"$nulls":5},{"$f":"SUM(I1341)","v":{"$error":"#REF!"}},73.516900000000007]
["D - ATIVIDADES AUXILIARES",null,"Quantidade","Unidade","Custo Unitário",null,"Custo Unitário"]
[null,null,"Custo total de atividades auxiliares"]
[{"$nulls":6},"Subtotal",null,{"$f":"SUM(I1342,I1338,I1337,I1339)","v":{"$error":"#REF!"}}]
["E - TEMPO FIXO",null,"Código","Quantidade","Unidade","Custo Unitário",null,"Custo Unitário"]
["M0081","Areia grossa - Caminhão basculante 10 m³",5914647,1.5,"t",null,{"$f":"$I$110","v":{"$error":"#REF!"}},null,{"$f":"ROUND(D1347*G1347,4)","v":{"$error":"#REF!"}}]
[null,null,"Custo unitário total de tempo fixo",{"$nulls":5},{"$f":"SUM(I1347)","v":{"$error":"#REF!"}}]
["F - MOMENTO DE TRANSPORTE",null,"Quantidade","Unidade","DMT",null,null,null,"Custo Unitário"]
[{"$nulls":4},"LN","RP","P"]
["M0081","Areia grossa - Caminhão basculante 10 m³",1.5,"tkm",null,null,{"$f":"$Q$2","v":10},null,{"$f":"ROUND((C1351*G1351)*I164,4)","v":{"$error":"#REF!"}},null,5914389]
[null,null,"Custo unitário total de transporte",{"$nulls":5},{"$f":"SUM(I1351)","v":{"$error":"#REF!"}},0]
[{"$nulls":4},"Custo unitário direto total",null,null,null,{"$f":"SUM(I1352,I1348,I1345)","v":{"$error":"#REF!"}},74.94]
[{"$nulls":5},"BDI",{"$f":"'[12]Médio Porte'!$D$24","v":0.2374},null,{"$f":"ROUND(I1353*G1354,4)","v":{"$error":"#REF!"}}]
[{"$nulls":6},"Preço Unitário:",null,{"$f":"ROUND(SUM(I1353,I1354),2)","v":{"$error":"#REF!"}}]
["Obs."]
["CGCIT",{"$nulls":7},"DNIT"]
["SISTEMA DE CUSTOS REFERENCIAIS DE OBRAS - SICRO",null,null,{"$f":"$M$1","v":"ESTADO MINAS GERAIS"}]
["Custo Unitário de Referência",null,null,{"$f":"M2","v":" JANEIRO 2021"},null,null,"Produção da equipe",230.19,"m³"]
[5502114,"Escavação, carga e transporte de material de 1ª categoria - DMT de 1.000 a 1.200 m - caminho de serviço em leito natural -\ncom escavadeira e caminhão basculante de 14 m³",{"$nulls":5},"Valores em reais (R$)"]
["A - EQUIPAMENTOS",null,"Quantidade","Utilização",null,"Custo Horário",null,null,"Custo"]
[null,null,null,"Operativa","Improdutiva","Produtivo","Improdutivo",null,"Horário Total"]
["E9667","Caminhão basculante com capacidade de 14 m³ - 188 Kw",5,0.96,0.04,{"$f":"VLOOKUP($A1363,#REF!,8,0)","v":{"$error":"#REF!"}},{"$f":"VLOOKUP($A1363,#REF!,7,0)","v":{"$error":"#REF!"}},null,{"$f":"ROUND((C1363*(D1363*F1363))+(C1363*(E1363*G1363)),4)","v":{"$error":"#REF!"}}]
["E9515","Escavadeira hidráulica sobre esteiras com caçamba com capacidade de 1,56 m³ - 118 kW",1,1,0,{"$f":"VLOOKUP($A1364,#REF!,8,0)","v":{"$error":"#REF!"}},{"$f":"VLOOKUP($A1364,#REF!,7,0)","v":{"$error":"#REF!"}},null,{"$error":"#REF!"}]
[{"$nulls":6},"Custo horário total de equipamentos",null,{"$f":"SUM(I1363:I1364)","v":{"$error":"#REF!"}}]
["B - MÃO DE OBRA",null,"Quantidade","Unidade","Custo Horário",null,"Custo Horário Total"]
["P9824","Servente",1,"h",{"$f":"VLOOKUP($A1367,#REF!,6,0)","v":{"$error":"#REF!"}},null,null,null,{"$f":"ROUND(C1367*E1367,4)","v":{"$error":"#REF!"}}]
[null,null,"Custo horário total de mão de obra",{"$nulls":4},{"$f":"SUM(I1367)","v":{"$error":"#REF!"}}]
[null,null,"Custo horário total de execução",{"$nulls":5},{"$f":"SUM(H1368,I1365)","v":{"$error":"#REF!"}},1003.2287]
[null,null,"Custo unitário de execução",{"$nulls":5},{"$f":"I1369/H1359","v":{"$error":"#REF!"}}]
[{"$nulls":6},"Custo do FIC",0.12280000000000001,{"$f":"I1370*H1371","v":{"$error":"#REF!"}}]
[{"$nulls":6},"Custo do FIT",null,"-"]
["C - MATERIAL",null,"Quantidade","Unidade","Preço Unitário",null,"Custo Unitário"]
[null,null,"Custo unitário total de material"]
["D - ATIVIDADES AUXILIARES",null,"Quantidade","Unidade","Custo Unitário",null,"Custo Unitário"]
[null,null,null,"m³",{"$nulls":4},{"$f":"ROUND(C1376*F1376,4)","v":0}]
[null,null,"Custo total de atividades auxiliares",{"$nulls":5},{"$f":"SUM(I1376)","v":0}]
[{"$nulls":6},"Subtotal",null,{"$f":"SUM(I1377,I1370,I1371,I1372)","v":{"$error":"#REF!"}}]
["E - TEMPO FIXO",null,"Código","Quantidade","Unidade","Custo Unitário",null,"Custo Unitário"]
[]
[null,null,"Custo unitário total de tempo fixo",{"$nulls":5},{"$f":"SUM(I1380)","v":0}]
["F - MOMENTO DE TRANSPORTE",null,"Quantidade","Unidade","DMT",null,null,null,"Custo Unitário"]
[{"$nulls":4},"LN","RP","P"]
[{"$nulls":10},5914389]
[null,null,"Custo unitário total de transporte",{"$nulls":5},{"$f":"SUM(I1384)","v":0}]
[{"$nulls":4},"Custo unitário direto total",null,null,null,{"$f":"SUM(I1385,I1381,I1378)","v":{"$error":"#REF!"}},4.45]
[{"$nulls":5},"BDI",{"$f":"'[12]Médio Porte'!$D$24","v":0.2374},null,{"$f":"ROUND(I1386*G1387,4)","v":{"$error":"#REF!"}}]
[{"$nulls":6},"Preço Unitário:",null,{"$f":"ROUND(SUM(I1386,I1387),2)","v":{"$error":"#REF!"}}]
["Obs."]
["CGCIT",{"$nulls":7},"DNIT"]
["SISTEMA DE CUSTOS REFERENCIAIS DE OBRAS - SICRO",null,null,{"$f":"$M$1","v":"ESTADO MINAS GERAIS"}]
["Custo Unitário de Referência",null,null,{"$f":"M2","v":" JANEIRO 2021"},null,null,"Produção da equipe",146.66999999999999,"m³"]
[4413942,"Espalhamento de material em bota-fora",{"$nulls":5},"Valores em reais (R$)"]
["A - EQUIPAMENTOS",null,"Quantidade","Utilização",null,"Custo Horário",null,null,"Custo"]
[null,null,null,"Operativa","Improdutiva","Produtivo","Improdutivo",null,"Horário Total"]
["E9540","Trator sobre esteiras com lâmina - 127 kW",1,1,0,{"$f":"VLOOKUP($A1396,#REF!,8,0)","v":{"$error":"#REF!"}},{"$f":"VLOOKUP($A1396,#REF!,7,0)","v":{"$error":"#REF!"}},null,{"$f":"ROUND((C1396*(D1396*F1396))+(C1396*(E1396*G1396)),4)","v":{"$error":"#REF!"}}]
[{"$nulls":6},"Custo horário total de equipamentos",null,{"$f":"SUM(I1396:I1396)","v":{"$error":"#REF!"}}]
["B - MÃO DE OBRA",null,"Quantidade","Unidade","Custo Horário",null,"Custo Horário Total"]
["P9824","Servente",1,"h",{"$f":"VLOOKUP($A1399,#REF!,6,0)","v":{"$error":"#REF!"}},null,null,null,{"$f":"ROUND(C1399*E1399,4)","v":{"$error":"#REF!"}}]
[null,null,"Custo horário total de mão de obra",{"$nulls":4},{"$f":"SUM(I1399)","v":{"$error":"#REF!"}}]
[null,null,"Custo horário total de execução",{"$nulls":5},{"$f":"SUM(H1400,I1397)","v":{"$error":"#REF!"}},195.91579999999999]
[null,null,"Custo unitário de execução",{"$nulls":5},{"$f":"I1401/H1392","v":{"$error":"#REF!"}}]
[{"$nulls":6},"Custo do FIC",3.73E-2,{"$f":"I1402*H1403","v":{"$error":"#REF!"}}]
[{"$nulls":6},"Custo do FIT",null,"-"]
["C - MATERIAL",null,"Quantidade","Unidade","Preço Unitário",null,"Custo Unitário"]
[null,null,"Custo unitário total de material"]
["D - ATIVIDADES AUXILIARES",null,"Quantidade","Unidade","Custo Unitário",null,"Custo Unitário"]
[null,null,null,"m³",{"$nulls":4},{"$f":"ROUND(C1408*F1408,4)","v":0}]
[null,null,"Custo total de atividades auxiliares",{"$nulls":5},{"$f":"SUM(I1408)","v":0}]
[{"$nulls":6},"Subtotal",null,{"$f":"SUM(I1409,I1402,I1403,I1404)","v":{"$error":"#REF!"}},1.3631]
["E - TEMPO FIXO",null,"Código","Quantidade","Unidade","Custo Unitário",null,"Custo Unitário"]
[]
[null,null,"Custo unitário total de tempo fixo",{"$nulls":5},{"$f":"SUM(I1412)","v":0}]
["F - MOMENTO DE TRANSPORTE",null,"Quantidade","Unidade","DMT",null,null,null,"Custo Unitário"]
[{"$nulls":4},"LN","RP","P"]
[{"$nulls":10},5914389]
[null,null,"Custo unitário total de transporte",{"$nulls":5},{"$f":"SUM(I1416)","v":0}]
[{"$nulls":4},"Custo unitário direto total",null,null,null,{"$f":"SUM(I1417,I1413,I1410)","v":{"$error":"#REF!"}},1.36]
[{"$nulls":5},"BDI",{"$f":"'[12]Médio Porte'!$D$24","v":0.2374},null,{"$f":"ROUND(I1418*G1419,4)","v":{"$error":"#REF!"}}]
[{"$nulls":6},"Preço Unitário:",null,{"$f":"ROUND(SUM(I1418,I1419),2)","v":{"$error":"#REF!"}}]
["Obs."]
[]
["CGCIT",{"$nulls":7},"DNIT"]
["SISTEMA DE CUSTOS REFERENCIAIS DE OBRAS - SICRO",null,null,{"$f":"$M$1","v":"ESTADO MINAS GERAIS"}]
["Custo Unitário de Referência",null,null,{"$f":"M2","v":" JANEIRO 2021"},null,null,"Produção da equipe",150.88,"m³"]
[4011256,"Base estabilizada granulometricamente com mistura solo brita (70% - 30%) na pista com material de jazida e brita comercial",{"$nulls":5},"Valores em reais (R$)"]
["A - EQUIPAMENTOS",null,"Quantidade","Utilização",null,"Custo Horário",null,null,"Custo"]
[null,null,null,"Operativa","Improdutiva","Produtivo","Improdutivo",null,"Horário Total"]
["E9571","Caminhão tanque com capacidade de 10.000 l - 188 kW",1,0.83,0.17,{"$f":"VLOOKUP($A1429,#REF!,8,0)","v":{"$error":"#REF!"}},{"$f":"VLOOKUP($A1429,#REF!,7,0)","v":{"$error":"#REF!"}},null,{"$f":"ROUND((C1429*(D1429*F1429))+(C1429*(E1429*G1429)),4)","v":{"$error":"#REF!"}},176]
["E9518","Grade de 24 discos rebocável de 24\"",1,0.62,0.38,{"$f":"VLOOKUP($A1430,#REF!,8,0)","v":{"$error":"#REF!"}},{"$f":"VLOOKUP($A1430,#REF!,7,0)","v":{"$error":"#REF!"}},null,{"$f":"ROUND((C1430*(D1430*F1430))+(C1430*(E1430*G1430)),4)","v":{"$error":"#REF!"}},2.1800000000000002]
["E9524","Motoniveladora - 93 Kw",1,1,0,{"$f":"VLOOKUP($A1431,#REF!,8,0)","v":{"$error":"#REF!"}},{"$f":"VLOOKUP($A1431,#REF!,7,0)","v":{"$error":"#REF!"}},null,{"$error":"#REF!"},164.51]
["E9762","Rolo compactador de pneus autopropelido de 27 t - 85 kW",1,0.86,0.14000000000000001,{"$f":"VLOOKUP($A1432,#REF!,8,0)","v":{"$error":"#REF!"}},{"$f":"VLOOKUP($A1432,#REF!,7,0)","v":{"$error":"#REF!"}},null,{"$error":"#REF!"},123.95]
["E9685","Rolo compactador pé de carneiro vibratório autopropelido de 11,6 t - 82 kW",1,0.9,0.1,{"$f":"VLOOKUP($A1433,#REF!,8,0)","v":{"$error":"#REF!"}},{"$f":"VLOOKUP($A1433,#REF!,7,0)","v":{"$error":"#REF!"}},null,{"$error":"#REF!"},128.95679999999999]
["E9577","Trator agrícola - 77 kW",1,0.62,0.38,{"$f":"VLOOKUP($A1434,#REF!,8,0)","v":{"$error":"#REF!"}},{"$f":"VLOOKUP($A1434,#REF!,7,0)","v":{"$error":"#REF!"}},null,{"$error":"#REF!"},85.123500000000007]
[{"$nulls":6},"Custo horário total de equipamentos",null,{"$f":"SUM(I1429:I1434)","v":{"$error":"#REF!"}},681]
["B - MÃO DE OBRA",null,"Quantidade","Unidade","Custo Horário",null,"Custo Horário Total"]
["P9824","Servente",1,"h",{"$f":"VLOOKUP($A1437,#REF!,6,0)","v":{"$error":"#REF!"}},null,null,null,{"$f":"ROUND(C1437*E1437,4)","v":{"$error":"#REF!"}}]
[null,null,"Custo horário total de mão de obra",{"$nulls":4},{"$f":"SUM(I1437)","v":{"$error":"#REF!"}}]
[null,null,"Custo horário total de execução",{"$nulls":5},{"$f":"SUM(H1438,I1435)","v":{"$error":"#REF!"}},697.65520000000004]
[null,null,"Custo unitário de execução",{"$nulls":5},{"$f":"I1439/H1425","v":{"$error":"#REF!"}}]
[{"$nulls":6},"Custo do FIC",3.5300000000000002E-3,{"$f":"I1440*H1441","v":{"$error":"#REF!"}}]
[{"$nulls":6},"Custo do FIT",null,"-"]
["C - MATERIAL",null,"Quantidade","Unidade","Preço Unitário",null,"Custo Unitário"]
["M0191","Brita 1",0.41260000000000002,"m³",null,{"$f":"VLOOKUP($A1444,#REF!,5,0)","v":{"$error":"#REF!"}},null,null,{"$f":"ROUND(C1444*F1444,4)","v":{"$error":"#REF!"}},33.258800000000001]
[null,null,"Custo unitário total de material"]
["D - ATIVIDADES AUXILIARES",null,"Quantidade","Unidade","Custo Unitário",null,"Custo Unitário"]
[4016096,"Escavação e carga de material de jazida com escavadeira hidráulica de 1,56m³",0.77019000000000004,"m³",null,{"$f":"$I$453","v":{"$error":"#REF!"}},null,null,{"$f":"ROUND(C1447*F1447,4)","v":{"$error":"#REF!"}},0.6855]
[null,null,"Custo total de atividades auxiliares",{"$nulls":5},{"$f":"SUM(I1447)","v":{"$error":"#REF!"}}]
[{"$nulls":6},"Subtotal",null,{"$f":"SUM(I1448,I1440,I1441,I1442)","v":{"$error":"#REF!"}}]
["E - TEMPO FIXO",null,"Código","Quantidade","Unidade","Custo Unitário",null,"Custo Unitário"]
["M0191","Brita 1",5914647,0.61890000000000001,"t",null,{"$f":"$I$110","v":{"$error":"#REF!"}},null,{"$f":"ROUND(D1451*G1451,4)","v":{"$error":"#REF!"}}]
[4016096,"Escavação e carga de material de jazida com escavadeira hidráulica de 1,56m³",5914354,1.44411,"t",null,{"$f":"I480","v":{"$error":"#REF!"}},null,{"$f":"ROUND(D1452*G1452,4)","v":{"$error":"#REF!"}}]
[null,null,"Custo unitário total de tempo fixo",{"$nulls":5},{"$f":"SUM(I1451:I1452)","v":{"$error":"#REF!"}},2.0177]
["F - MOMENTO DE TRANSPORTE",null,"Quantidade","Unidade","DMT",null,null,null,"Custo Unitário"]
[{"$nulls":4},"LN","RP","P"]
["M0191","Brita 1",0.61890000000000001,"tkm",null,null,{"$f":"$Q$1","v":80},null,{"$f":"ROUND((C1456*G1456)*$I$164,4)","v":{"$error":"#REF!"}},0,5914389]
[4016096,"Escavação e carga de material de jazida com escavadeira hidráulica de 1,56m³",1.44411,"tkm",null,null,{"$f":"$Q$4","v":5},null,{"$f":"ROUND((C1457*G1457)*$I$164,4)","v":{"$error":"#REF!"}}]
[null,null,"Custo unitário total de transporte",{"$nulls":5},{"$f":"SUM(I1456:I1457)","v":{"$error":"#REF!"}}]
[{"$nulls":4},"Custo unitário direto total",null,null,null,{"$f":"SUM(I1458,I1453,I1449)","v":{"$error":"#REF!"}},40.68,"SEM O TRANSPORTE"]
[{"$nulls":5},"BDI",{"$f":"'[12]Médio Porte'!$D$24","v":0.2374},null,{"$f":"ROUND(I1459*G1460,4)","v":{"$error":"#REF!"}}]
[{"$nulls":6},"Preço Unitário:",null,{"$f":"ROUND(SUM(I1459,I1460),2)","v":{"$error":"#REF!"}}]
["Obs."]